{"text_format":"3","workbook":"xlsx","n_sheets":6,"sheets":["Transfer Document","Account Descriptions","Categorical Guidelines","Sheet2","RTBA","AC"],"not_rendered":{"images":1,"defined_names":10,"comments":1},"read":"whole","date_system":"1900"}

{"sheet":"Transfer Document","index":0,"n_rows":110,"n_cols":11,"rows_kept":110,"merged":[[0,0,0,10],[1,0,1,10],[2,0,2,10],[3,0,3,10],[6,1,6,10],[7,1,7,10],[8,0,8,10],[9,0,9,10],[10,0,10,10],[11,0,11,10],[12,0,12,1],[12,2,12,3],[12,5,12,6],[12,7,12,8],[12,9,12,10],[13,0,13,1],[13,2,13,6],[13,9,13,10],[14,0,14,3],[14,4,14,6],[15,0,15,3],[15,4,15,6],[16,0,16,10],[17,0,17,10],[18,1,18,2],[18,4,18,10],[19,1,19,2],[19,4,19,10],[20,1,20,2],[20,4,20,10],[21,1,21,2],[21,4,21,10],[22,1,22,2],[22,4,22,10],[23,1,23,2],[23,4,23,10],[24,1,24,2],[24,4,24,10],[25,1,25,2],[25,4,25,10],[26,1,26,2],[26,4,26,10],[27,0,27,10],[28,0,28,10],[29,1,29,10],[30,1,30,10],[31,1,31,3],[31,4,31,10],[32,0,32,3],[32,4,32,10],[33,0,33,10],[34,8,34,10],[47,8,48,8],[47,9,48,9],[47,10,48,10],[61,8,62,8],[61,9,62,9],[61,10,62,10],[71,1,71,10],[72,4,72,6],[73,1,73,10],[74,1,74,10],[75,1,75,10],[78,0,78,10],[80,1,80,3],[80,7,80,9],[81,1,81,4],[81,7,81,10],[82,1,82,3],[82,7,82,9],[84,1,84,3],[84,7,84,9],[85,1,85,4],[85,7,85,10],[86,1,86,3],[86,7,86,9],[89,1,89,3],[89,7,89,9],[90,1,90,4],[90,7,90,10],[91,1,91,4],[91,7,91,10],[93,6,93,7],[95,2,95,10],[96,0,96,10],[97,0,97,10],[98,1,98,3],[98,7,98,9],[99,1,99,5],[99,7,99,10],[103,0,103,10],[104,0,104,2],[109,0,109,10]]}
["Major Categorical Funds"]
["Justification of Expenditure for Budget/Expense Transfer"]
["and SPSA Modification"]
["2018-19"]
[]
["Complete this form for the following change in categorical expenditures allocated in the 2018-19 SPSA:"]
[null,"BUDGET transfer within a categorical resource."]
[null,"EXPENSE transfer between and/or into categorical resources.  Budget Transaction Detail Report or Actuals Query  is required highlighting items to transfer."]
[]
["A copy of the SSC meeting minutes showing budget discussion item must be attached."]
["(Minutes must include resource, account, and amounts for both “from” and “to” and the description of the resulting benefit to students)."]
[]
["School Name:",null,{"$f":"VLOOKUP(J13,RTBA!B:C,2,FALSE)","v":"Elementary/Interim"},null,"Date:      ",null,null,"Location Number:",null,"0001"]
["Analyst:",null,{"$f":"VLOOKUP(J13,RTBA!B:I,8,FALSE)","v":""},{"$nulls":4},"Resource Teacher:",null,{"$f":"VLOOKUP(J13,RTBA!B:E,4,FALSE)","v":""}]
["Proposed Funding Resource:"]
["PAR Number (If Required): "]
["Description of Proposed Expenditure:  All expenditures should be listed individually"]
["Expenditure and Benefit to Students and/or Parent Involvement:  How is the money specifically being spent on students?  How will this affect student achievement?  Please explain your rationale for compliance for the use of categorical funds."]
[null,"Focus Area",null,"Account","Rationale"]
["Example","Closing the Gap",null,1157,"After school math tutoring for upper grade students identified by teachers using current math assessments."]
["A."]
["B."]
["C."]
["D."]
["E."]
["F."]
["G."]
["* Please list amount funded for each item on the following budget page."]
["Reason for Transfer:"]
[null,"Increase to an activity previously identified in SPSA:  "]
[null,"Transfer of expenditures due to clerical error:  "]
[null,"Other (Please specify):  "]
["Required SPSA Modification:"]
["Data used to Justify Expenditure:"]
[null,"CAASP",null,"ELPAC",null,"Other (Please Specify) "]
[null,"DRA2",null,"Benchmarks"]
[]
[]
["FROM:","Dept.","Resource","Budget Ref","Account","Program","Class","Fund","Extended","Amount","Description"]
["Example","0001","30100","00",5735,1000,"1110","01000","0000",{"v":2500,"d":"$2,500.00"},{"$f":"IFERROR(VLOOKUP(E40,AC!B:C,2,FALSE),\"\")","v":"Interprogram Svcs/Field Trip"}]
["A.",{"$f":"IF($J13>0,$J13,\"\")","v":"0001"},"     ","00","     ",null,"     ","01000","0000","$     ",{"$f":"IFERROR(VLOOKUP(E41,AC!B:C,2,FALSE),\"\")","v":""}]
["B.",{"$f":"IF($J13>0,$J13,\"\")","v":"0001"},"     ","00","     ","     ","     ","01000","0000","$     ",{"$f":"IFERROR(VLOOKUP(E42,AC!B:C,2,FALSE),\"\")","v":""}]
["C.",{"$f":"IF($J13>0,$J13,\"\")","v":"0001"},"     ","00","     ","     ","     ","01000","0000","$     ",{"$f":"IFERROR(VLOOKUP(E43,AC!B:C,2,FALSE),\"\")","v":""}]
["D.",{"$f":"IF($J13>0,$J13,\"\")","v":"0001"},"     ","00","     ","     ","     ","01000","0000","$     ",{"$f":"IFERROR(VLOOKUP(E44,AC!B:C,2,FALSE),\"\")","v":""}]
["E.",{"$f":"IF($J13>0,$J13,\"\")","v":"0001"},"     ","00","     ","     ","     ","01000","0000","$     ",{"$f":"IFERROR(VLOOKUP(E45,AC!B:C,2,FALSE),\"\")","v":""}]
["F.",{"$f":"IF($J13>0,$J13,\"\")","v":"0001"},"     ","00","     ","     ","     ","01000","0000","$     ",{"$f":"IFERROR(VLOOKUP(E46,AC!B:C,2,FALSE),\"\")","v":""}]
["G.",{"$f":"IF($J13>0,$J13,\"\")","v":"0001"},"     ","00","     ","     ","     ","01000","0000","$     ",{"$f":"IFERROR(VLOOKUP(E47,AC!B:C,2,FALSE),\"\")","v":""}]
[{"$nulls":8},"Total",{"$f":"SUM(J41:J47)","v":0}]
[]
[]
[]
[]
["TO:","Dept.","Resource","Budget Ref","Account","Program","Class","Fund","Extended","Amount","Description"]
["Example","0001","30100","00",1157,1000,"1110","01000","0000",{"v":2500,"d":"$2,500.00"},{"$f":"IFERROR(VLOOKUP(E54,AC!B:C,2,FALSE),\"\")","v":"Classroom Teacher Hrly"}]
["A.",{"$f":"IF($J13>0,$J13,\"\")","v":"0001"},"     ","00",{"$f":"D21","v":0},"     ","     ","01000","0000","$     ",{"$f":"IFERROR(VLOOKUP(E55,AC!B:C,2,FALSE),\"\")","v":"All Accounts"}]
["B.",{"$f":"IF($J13>0,$J13,\"\")","v":"0001"},"     ","00",{"$f":"D22","v":0},"     ","     ","01000","0000","$     ",{"$f":"IFERROR(VLOOKUP(E56,AC!B:C,2,FALSE),\"\")","v":"All Accounts"}]
["C.",{"$f":"IF($J13>0,$J13,\"\")","v":"0001"},"     ","00",{"$f":"D23","v":0},"     ","     ","01000","0000","$     ",{"$f":"IFERROR(VLOOKUP(E57,AC!B:C,2,FALSE),\"\")","v":"All Accounts"}]
["D.",{"$f":"IF($J13>0,$J13,\"\")","v":"0001"},"     ","00",0,"     ","     ","01000","0000","$     ",{"$f":"IFERROR(VLOOKUP(E58,AC!B:C,2,FALSE),\"\")","v":"All Accounts"}]
["E.",{"$f":"IF($J13>0,$J13,\"\")","v":"0001"},"     ","00",0,"     ","     ","01000","0000","$     ",{"$f":"IFERROR(VLOOKUP(E59,AC!B:C,2,FALSE),\"\")","v":"All Accounts"}]
["F.",{"$f":"IF($J13>0,$J13,\"\")","v":"0001"},"     ","00",0,"     ","     ","01000","0000","$     ",{"$f":"IFERROR(VLOOKUP(E60,AC!B:C,2,FALSE),\"\")","v":"All Accounts"}]
["G.",{"$f":"IF($J13>0,$J13,\"\")","v":"0001"},"     ","00",0,"     ","     ","01000","0000","$     ",{"$f":"IFERROR(VLOOKUP(E61,AC!B:C,2,FALSE),\"\")","v":"All Accounts"}]
[{"$nulls":8},"Total",{"$f":"SUM(J55:J61)","v":0}]
{"$rows_empty":8}
["Site Assurances:"]
[null,"Student achievement data and site plan strategies were reviewed and analyzed.  Based on our findings, the SSC has approved modifying our Single Plan for Student Achievement (SPSA) and categorical budget."]
[null,"List date(s) of SSC meeting(s):"]
[null,"A copy of the SSC meeting minutes showing plan and budget discussion item is attached, and discussion/approval item is highlighted (Includes resource, account, and amounts)."]
[null,"A copy of the Detailed Transaction Report is attached and highlighted or actuals query (expense transfers only)."]
[null,"The expense(s) is/are supplemental to district-provided services."]
[]
["Required Signatures:"]
["The undersigned declare under penalty of perjury that the foregoing is true and correct and that these assurances were signed in San Diego, California, on the date(s) indicated."]
[]
[]
[null,"_____________________________________",{"$nulls":5},"_______________________________________________"]
[null,"Principal (Print Name)",null,null,"Date",null,null,"SSC Chairperson (Print Name)",null,null,"Date"]
[]
[]
[null,"_____________________________________",{"$nulls":5},"_______________________________________________"]
[null,"Principal's Signature",null,null,"Date",null,null,"SSC Chairperson's Signature",null,null,"Date"]
[]
[]
[]
[null,"_____________________________________",{"$nulls":5},"____________________________________________"]
[null,"  Date Received by FPMA Department",{"$nulls":5},"  Reviewed by FPMA Resource Teacher"]
[]
[{"$nulls":6},"Approved",null,"________","Denied","_______"]
[]
["         Comments: ",null,"_________________________________________________________________________________________________"]
["________________________________________________________________________________________________________________"]
["________________________________________________________________________________________________________________"]
[]
[null,"Received by Analyst:______________________",{"$nulls":5},"Date Posted:___________________"]
[]
[]
[]
["    Attach this form to appropriate documentation WITH original signatures."]
["Submit all documents to:",null,null,"Financial Planning, Monitoring and Accountability Department"]
[{"$nulls":3},"Eugene Brucker Education Center"]
[{"$nulls":3},"4100 Normal Street, Room 3209"]
[{"$nulls":3},"San Diego, CA 92103-2682"]
[]
["Retain a copy at your site in the SSC Notebook once transfer is approved"]

{"sheet":"Account Descriptions","index":1,"n_rows":1140,"n_cols":2,"rows_kept":1140}
["Account","Long Descr"]
["0000","All Accounts"]
["0341","SD Millennial Tech Magnet"]
["1000","Certificated Salaries"]
["1100","Teachers'  Salaries"]
["1101","Teacher/Childrens Center"]
["1103","Teacher/Clsrm/Preschool"]
["1107","Classroom Teacher"]
["1109","Pull/Out Push In"]
["1113","Teacher/Clsrm/GATE"]
["1114","Enrollment Reserve"]
["1118","Prep Time Teacher Allocation"]
["1128","Resource Specialist"]
["1132","Master/Lead Teacher"]
["1136","Lv of Absence NonPay Status"]
["1147","Clsrm Cert Salry Undist Contra"]
["1150","Teacher Asst/Clsrm/Hrly"]
["1151","Teacher/Childrens Ctr/Hrly"]
["1152","Extended Day Pay Per Unit"]
["1153","Tchr/Clsrm/Preschool/Hrly"]
["1154","Enrollment Reserve"]
["1157","Classroom Teacher Hrly"]
["1158","Techer/Clsrm/Ext Day/ROTC"]
["1159","PullOut/Push in Hrly"]
["1160","Student Teacher Supv"]
["1161","Sub In Lieu of Overformula"]
["1162","Short Term Leave Visiting Tchr"]
["1163","Long Term Leave Visiting Tchr"]
["1164","Teacher/ClsrmSuper/Hrly"]
["1165","Jury & Berevmnt Visiting Tchr"]
["1168","Tchr/Elem/PrepTime/Hrly"]
["1170","Prof&Curriclm DevHrlyClsrmTchr"]
["1171","Hourly Tutorial Assignment"]
["1178","Resource Specialist Hrly"]
["1182","Master Lead Tchr/Hrly"]
["1186","Other Cert/Ret/Consultant/Cl"]
["1187","Adult Ed/Hrly"]
["1189","Retired Clsrm Teacher Hrly"]
["1192","Prof&Curriclm Dev Vist Tchr"]
["1197","Clsrm Cert Hrly Undist/Contra"]
["1200","Certificated Pupil Support Sal"]
["1201","Librarian"]
["1202","Principal/Special Assign/Cert"]
["1203","Vice-Principal/School Site"]
["1204","Vice Principal/Spec Assign/Cer"]
["1206","OCILE Administrator"]
["1208","Charter School Admin/Cert"]
["1210","Counselor"]
["1220","Psychologist"]
["1230","Audiologist/Audiometrist"]
["1240","Nurse"]
["1251","Librarian Hrly"]
["1253","Vice-Principal/Sch. Site/Hrly"]
["1258","Charter School/Admin/Hrly"]
["1260","Counselor Hrly"]
["1262","Nurse/Counslr/Psychologist Sub"]
["1270","Psychologist Hrly"]
["1280","Audiologist/Audiometrist Hrly"]
["1290","Nurse Hrly"]
["1300","Cert Super and Admin Sal"]
["1301","Superintendent"]
["1302","Chief SIO/Depty Superintdnt"]
["1303","Coordinator/Cert"]
["1305","Chief/Exec/Dir/Admin (Rep)"]
["1306","Chief/Exec/Dir/Admin(Non-Rep)"]
["1307","Assistant Director/Cert"]
["1308","School Principal"]
["1309","Vice-Principal"]
["1311","Manager"]
["1313","Other Admin Cert"]
["1315","Admin On Special Assignment"]
["1321","Director"]
["1358","Principal Hrly"]
["1359","Vice-Principal Hrly"]
["1361","Manager/Admin Hrly"]
["1363","Administrator/Cert/Hrl"]
["1365","Admin/Spec Assign/Hrly"]
["1386","Retired Admin Hrly"]
["1401","Librarian/Cert"]
["1451","Librarian/Cert/Hrly"]
["1462","Librarian/Temp Subst"]
["1501","Counselor/Cert"]
["1502","Dist Counselor/Elem/Cert"]
["1503","Head Counselor/Cert"]
["1507","Psychologist/Cert"]
["1509","Psychologist Intern"]
["1551","Counselor/Cert/Hrly"]
["1553","Head Counselor/Cert/Hourly"]
["1557","Psychologist/Cert/Hourly"]
["1559","Psychologist Intern/Hourly"]
["1562","Counselor/Psychologist Subst"]
["1579","Diagnostic Resource Tchr/Hrly"]
["1603","Audiologist/Cert"]
["1605","Audiometrist/Cert"]
["1609","Nurse/Cert"]
["1653","Audiologist/Cert/Hrly"]
["1655","Audiometrist/Cert/Hourly"]
["1659","Nurse/Cert/Hrly"]
["1660","Nurse/Subst/Cert/Temp."]
["1801","Executive Director"]
["1806","Human Resrc Admin Cert"]
["1808","Chancellor Of Instruction"]
["1809","Deputy Superintendent"]
["1812","Assistant Superintendents"]
["1862","Instruc Ldrs/Hrly"]
["1900","Other Certificated Salaries"]
["1901","Principal/Special Asssign/Cert"]
["1904","Site Staff Developers"]
["1906","Certified Transition Worker"]
["1907","Non Clsrm Teacher"]
["1908","Intern Support Provider"]
["1910","Program Specialist"]
["1911","Vice Principal/Spec Assign/Cer"]
["1915","Admin On Special Assignment"]
["1916","District Employee On Loan"]
["1929","Diagnostic Resource Teacher"]
["1955","Teacher/Non-Clsrm/Hrly"]
["1957","Non Clsrm Tchr Hrly"]
["1958","Other Cert Pers/Hrly"]
["1960","Pgm Specialist/Hrly"]
["1964","Site Staff Developer/N-C/Cert/"]
["1965","Admin/Spec Assign/Hrly"]
["1971","NonClsrm Prof&Curriclm DevHrly"]
["1973","NonClsrm Cert Prof Dev/Hrly"]
["1975","Inservice Trainer Hrly"]
["1979","Diagnostic Resource Tchr Hrly"]
["1986","Retired NonClsrm Tchr Hrly"]
["1992","Certificated Stipend"]
["1997","No Clsrm/Cert  Salaries Contra"]
["1998","Undistr Cert Salary"]
["2000","Classified Salaries"]
["2100","Instructional Aide Salaries"]
["2101","Classroom PARAS"]
["2104","Special Ed Technician Clsrm"]
["2109","Instructn Asst Individual Inst"]
["2112","Special Ed Instr Behavior Tech"]
["2115","Behavior Support Specialist"]
["2116","Rehabilitation Specialist"]
["2117","Locker Rm Attend/Clsrm"]
["2118","Behavior Support Assistant"]
["2121","Interpreter Deaf Classroom"]
["2122","Health Svcs Outreach Asst."]
["2123","Community Asst/Classroom"]
["2125","Braille Comp Skls Asst"]
["2126","Classroom OTBS"]
["2127","Childcare Activity Leader"]
["2128","Childcare Activity Asst"]
["2129","Braille Transcriber"]
["2132","Educational Transcriber"]
["2134","Spec Ed Tech Individualized In"]
["2147","Sch To Work Trans Asst"]
["2151","Classroom PARAS Hrly"]
["2152","Instr Asst/Bus/Hrly"]
["2154","Special Ed Tech Clsrm Hrly"]
["2156","Student Helper/Classroom/Hrly"]
["2158","Work Incentive Trainee"]
["2159","Instructn Assist Individual In"]
["2162","Sp Ed Instr Behavior Tech Hrly"]
["2165","Behavior Support Hrly"]
["2167","Locker Rm Attend/Clsrm/Hrly"]
["2168","Paraeducator / Substitutes"]
["2169","Classroom Assistant/Hrly/Chart"]
["2170","Behavior Support Spec/Hrly"]
["2171","Interpreter Deaf Clsrm Hrly"]
["2172","Health Svcs Outreach Asst./Hrl"]
["2173","Community Asst/Clsrm/Hrly"]
["2175","Braille Co Sk Asst/Hrly"]
["2176","Classroom OTBS Hrly"]
["2178","Child Care Act Asst/Hrly/Clsrm"]
["2179","Braille Transcriber / Hrly"]
["2182","Educational Transcriber Hourly"]
["2183","Classroom NonUnion Hrly"]
["2189","Behavior Support Asst/Hrly"]
["2192","College Student Worker/Clsrm"]
["2194","Student Intern/Hrly"]
["2196","Ret/Clsfd/Hr/Exempt/Ret Calc"]
["2197","Sch To Work Trans Asst/Hrly"]
["2200","Classified Support Salary"]
["2201","Custodian"]
["2202","Landscaper  Pesticide Tech"]
["2205","Maintenance OSS"]
["2206","Maintenance OTBS"]
["2207","Mechanic  Technician"]
["2208","Chief Of Staff"]
["2209","Deputy Chief of Staff"]
["2210","Operations Driver"]
["2211","Bus Driver"]
["2212","Bus Monitor"]
["2213","Other Pupil Transprt Prsnl OSS"]
["2215","School Police Sworn"]
["2216","School Police NonSworn"]
["2217","Campus Security Assistant"]
["2218","Controller"]
["2219","Coordinator/Clsfd"]
["2220","Food Service Workers"]
["2222","Assist General Counsel"]
["2223","Director/Clsfd"]
["2226","Employer Outreach Specialist"]
["2228","Schools Architect/Clsfd"]
["2229","General Counsel"]
["2230","Libry  Media & Tech OTBS"]
["2231","Other Support Prsnl PARAS"]
["2232","Other Support Prsnl OTBS"]
["2233","Other Support Prsnl OSS"]
["2235","Health Prsnl OTBS"]
["2236","Health Prsnl PARAS"]
["2237","School Police Chief"]
["2239","Chief Business Officer"]
["2240","Charter School Adm/Clsfd"]
["2241","Classified Supervisor"]
["2242","Action Officer"]
["2243","Independent Policy Analyst"]
["2246","Deputy Chief of Staff"]
["2247","Deputy Superintendent"]
["2248","Operations Specialist"]
["2249","Staff Action Officer"]
["2251","Custodian Hrly"]
["2252","Landscape / Pesticide Hrly"]
["2253","Operations Substitute OSS"]
["2255","Maintenance OSS Hrly"]
["2256","Maintenance OTBS Hrly"]
["2257","Mechanic  Technician Hrly"]
["2260","Operations Driver Hrly"]
["2261","Bus Driver Hrly"]
["2262","Bus Monitor Hrly"]
["2263","Other Pupil Transpt OSS Hrly"]
["2264","Other Transpt NonUnion Hrly"]
["2265","School Police Sworn Hrly"]
["2266","School Police NonSworn Hrly"]
["2267","Campus Security Asst Hrly"]
["2269","Coordinator/Clfsd/Hrly"]
["2270","Food Service Workers Hrly"]
["2276","Employer Outreach Hrly"]
["2280","Libry  Media  Tech OTBS Hly"]
["2281","Other Support Prsnl PARAS Hrly"]
["2282","Other Support Prsnl OTBS Hrly"]
["2285","Health Prsnl OTBS Hrly"]
["2286","Health Prsnl PARAS Hrly"]
["2291","Clsfd Supervisor/Hrly"]
["2298","Operations Specialist/Hrly"]
["2300","Class Super and Admin Sal"]
["2301","Board Members"]
["2302","Deputy Sup, Business"]
["2303","Community Asst/N-C"]
["2304","Braille Typist-Classified"]
["2305","Chief/Exec/Dir/Admin (Non-Rep)"]
["2306","Police Management Sworn"]
["2307","Police Mgmt  Sworn (Non-Rep)"]
["2309","Chief/Exec/Dir/Admin (Rep)"]
["2310","Deputy/Admin/Asst Director"]
["2312","Paraeducator / Nonclassroom"]
["2314","Manager (Non-Rep)"]
["2315","Manager(Rep)"]
["2318","Health Asst"]
["2319","Supervisor/Technical Pers"]
["2320","Supervisor (Rep)"]
["2321","Operations Supervisor"]
["2322","Supervisor Represented SWORN"]
["2323","Supervisor (Non-Rep)"]
["2325","Admin Aide"]
["2328","Supt'S Staff Asst"]
["2339","Safety Coordinator"]
["2343","ROTC Assistant"]
["2345","Pupil Advocate/Central Office"]
["2349","Translator/Interpreter"]
["2351","Construction Mgmt  Suprv Hrly"]
["2352","Mgmt/Suprv Hrly"]
["2353","Community Asst/N-C/Hrly"]
["2354","Braille Typist-Class-Hrly"]
["2355","Chief/Exe/Director/Fin Hrly"]
["2356","Police Management Sworn Hrly"]
["2357","Clerical Pers/Clsfd/Hourly"]
["2358","Clerical Substitute/Clsfd/Hrly"]
["2362","Paraeducator Non Clsrm Hrly"]
["2364","Guidance Asst/Hrly"]
["2365","Technical Pers/Clsfd/Hourly"]
["2366","IA/Hrly/Extratime/Overtime"]
["2368","Health Asst/Hrly"]
["2371","Deaf Interp / Non-Clsrm Hrly"]
["2375","Admin Aide/Hrly"]
["2376","Confidential Personnel/Hrly"]
["2383","Prof Expert N-C Hrly"]
["2393","ROTC Asist/Hrly"]
["2395","Pupil Advocate/Central Off/Hrl"]
["2399","Translator/Interpreter/Hourly"]
["2400","Cleric, Tech, and  Staff Sal"]
["2401","Clerical OTBS"]
["2402","Clerical Confidential"]
["2403","Clerical OSS"]
["2404","Guidance/Attendance Asst"]
["2405","Technical Professional OTBS"]
["2406","Technical Confidential"]
["2407","Clerical/Tech Operations"]
["2408","Dispatcher"]
["2409","Landscaper/Clsfd"]
["2410","Technical Personnel OSS"]
["2411","Truck Driver/Clsfd"]
["2415","Children Ctrs Attendant"]
["2416","Pesticide Technician"]
["2417","Light Equip Oper"]
["2418","Ld Landscape Tech"]
["2419","Mail Driver/Clsfd"]
["2421","Maintenance Pers/Clsfd"]
["2423","Computer Repair Technician"]
["2432","School Police Assistant Chief"]
["2434","Schl Police Office Tech"]
["2435","School Police Lieutenant"]
["2436","School Police Officer"]
["2439","School Comm Svcs Officer"]
["2451","Clerical OTBS Hrly"]
["2452","Clerical Confidentl Hrly"]
["2453","Clerical OSS Hrly"]
["2454","Guidance/Attend Asst Hrly"]
["2455","Tech Professional OTBS Hrly"]
["2456","Clerical Substitute Hrly"]
["2457","Clerical/Tech Operations/Hrly"]
["2458","Schl Pol Dispatcher/Clsfd/Hrly"]
["2459","Landscape/Clsfd/Hourly"]
["2460","Technical Pers OSS Hrly"]
["2461","Truck Driver/Clsfd/Hourly"]
["2465","Children Ctrs Attendant/Hrly"]
["2466","Pesticide Technician/Hrly"]
["2467","Locker Rm Attend/Nclsrm/Hrly"]
["2469","Mail Driver/Clsfd/Hourly"]
["2471","Maintenance Pers/Clsfd/Hourly"]
["2473","Computer Rep Tech/Hrly"]
["2482","School Police Asst Chief/Hrly"]
["2483","Sch Pol/Athletics & Spec Event"]
["2484","Schl Comm Svcs Officer/Hrly"]
["2485","School Police Lieutenant/Hrly"]
["2486","School Police Officer / Hrly"]
["2503","Food Service Clerical/Tech"]
["2505","Food Service Operations"]
["2511","Food Svcs Truck Driver/Clsfd"]
["2553","Food Svcs Mgr/Hourly"]
["2555","Food Svcs Pers/Clsfd/Hourly"]
["2601","School Bus Driver"]
["2602","Extraboard Bus Driver"]
["2605","School Bus Instructor"]
["2606","Bus Monitor"]
["2607","Transportation Supervisor"]
["2612","Transportation Dispatcher"]
["2614","Bus Monitor/SET"]
["2616","Bus Monitor/IBT"]
["2623","Transp Systems Analyst"]
["2624","Transportation Scheduler"]
["2625","Fleet Maintenance Supervisor"]
["2627","Fleet Maintenance Mechanic"]
["2631","Fleet Maintenance Shop"]
["2632","Bus Driver/Fixed Benefits"]
["2633","Bus Driver/Contra"]
["2651","Bus Driver / ET-OT"]
["2652","Bus Driver/Student/Hrly"]
["2654","Extraboard Driver/Hrly"]
["2655","Bus Drvr Instr Hrly"]
["2656","Bus Monitor/Hrly"]
["2657","Transportation Super/Hrly"]
["2662","Transportation Dispatcher/Hrly"]
["2664","Bus Monitor/SET-Hourly"]
["2671","Trans Planner/Hrly"]
["2673","Transp Systems Analyst/Hrly"]
["2674","Scheduler/Hrly"]
["2675","Transp Site Liaison/Hrly"]
["2676","Camp Truck Asst/Hrly"]
["2677","Fleet Maintnce Mechanic/Hrly"]
["2681","Bus Driver Trainee/Hrly"]
["2683","Fleet Mntnce Shop Pers/Hrly"]
["2701","Paraeducator / Nonclassroom"]
["2702","Mental Health Clinician Clsfd"]
["2703","Physical Therapist"]
["2704","Occupational Therapist"]
["2708","Other Classified Support"]
["2709","Occupational Therapy Asst"]
["2710","Adaptive Equipment Specialist"]
["2711","Speech Lang Path Asst."]
["2712","Braille Transcriber"]
["2714","Guidance/Attendance Assistant"]
["2716","Rehabilitation Specialist"]
["2718","Health Assistant"]
["2720","Health Technician"]
["2722","Career Technician"]
["2726","Case Worker"]
["2745","Pupil Advocate/Site"]
["2747","Schl To Work Transition Asst/N"]
["2748","Employer Outreach Specialist"]
["2751","Paraeducator Non Clsrm Hrly"]
["2752","Mntl Hlth Clinician Clsfd Hrly"]
["2753","Physical Therapist/Hrly"]
["2754","Occupational Therapist/Hrly"]
["2758","Other Classified Support/Hrly"]
["2759","Occupational Therapy Asst/Hrly"]
["2760","Adaptive Equipment Specialist/"]
["2762","Braille Transcriber-Hrly"]
["2764","Guidance Assistant/Hrly"]
["2766","Rehabilitation Specialist Hrly"]
["2768","Health Assistant/Hrly"]
["2770","Health Technician/Hrly"]
["2772","Career Technician/Hrly"]
["2776","Case Worker/Hrly"]
["2795","Pupil Advocate/Site/Hrly"]
["2797","Schl To Work Transition Asst/N"]
["2798","Employer Outreach Spec/Hrly"]
["2900","Other Classified Salaries"]
["2901","Classified-Long Term Leave"]
["2905","Other Nonclsrm PARAS"]
["2906","Other Nonclsrm OTBS"]
["2907","Other Nonclsrm OSS"]
["2910","Inspectors"]
["2911","Building Inspector/Clsfd"]
["2912","Landscape Inspector"]
["2913","Campus Security Assistant"]
["2915","Campus Security Assistant"]
["2951","Noon Supervision"]
["2952","Child Care Act Asst/Hrly/Noncl"]
["2953","Other Clsf Support Hrly OTBS"]
["2954","Other Clsf Support Hrly SDEA"]
["2955","Other Nonclsrm PARAS Hrly"]
["2956","Other NonClsrm OTBS Hrly"]
["2957","Other Nonclsrm OSS Hrly"]
["2960","Inspector Hrly"]
["2961","Bldg Inspector /Clsfd/ Hourly"]
["2962","Landscape Inspector/Hourly"]
["2963","Campus Security Assist Hrly"]
["2965","Campus Security Asst Hrly"]
["2969","Project Workability Trainee"]
["2972","Workshop Participt OSS Hrly"]
["2973","Workshop Participt OTBS Hrly"]
["2974","Workshop Participt PARA Hrly"]
["2975","Workshop Participt POA Hrly"]
["2986","Other Clsfd NonUnion Hrly"]
["2997","Classified Salaries Contra"]
["2998","Undistr Clsfd Salary"]
["3000","Employee Benefits"]
["3101","STRS, Certificated Positions"]
["3102","STRS, Classified Positions"]
["3111","Retirement Strs Cert Contra"]
["3112","Strs Payment"]
["3201","PERS, Certificated Positions"]
["3202","PERS, Classified Positions"]
["3211","Retirement Pers Cert Contra"]
["3222","Pers Payment"]
["3225","Retire/PERS/Sworn Officer/Cont"]
["3301","OASDI, Certificated"]
["3302","OASDI, Classified"]
["3401","Health & Welfare, Certificated"]
["3402","Health & Welfare, Classified"]
["3421","Vision Service Plan/Cert"]
["3431","Vision Service Plan/Clsfd"]
["3441","Dental Ins/Cert"]
["3451","Dental Ins/Clsfd"]
["3461","Medical Ins/Cert"]
["3471","Medical Ins/Clsfd"]
["3501","Unemployment Insurance, Certif"]
["3502","Unemployment Insurance, Clsfd"]
["3601","Workers Compensation, Certif"]
["3602","Worker Compensation Classified"]
["3701","OPEB Allocated Cert"]
["3702","OPEB Allocated Class"]
["3751","OPEB Active Emps Cert"]
["3752","OPEB Active Emps Class"]
["3801","PERS Reduction, Certificated"]
["3802","PERS Reduction, Classified"]
["3825","Retire/PERS/SwornOfficer/RECAP"]
["3901","SERP Cert"]
["3902","SERP Class"]
["3921","Long Term Disability -POA only"]
["3922","POA  Retirement Medical Trust"]
["3923","AASD Retirement Medical Trust"]
["3951","Retiree Medical Benefit Cert"]
["3952","Retiree Medical Benefit Class"]
["3985","Life Insurance/Cert"]
["3995","Life Insurance/Clsfd"]
["3996","Beneftis/Contra/Classified"]
["3997","Benefits Salaries Contra"]
["3998","Undistr Employee Benefits"]
["4000","Book & Supplies"]
["4100","Textbooks and Core Curr Mtls"]
["4101","Adopted Textbks & Adopted Matl"]
["4200","Books and Other Reference Mtls"]
["4201","Library Books"]
["4203","Reference Books"]
["4211","SD Reads/Non RIF"]
["4300","Materials and Supplies"]
["4301","Supplies"]
["4302","Custodial Supplies"]
["4303","Furniture <$500"]
["4304","Inservice supplies"]
["4305","Tests In Classroom"]
["4306","Start-Up Supplies Noncapital"]
["4307","Outside Printing/Pmt Supplies"]
["4308","Paper - Supplies"]
["4310","Software Purchase"]
["4313","Student Info Systems/Supplies"]
["4315","Bldg Maintenance Supplies"]
["4316","Other Repair Supplies"]
["4320","Gasoline & Oil"]
["4321","AV  Materials"]
["4322","Math/Science Lab Materials"]
["4325","Library/Media Center Supplies"]
["4330","Inventory Adjustment"]
["4342","P/Y Carryover Unallocated"]
["4360","Instructional/Notes"]
["4370","Athletics Supplies"]
["4372","Furniture/Clsrm/<$500"]
["4374","Math/Science Lab Materials"]
["4375","SIM/New Clsrm Allocation"]
["4380","Office Depot/Contra"]
["4381","OfficeMax"]
["4390","Food Noninstructional Classroo"]
["4400","Equip Non Cap Non Assest Mod"]
["4491","Equipment Non Capitalized"]
["4501","Custodial Supplies"]
["4503","Data Processing Supplies"]
["4505","Printing Supplies Non-Clsrm"]
["4506","Career Dev Program Supplies"]
["4507","Food Svcs. Supplies (Exc. Food"]
["4509","Landscape Supplies"]
["4511","Gasoline & Oil"]
["4513","Inventory Adjustment"]
["4514","Inservice Materials & Supplies"]
["4515","Bldg Maintenance Supplies"]
["4516","Test Supplies NonInstructional"]
["4517","Medical Supplies"]
["4519","Office Supplies"]
["4521","Recreation Supplies"]
["4523","School Police Supplies"]
["4526","Software Non-Educational"]
["4527","Safety Program Supplies"]
["4528","Reception Supplies"]
["4531","Educational Testing Matls"]
["4533","Obsolete Inventory (SIM Only)"]
["4534","Inventory Adjustment (SIM Only"]
["4539","Shipping"]
["4546","Health Education Materials"]
["4561","Start-Up Supplies/Noncapital"]
["4570","Food Noninstructional Nonclass"]
["4572","Furniture/Nonclsrm/<$500"]
["4574","Math/Science Lab Materials"]
["4590","Svcs To Sdccd/Supplies"]
["4596","Vehicle Parts Supplies"]
["4598","Undistr Materials & Supplies"]
["4601","Pupil Transportation Supplies"]
["4603","Equipment Repair/Pupil Bus"]
["4604","Fleet Consummable Liquids"]
["4605","Gasoline & Oil/Pupil Transprtn"]
["4606","Garage Supplies"]
["4607","Fleet Mtnce Tools Replacement"]
["4627","Bus Wash Supplies"]
["4700","Food Service"]
["4711","Food services"]
["4791","Food Svcs Supplies/Cafe Acct"]
["4795","Cost of Sales-Cafeteria Fund"]
["4997","Supplies Contra"]
["5000","Services & Other Operating"]
["5100","Contracted Svcs > $25K"]
["5101","Contract Accreditation Expense"]
["5102","Contract Ambulance"]
["5104","MentalHeath/AB3632>25k"]
["5105","Contracted Health Svcs"]
["5107","Consultant/Professional Dev"]
["5108","MH/Residential Treatment>25K"]
["5109","Contract Evaluation Svcs"]
["5110","SpecEd Tuition NonPubSchl>$25K"]
["5114","Cont Svc/Outdoor Ed/Student Fe"]
["5115","Contracted Trans NonPublicSchl"]
["5118","Contract Official Fees"]
["5122","Contract Tree Trimming"]
["5123","Employee Assistance Program"]
["5125","Academic League"]
["5131","Contract Services Physician"]
["5137","Contracted Student Services"]
["5140","Interest Anticipation Notes"]
["5150","Consultant >$25K"]
["5151","Contract Speech - Langu"]
["5153","Contract Occup Therapy"]
["5154","Contract Phys Therapy"]
["5156","Contract Vision Therapy"]
["5158","MH/Residential Treatment>25K"]
["5160","Contracted Speech Lang>$25K"]
["5161","Contracted Physcl Therapy>$25K"]
["5162","Contracted Vision Therapy>$25K"]
["5163","Contracted Student Service>25K"]
["5165","Contracted Occup Therapy>$25K"]
["5166","Contracted Health Svcs>$25K"]
["5167","Contracted Psychologist>$25K"]
["5170","Contract Trans SchToSch>$25K"]
["5171","Contract FieldTrip NonDist>25K"]
["5172","Contract Trans HomeToSch>$25K"]
["5174","Contract Trans NonPubSchl>$25K"]
["5175","Contract Svcs City Transp>$25K"]
["5177","Contracted Transp Taxi>$25K"]
["5181","Litigation/Settlement>$25K"]
["5198","Other Instr Consultant/Contrac"]
["5200","Travel Conferences"]
["5202","TB Test Reimbursement"]
["5203","Auto Expense Personal Car"]
["5207","Travel Conference"]
["5208","National Bd Cert Applic Fees"]
["5209","Conference Local"]
["5300","Dues and Memberships"]
["5301","District Membership E.C. 35172"]
["5302","Dues - Other"]
["5303","Calif Interscholastic Fed Dues"]
["5304","CIF Entry Fees"]
["5305","City Athletic Conf Fees"]
["5306","Tournament Entry Fees"]
["5400","Insurance"]
["5401","Insurance Other"]
["5405","Self Insured H&W Paid Claims"]
["5406","Self Insured H&W plan Proc Fee"]
["5407","Workers' Comp Claims"]
["5408","Contract Workers Comp Ser"]
["5453","Boiler & Machinery Premium"]
["5454","Calif. Assessment (Tax)"]
["5455","Excess Insurance"]
["5456","Liability Ins Excess"]
["5457","Fire Insurance Premium"]
["5458","Mexico Insurance/Student"]
["5461","Liability/Per Prop (Self-Insur"]
["5462","Umbrella Cover/Athletics"]
["5463","General Liability Ins"]
["5464","Claims Settlement Payments"]
["5465","Self Ins Reimbursement Site"]
["5468","Professional Insurance"]
["5469","Self Ins Equip Replace Theft"]
["5470","Self Ins Fire Loss Deductible"]
["5471","Special Policy/Student/Field T"]
["5473","Intrusion Replacement"]
["5479","OS Claim Liability"]
["5500","Utilities & Housedeeping Svcs"]
["5501","Electric Service"]
["5502","Gas & Electric Service"]
["5505","Gas Service"]
["5517","Water Service"]
["5518","Sewer Service"]
["5521","Water & Sewer Service"]
["5525","Lamp Upkeep/Service"]
["5526","Laundry/Dry Cleaning"]
["5527","Pest Control"]
["5528","Fire Extinguisher Service"]
["5530","Rubbish Disposal"]
["5532","Disposal Of Hazardous Waste"]
["5535","E-Rate Reimbursement"]
["5600","Rental Lease & Noncap Improvem"]
["5602","Student Transport/Personal Car"]
["5604","Contract Trans/ School To Schl"]
["5605","Contract Field Trip/N-Dist Bus"]
["5607","Contract Patrol Services"]
["5609","Contract Trans/Home To School"]
["5610","Charter/Home-to-School"]
["5611","Charter/Fleet Maint."]
["5612","Charter/Field Trips"]
["5613","Lease of Equipment"]
["5614","Lease of Printer/Duplicator"]
["5615","Fueling Services"]
["5616","Contract Media Services"]
["5617","Rental Of Educ Facilities"]
["5619","Rental Of Equipment"]
["5620","Computer Software Exp/Contract"]
["5621","Rental of Facilities"]
["5623","Rental Of Vehicles"]
["5624","Other Education Services"]
["5625","Transit Bus Tokens"]
["5626","Lease/Sites"]
["5627","Bus Passes"]
["5628","Rubbish Disposal Svcs/Contract"]
["5629","Rubbish Disposal Svcs/District"]
["5630","Contract Transp/Taxi"]
["5631","Contract Food Services"]
["5640","Contract Moving Expense"]
["5642","Telephone Repair"]
["5643","Contract Vehicle Repair"]
["5648","Contract Landscape"]
["5649","Contract Custodial Services"]
["5651","Contract Facilities Maint"]
["5652","Off Inventory Port./Oper Costs"]
["5710","Direct Costs for Xfr of Svcs"]
["5711","Interprogram Svcs/Job Cost"]
["5712","Interprogram Svs/Restricted"]
["5713","Interprogram Svcs/Video Svcs"]
["5714","Interprogram Svcs/Evaluation"]
["5715","Interprogram Svcs/Data Process"]
["5716","Interprogram Svcs/Cafeteria"]
["5717","Interprogram Svcs/Custodial"]
["5718","Interprogram Svcs/Assessment"]
["5719","Interprogram Svcs/TMC Services"]
["5720","Interprogram Svcs/Art Dept."]
["5721","Interprogram Svcs/Duplicating"]
["5722","Interprogram Svcs/S.I.P."]
["5723","Interprogram Svcs/Health Svcs"]
["5724","Interprogram Svcs/Discover Cla"]
["5725","Interprogram Svcs/Fleet Mainte"]
["5726","Interprogram Svcs/Postage"]
["5727","Interprogram-Esea Priv Sch-Ins"]
["5728","Interprogram/Private Schools"]
["5729","Interprogram Svcs/Eval/Achieve"]
["5730","Interprogram Svcs/Transportati"]
["5731","Interprogram/Bus Monitors"]
["5732","Interprogram Svcs/SBCP Transfe"]
["5733","Interprogram Svcs/Paper"]
["5734","Interprgm Serv/Dist. Serv."]
["5735","Interprogram Svcs/Field Trip"]
["5736","Interprogram Svcs/Supper"]
["5737","Interprogram Svcs/Prep Kitchen"]
["5740","Interprogram Svcs/Insurance"]
["5742","Interprogram Svcs/SANDAPP"]
["5743","Interprogram Svcs/Bldg Inspect"]
["5744","Interprogram Svcs.Prop MM Dist"]
["5750","Direct Costs for Interfund Svc"]
["5751","Interfund Svcs/Job Cost"]
["5762","Interfund Svcs/Restricted"]
["5763","Interfund Svcs/Video Svcs"]
["5764","Interfund Svcs/Evaluation"]
["5765","Interfund Svcs/Data Processing"]
["5766","Interfund Svcs/Cafeteria"]
["5767","Interfund/Custodial"]
["5768","Interfund Svcs/Assessment"]
["5769","Interfund Svs/TMC Services"]
["5770","Interfund Svcs/Art Dept."]
["5771","Interfund Svcs/Duplicating"]
["5772","Interfund Svcs/S.I.P."]
["5773","Interfund Svcs/Health Svcs"]
["5774","Interfund Svcs/Discover Classe"]
["5775","Interfund Svcs/Fleet Maintenan"]
["5776","Interfund Svcs/Postage"]
["5779","Interfund Svcs/Eval/Achieve/Ac"]
["5780","Interfund Svcs/Transportation"]
["5781","Interfund Svcs/Bus Monitors"]
["5782","Interfund Svcs/SBCP Transfer"]
["5783","Interfund - Paper"]
["5785","Interfund Svcs/Field Trip"]
["5790","Interfund Svcs/Insurance"]
["5791","Interfund Svcs/Prop MM Distrib"]
["5792","Interfund Svcs/Charter School"]
["5793","Interfund Vscs/Bldg Inspector"]
["5794","Interfund Svcs/Prop MM Distrib"]
["5799","Interfund/Charter School"]
["5800","Consult & contract Svcs <$25K"]
["5801","Consultants <=$25K"]
["5802","Teacher Credentials"]
["5803","Employment Advertising"]
["5804","MentalHealth/AB3632<25K"]
["5805","Fingerprint Processing"]
["5806","Special Tax Assessment"]
["5808","MH/Residential Treatment<25K"]
["5809","Tuition for students"]
["5810","SpecEd Tuition NonPubSch<=$25K"]
["5811","Physical & Psychological Exami"]
["5812","Contract Computer Services"]
["5813","Printing - Outside Vendor"]
["5815","Advertising"]
["5817","Professional Publications"]
["5818","Plaques/Retirees"]
["5821","Tuition/Classified"]
["5822","Legal Advert (Exc Capital Outl"]
["5823","Litigation/Settlement Expense"]
["5824","Payment/Non-Use Of Sites"]
["5826","Audit Expense"]
["5828","Election Expense"]
["5830","Law Books & Periodicals"]
["5831","Early Retirement"]
["5832","State/Federal Relations Consul"]
["5833","Contract Clerical"]
["5835","Other Operating Expenses"]
["5838","Judgements"]
["5840","Interest Expense"]
["5841","Software License"]
["5842","License And Fees"]
["5845","Bad Dept Expense"]
["5846","Contract Vehicle Washing"]
["5847","Contract Financial Consult"]
["5851","Spec Ed Tuition/Non-Public Sch"]
["5852","Spec Ed Transp/Non-Public Schl"]
["5853","Contracted Svcs Less Than $25K"]
["5854","Contracted Vehicle Repair"]
["5855","Fingerprint Processing"]
["5856","Workers' Comp Claims"]
["5857","Advertising"]
["5858","Contracted Services Election"]
["5859","Admission/Entry Tickets"]
["5860","Contracted Speech Lang<$25K"]
["5861","Contracted Physcl Therapy<$25K"]
["5862","Contracted Vision Therapy<$25K"]
["5863","Contracted Student Srvice<=25K"]
["5864","Physical & Psychological Exami"]
["5865","Contracted Occup Therapy<$25K"]
["5866","Contracted Health Svcs<$25K"]
["5867","Contracted Psychologist<$25K"]
["5870","Contracted Trans SchToSch<=25K"]
["5871","Contract FieldTripNonDist<=25K"]
["5872","Contracted Trans HmToSch<=$25K"]
["5873","Contracted Trans Charter"]
["5874","Contract Trans NonPubSch<=$25K"]
["5875","Transit Bus Tokens & Passes"]
["5876","Student Transport Personal Car"]
["5877","Contracted Transp Taxi<=$25K"]
["5878","Contracted Trans NonPublicSchl"]
["5879","Med & Dent Fund Reserve"]
["5880","Contracted Svcs Legal"]
["5881","Litigation/Settlement<$25K"]
["5892","Tution Cert"]
["5898","Offset For Budget Changes"]
["5899","Reversal 6/30 Incurred But Not"]
["5900","Communications"]
["5903","Data Com-Clearing Acct"]
["5905","Tele Site Pd-Clearing Acct"]
["5907","Cellular-Clearing Acct"]
["5912","E-Rate Reimbursement"]
["5913","Telephone Data com Lines"]
["5914","Telephone Service Request"]
["5915","Telephone Svc - Additional"]
["5916","Telephone Svc - Standard Alloc"]
["5917","Telephone Service Cell Phones"]
["5918","Telephone Service/Pagers"]
["5919","Alarm & Emergency Com"]
["5920","Postage Expense"]
["5921","Other Communications"]
["5923","Internet Services"]
["5997","Services Contra"]
["5998","Contracted Svcs - Unallocated"]
["5999","Garnishment Expense"]
["6000","Capital Outlay"]
["6100","Sites and Improvement of Sites"]
["6103","Site Acquis/Other Costs"]
["6105","Site Acquis/Reloc Allow"]
["6107","Site Appraisal Fees"]
["6109","Site Dev/Utilities Svcs"]
["6110","Site/Environmentl Impact Study"]
["6113","Demolition On New Sites"]
["6115","Site Improvement"]
["6117","Site Purchase"]
["6121","Off-Site Development"]
["6123","On-Site Development/General"]
["6128","Fuel Storage Tanks"]
["6129","Construction Testing"]
["6200","Bldgs and Improvement of Bldgs"]
["6201","Buildings/New Constr"]
["6203","Building Inspection Costs"]
["6204","Project Management Costs"]
["6205","Construction Management Costs"]
["6206","Program Management Costs"]
["6207","Buildings/Improvement To"]
["6208","Building Acquisition"]
["6209","Bldg Plans/Architect Fees"]
["6212","Capital Fees/Other"]
["6213","Bldg Plans/DSA Fees"]
["6214","Capital Contracted Svcs/Other"]
["6215","Bldg Plans/Other Costs"]
["6218","Purchase/Trailers"]
["6219","Buildings/Other Costs"]
["6221","Bldgs/Reconstruction"]
["6222","Undistributed Interest"]
["6223","Construction Legal Settlement"]
["6225","Buildings/Undistributed"]
["6230","LeaseLeaseBack"]
["6242","Lease/Portables"]
["6243","Portable Classrooms/Purchase"]
["6245","Playground Equipment"]
["6248","Prop MM Portable Repair"]
["6249","Portable Moves"]
["6250","Interim Housing"]
["6300","Books/Media for New  Libraries"]
["6321","Library Matls New Schl/Maj Exp"]
["6400","Equipment"]
["6412","SIS Hardware/Software"]
["6421","Library Equip/Furniture (Capit"]
["6431","Food Svcs Equip (Cap)"]
["6455","Permanent Equip (Lease Purchas"]
["6488","Lease/Office Equipment"]
["6489","Vehicles/Replacement"]
["6491","Permanent Equipment (Capital)"]
["6492","Equipment/Telephone System"]
["6494","Data Systems Equipment"]
["6495","Vehicles, New (Cap)"]
["6497","Capital Expenditure Contra"]
["6498","Improvement to Dist Vehicles"]
["6500","Equipment Replacement"]
["6505","Equip Replacement/Clsrm Equip"]
["6517","Equip Replacement/Pupil Bus"]
["6519","Equip Replacement"]
["6528","Equip Repl/EDP Hardware"]
["6533","Capital Equip/Replace/Theft"]
["6900","Depreciation Expense"]
["6998","Capital Outlay - Unallocated"]
["7000","Other Outgo"]
["7130","State Special Schools"]
["7140","Account 7140"]
["7141","Tuition, Exc Cost To Districts"]
["7142","Tuition, Excess Costs To COE"]
["7143","Tuition, Exc Costs to JOA"]
["7211","TOP-Through Revenues to Dist"]
["7212","TOP-Through Revenues to COE"]
["7213","TOP-Through Revenues to JPA's"]
["7221","Xfers of Appor to Districts"]
["7222","Xfers of Appor to COE"]
["7223","Xfers of Appor to JPA's"]
["7242","Account 7242"]
["7280","Xfers of Prop Tax for Charter"]
["7281","All Other Transfers to Dist"]
["7282","All Other Transfers To County"]
["7283","All Other Transfers to JPA's"]
["7299","Other Transfers Out to Others"]
["7310","Indirect Cost / Interprogram"]
["7344","Indirect Cost Prior Year"]
["7350","Indirect Cost / Interfund"]
["7355","Indirect/Interfund - Prior Yrs"]
["7370","Transfers of Dir Support Costs"]
["7432","State School Bldg Fund Pymt"]
["7433","Bond Redemptions"]
["7434","Bond Interest Serv Chrgs"]
["7435","Repay of Proceeds from Bonds"]
["7436","Payments for Acqui of Property"]
["7438","Debt Service Interest"]
["7439","Other Debt Serv Pymts"]
["7611","General to Child Development"]
["7612","General and Special Reserve"]
["7613","State Bldg to All Other Funds"]
["7614","Bond Int and Redemp to General"]
["7615","From Gnrl, Spcl Res, and Bldg"]
["7616","General to Cafeteria"]
["7617","Para/Medical Bene Fund"]
["7619","Other Interfund Transfers Out"]
["7621","OSS/Medical Bene Fund"]
["7622","OTBS/Medical Bene Fund"]
["7623","POA/Medical Bene Fund"]
["7625","AASD Medical Benefit Fund"]
["7626","GF To Liability Ins Fund"]
["7627","GF To Property Ins Fund"]
["7632","State School Building Repay"]
["7639","Other Debt Service - Principal"]
["7641","Long Term Loan Repayment"]
["7651","Xfers from Reorganized Dist"]
["7662","Market Exchange Reserve"]
["7699","All Other Financing Uses"]
["7998","Other Outlay - Obsolete"]
["8011","Revenue Limit State Aid - Cy"]
["8012","Education Protection Account"]
["8015","Chrtr Schl Gen Pur Ent-St Aid"]
["8019","Revenue Limit State Aid - Py"]
["8021","Homeowners Exemption"]
["8022","Timber Yield Tax"]
["8029","Oth Subventions/In-Lieu Taxes"]
["8041","Secured Rolls Tax"]
["8042","Unsecured Roll Taxes"]
["8043","Prior Years Taxes"]
["8044","Supplemental Taxes"]
["8045","Ed Rev Augmentation Fund-Eraf"]
["8046","Supl Ed Rev Agmnt Fund-SERAF"]
["8047","Community Redevelopment Funds"]
["8048","Penalties/Interest-Delinq Tax"]
["8070","Receipts from County BOS"]
["8081","Royalties and Bonuses"]
["8082","Other In-Lieu Taxes"]
["8089","Less: Non-Rev Limit (50%) Adj"]
["8091","Rev Limit Transfers-Current Yr"]
["8092","PERS Reduction Transfer"]
["8096","Trsfr to Chrtr Schl Lieu of Pr"]
["8097","Property Taxes Transfers"]
["8099","Rev Limit Transfers-Prior Year"]
["8110","Maint/Oper (Public Law 81-874)"]
["8181","Special Education-Entitlement"]
["8182","Special Education-Discre Grant"]
["8220","Child Nutrition Pgms - Federal"]
["8221","Donated Food Commodities"]
["8260","Forest Reserve Funds"]
["8270","Flood Control Funds"]
["8280","US Wildlife Reserve Funds"]
["8281","FEMA"]
["8285","Interagency Cont Between LEA'S"]
["8287","Pass-Thru Rev From Fed Sources"]
["8290","All Other Federal Revenue"]
["8311","Other State Apportionments-Cy"]
["8319","Other State Apportionments-Py"]
["8425","Year-Round School Incentive"]
["8434","Class Size Reduction, Gr K-3"]
["8435","Class Size Reduction, Gr 9-12"]
["8480","Chrtr Schl Categorical Blk Grt"]
["8520","Child Nutrition Pgms - State"]
["8530","Child Development Apports"]
["8540","Deferred Maintenance Allowance"]
["8545","School Facilities Apports"]
["8550","Mandated Cost Reimbursements"]
["8560","State Lottery Revenue"]
["8571","Voted Indebt Levies/Homeowners"]
["8572","Other Subventions/In-Lieu Tax"]
["8575","ORL, Homeowners Exemption"]
["8576","ORL, Other Subeventions"]
["8587","Pass-Thru Rev From St Sources"]
["8590","All Other State Revenues"]
["8591","Charter School Cat Block Grant"]
["8611","Voted Indebt Levies/Secured"]
["8612","Voted Indebt Levies/Unsecured"]
["8613","Voted Indebt Levies/Prior Year"]
["8614","Voted Indebt Levies/Supl Tax"]
["8615","ORL, Secured Roll"]
["8616","ORL, Unsecured Roll"]
["8617","ORL, Prior Years Taxes"]
["8618","ORL, Supplemental Taxes"]
["8621","Parcel Taxes"]
["8622","Other Non-Ad Valorem Taxes"]
["8625","Comm Rdv Funds Not Sub Rev Lim"]
["8629","Pen/Int-Delinq Non-Rev Lmt Tax"]
["8631","Sale Of Equipment And Supplies"]
["8632","Sales of Publications"]
["8634","Food Service Sales"]
["8639","All Other Sales"]
["8650","Leases And Rentals"]
["8660","Interest"]
["8662","Net Inc/(Dec) in FV Investment"]
["8671","Adult Education Fees"]
["8672","Nonresident Students Fees"]
["8673","Child Development Parent Fees"]
["8674","In-District Premiums/Contrib"]
["8675","Transportation Fees From Indiv"]
["8677","Interagency Srvcs Between LEAs"]
["8681","Mitigation/Developer Fees"]
["8689","All Other Fees And Contracts"]
["8691","Plus: Misc Non-Rev Lim(50%)Adj"]
["8697","Pass-Thru Rev From Local Sourc"]
["8699","All Other Local Revenue"]
["8710","Tuition"]
["8780","Chrtr Schl Funding In-Lieu Ptx"]
["8781","All Other Transfers From Dists"]
["8782","All Other Trans From Cty Ofces"]
["8783","All Other Transfers from JPA's"]
["8791","Transfers Of Apport From Distr"]
["8792","Transfer Of Apport From Cty Of"]
["8793","Xfers of Appor from JP Agree"]
["8799","Other Trnsfs In From All Other"]
["8911","General to Child Development"]
["8912","Between General and Spcl Res"]
["8913","All Funds to State Bldg"]
["8914","Bond Int and Redemp to General"]
["8915","Interfund Transfer In fr Funds"]
["8916","Cafeteria From General"]
["8919","Other Auth Interfund Trsf In"]
["8931","Emergency Apportionments"]
["8951","Proceeds from Sale of Bonds"]
["8953","Pro Frm Sale/Lse Pur Land/Bldg"]
["8961","County School Building Aid"]
["8965","Trsfr Frm Fnd Lapsed/Reorg Dis"]
["8971","Proceeds From Cert Of Particap"]
["8972","Proceeds From Capital Leases"]
["8973","Proceeds From Lease Rev Bonds"]
["8979","All Other Financing Sources"]
["8980","Contrib From Unrest Revenues"]
["8990","Contrib From Restricted Revenu"]
["8995","Categorical Block Grant Trnsfr"]
["8997","Transfer of Restricted Balance"]
["8998","Categorical Flexible Transfers"]
["9000","Reserves/Expenses"]
["9035","Reserve Account"]
["9110","Cash In County Treasury"]
["9111","Fair Value Adj/Cash In Cty Tre"]
["9115","Cash Balancing"]
["9117","Payroll Cash"]
["9120","Cash In Bank(s)"]
["9130","Revolving Cash Account"]
["9135","Cash With Fiscal Agent/Trustee"]
["9140","Cash Collect Awaiting Deposit"]
["9150","Investments"]
["9200","Accounts Receivable"]
["9210","Accts Recvble-YR End Accruals"]
["9290","Due From Grantor Governments"]
["9310","Due From Other Funds"]
["9320","Stores"]
["9321","Inventory - PPO"]
["9330","Prepaid Expenditures/Expenses"]
["9340","Other Current Assets"]
["9410","Land"]
["9420","Improvement Of Sites"]
["9425","Accum Depr-Improvement Of Site"]
["9430","Buildings"]
["9435","Accum Depr-Buildings"]
["9436","Building Improvements"]
["9437","Accumulated Depreciation"]
["9440","Equipment"]
["9445","Accum Depr-Equipment"]
["9450","Work In Progress"]
["9490","Deferred Outflows of Resources"]
["9501","Accounts Payable - Sys Gen"]
["9502","Accts Payable-Software License"]
["9503","Accts Payable-Purchase Cards"]
["9505","Accts Payable-Charter Payroll"]
["9506","Accts Pay-Charter Property Tax"]
["9507","Accts Payable-Charter Other"]
["9508","AcctsPayable-Charter Inventory"]
["9509","Accts Payable-Charter Fees&Ser"]
["9510","Accounts Payable  Year-end Acc"]
["9511","Accts Payable Claim Liability"]
["9512","Accounts Pay - Ind Cont St W/H"]
["9513","Accounts Payable - Use Tax"]
["9514","AP-Payroll Deduction Employer"]
["9515","AP - Payroll Deductions"]
["9516","Accounts Pay - Trust Fund"]
["9517","Payroll Liability"]
["9520","Accounts Pay - Warehouse"]
["9590","Due To Grantor Governments"]
["9610","Due To Other Funds"]
["9620","Due To Stdnt Grps/Oth Agencies"]
["9640","Current Loans"]
["9650","Unearned Revenue"]
["9661","Gen Obligation Bond Payable"]
["9662","State Schl Bldg Loan Payable"]
["9664","Other Postemployment Benefits"]
["9665","Compensated Absences Payable"]
["9666","COPs Payable"]
["9667","Capital Leases Payable"]
["9668","Lease Revenue Bonds Payable"]
["9669","Other General Long-Term Debt"]
["9690","Deferred Inflows of Resources"]
["9711","Reserve For Revolving Cash"]
["9712","Reserve For Stores"]
["9713","Reserve For Prepaid Expend."]
["9719","Reserve For All Others"]
["9720","Reserve For Encumbrances"]
["9730","General Reserve"]
["9740","Restricted Balance"]
["9770","Desig For Economic Uncert"]
["9775","Desig Unreal Gains Inv/Csh Cty"]
["9780","Other Designations"]
["9789","Reserve For Economic Uncert"]
["9790","Undesignated/Unappropriated"]
["9791","Beg Fund Balance/Revenue"]
["9792","Beg Fund Balance/Expense"]
["9793","Audit Adjustments"]
["9795","Other Restatements"]
["9796","Net Capital Asset"]
["9810","Estimated Income"]
["9820","Budget Appropriations"]
["9830","Budget Encumbrance Control"]
["9850","Budget Expenditure Control"]
["9895","Projected Actuals Control"]
["9980","Amount Available"]
["9989","Amount To Be Provided"]
["9990","Investment In Gen Fixed Assets"]
["9994","Payroll Suspense - Custom"]
["9995","Payroll Suspense"]
["9996","Offset TF, Y4, ZJ, ZO for CRC"]
["9999","Account Not In Use"]

{"sheet":"Categorical Guidelines","index":2,"n_rows":30,"n_cols":4,"rows_kept":30,"merged":[[1,0,24,0],[1,1,24,1],[19,3,24,3],[25,0,29,0],[25,1,29,1],[25,3,29,3]]}
["Resource","Resource Description","Sample Allowable Expenses","Sample Non-Allowable Expenses"]
[30100,"Title I Basic","·        Equipment –directly related to support student achievement in the Common Core State Standards.","·     Administrative Positions including Vice Principals and Dean of Students"]
[null,null,"·        Instructional and Intervention materials above the core","·     Clerical positions"]
[null,null,"·        Travel for professional development (must be pre-approved).","·     Network Tech-unless working directly with students on intervention programs and/or activities."]
[null,null,"·        Conferences for professional development. ","·     Non-academic field trips"]
[null,null,"·        Field Trips (in support of common core instruction).","·     Copier contract"]
[null,null,"·        Substitutes to provide release time for professional development (for classroom teachers).","·     Campus Security/ Noon Duty"]
[null,null,"·        Parent Involvement","·     Meals"]
[null,null,"·        Extended Day/Year Programs","·     Athletic equipment"]
[null,null,"·        Additional FTE above district allocation including:","·     Medical supplies"]
[null,null,"­    Nurse","·      Custodial supplies"]
[null,null,"­    Counselor","·     Building improvement"]
[null,null,"­    AVID teachers and tutors","·     Incentives"]
[null,null,"­    Class size reduction teachers"]
[null,null,"­    Push-in Instruction teacher"]
[null,null,"­    Subject-specific resource teachers"]
[null,null,"­    Classroom teachers who provide qualitatively different instruction to underperforming students."]
[null,null,"­    Prep teachers (only if used to release teachers for professional development)."]
[null,null,"­    Parent Academic Liaison"]
[null,null,"·        Hourly time including:"]
[null,null,"­    Classroom teachers and classified staff working directly in supplemental services and/or programs for students "]
[null,null,"­    Nursing Time"]
[null,null,"­    Counselor Time"]
[null,null,"·        Pupil Advocate"]
[null,null,"·        Assistants (guidance, classroom, library, etc.) If working directly with students on intervention programs or activities. This MUST be clearly articulated in the SPSA."]
[30103,"Title I Parent Involvement","·     Materials for parent meetings and training","·     Same as for Title I Basic."]
[null,null,"·     Conferences and workshops for parents"]
[null,null,"·     Presentations for educational programs to parents or consultants"]
[null,null,"·     Parent communication materials"]
[null,null,"·     Light refreshments.  (Meals are not allowable)"]

{"sheet":"Sheet2","index":3,"n_rows":5,"n_cols":1,"rows_kept":5,"hidden":true}
["Maximizing Instructional Time"]
["Closing the Gap"]
["Professional Development"]
["Socio-Emotional Supports"]
["Parent Engagement"]

{"sheet":"RTBA","index":4,"n_rows":1343,"n_cols":11,"rows_kept":1343,"hidden":true}
["DeptID",null,"Long Description","RT","RT1","RT3","RT4","BA","BA 2","BA3","BA4"]
[0,"0000","All Cost Centers Combined",0,"","MJ","Mary Johnson: 619-725-5611",0,"","TL","Tom Liberto: 619-725-7093"]
[1,"0001","Elementary/Interim",0,"","DG","Dario Gutierrez: 619-725-7785",0,"","SK","Sarah Kidder: 619-725-7413"]
[2,"0002","Elementary/Personnel",0,"",null,null,0,"","HS","Harry Sullivan: 619-725-7624"]
[3,"0003","Adams Elementary","MJ","Mary Johnson: 619-725-5611",null,null,"BG","Bich Ha Groll: 619-725-7788","BG2","Bernize Gil: 619-725-7633"]
[4,"0004","Alcott Elementary","DG","Dario Gutierrez: 619-725-7785",null,null,"TJ","Tammy Jackson: 619-725-7640","BG","Bich Ha Groll: 619-725-7788"]
[5,"0005","Andersen Elementary",0,"",null,null,0,"","DA","Dawn Ahlers: 619-725-7621"]
[6,"0006","Adams Annex",0,"",null,null,0,"","DG","Debbie Glanz: 619-725-7619"]
[7,"0007","Angier Elementary","DG","Dario Gutierrez: 619-725-7785",null,null,"GS","Gustav Swanson: 619-725-7616","GY","Gordon Yorke: 619-725-7643"]
[8,"0008","Audeo",0,"",null,null,0,"","GS","Gustav Swanson: 619-725-7616"]
[9,"0009","Audubon K-8","DG","Dario Gutierrez: 619-725-7785",null,null,"RC","Rita Clegg: 619-725-7644","JC","Jeffrey Clemons: 619-725-7783"]
[10,"0010","e3 Civic High",0,"",null,null,0,"","JM2","Jennifer Marrone (858-627-7332)"]
[11,"0011","Baker Elementary","DG","Dario Gutierrez: 619-725-7785",null,null,"JC","Jeffrey Clemons: 619-725-7783","JM3","Joy Milus: 619-725-7787"]
[12,"0012","Balboa Park Program",0,"",null,null,0,"","LP","Lilibeth Puentespina: 619-725-7660"]
[13,"0013","Balboa Elementary","DG","Dario Gutierrez: 619-725-7785",null,null,"JC","Jeffrey Clemons: 619-725-7783","LB","Linda Balvaneda: 619-725-7660"]
[14,"0014","Old Town Academy K-8 Charter",0,"",null,null,0,"","MH","Maurice Hernandez: 619-725-7647"]
[15,"0015","Bandini Elementary",0,"",null,null,0,"","MS","Michelle Speegle: 619-725-7634"]
[16,"0016","Elevate Elementary CS",0,"",null,null,0,"","PH","Paula Hall: 619-725-7639"]
[17,"0017","Barnard Elementary","DG","Dario Gutierrez: 619-725-7785",null,null,"JM3","Joy Milus: 619-725-7787","RC","Rita Clegg: 619-725-7644"]
[18,"0018","Learning Choice Academy",0,"",null,null,0,"","TJ","Tammy Jackson: 619-725-7640"]
[19,"0019","Linda Vista Annex",0,"",null,null,0,"","TV","Tania Valero: 619-725-7638"]
[21,"0021","Bay Park Elementary","DG","Dario Gutierrez: 619-725-7785",null,null,"TJ","Tammy Jackson: 619-725-7640","TR","Tenya Rushing: 619-725-7637"]
[22,"0022","High Tech Elementary",0,"",null,null,0,"","NR","Not Required"]
[23,"0023","Bayview Terrace Elementary",0,"",null,null,0,""]
[24,"0024","Ingenuity Charter School",0,"",null,null,0,""]
[25,"0025","Beale Elementary",0,"",null,null,0,""]
[26,"0026","King-Chavez Arts Academy",0,"",null,null,0,""]
[27,"0027","Benchley",0,"",null,null,0,""]
[28,"0028","Thrive Public School",0,"",null,null,0,""]
[29,"0029","Bird Rock Elementary","MJ","Mary Johnson: 619-725-5611",null,null,"RC","Rita Clegg: 619-725-7644"]
[31,"0031","Birney Elementary","MJ","Mary Johnson: 619-725-5611",null,null,"GY","Gordon Yorke: 619-725-7643"]
[33,"0033","Boone Elementary","DG","Dario Gutierrez: 619-725-7785",null,null,"RC","Rita Clegg: 619-725-7644"]
[35,"0035","Breen",0,"",null,null,0,""]
[37,"0037","Brooklyn Elementary",0,"",null,null,0,""]
[39,"0039","Burbank Elementary","MJ","Mary Johnson: 619-725-5611",null,null,"PH","Paula Hall: 619-725-7639"]
[41,"0041","Cabrillo Elementary","DG","Dario Gutierrez: 619-725-7785",null,null,"JM3","Joy Milus: 619-725-7787"]
[43,"0043","Cadman Elementary","DG","Dario Gutierrez: 619-725-7785",null,null,"TJ","Tammy Jackson: 619-725-7640"]
[44,"0044","King-Chavez Primary Academy",0,"",null,null,0,""]
[45,"0045","Camp Cuyamaca",0,"",null,null,0,""]
[47,"0047","Camp Denver C. Fox",0,"",null,null,0,""]
[49,"0049","Camp Maston",0,"",null,null,0,""]
[51,"0051","Camp Palomar",0,"",null,null,0,""]
[52,"0052","Jola Community Charter",0,"",null,null,0,""]
[55,"0055","Carson Elementary","DG","Dario Gutierrez: 619-725-7785",null,null,"GS","Gustav Swanson: 619-725-7616"]
[56,"0056","Childrens Conservation Academy",0,"",null,null,0,""]
[57,"0057","Carver Elementary","MJ","Mary Johnson: 619-725-5611",null,null,"LP","Lilibeth Puentespina: 619-725-7660"]
[58,"0058","Central/Cal-Trans Project",0,"",null,null,0,""]
[59,"0059","Central Elementary","MJ","Mary Johnson: 619-725-5611",null,null,"BG","Bich Ha Groll: 619-725-7788"]
[60,"0060","Chavez Elementary","DG","Dario Gutierrez: 619-725-7785",null,null,"JC","Jeffrey Clemons: 619-725-7783"]
[61,"0061","Chesterton Elementary","DG","Dario Gutierrez: 619-725-7785",null,null,"GS","Gustav Swanson: 619-725-7616"]
[62,"0062","Cherokee Point Elementary","MJ","Mary Johnson: 619-725-5611",null,null,"BG","Bich Ha Groll: 619-725-7788"]
[63,"0063","Chollas/Mead Elementary","DG","Dario Gutierrez: 619-725-7785",null,null,"JC","Jeffrey Clemons: 619-725-7783"]
[65,"0065","Clay Elementary","MJ","Mary Johnson: 619-725-5611",null,null,"LP","Lilibeth Puentespina: 619-725-7660"]
[66,"0066","Civita Property",0,"",null,null,0,""]
[67,"0067","Cleveland Elementary",0,"",null,null,0,""]
[68,"0068","King-Chavez Athletics Academy",0,"",null,null,0,""]
[71,"0071","Crocket Site",0,"",null,null,0,""]
[73,"0073","Crown Point Elementary","DG","Dario Gutierrez: 619-725-7785",null,null,"JM3","Joy Milus: 619-725-7787"]
[74,"0074","Iftin Charter",0,"",null,null,0,""]
[75,"0075","Cubberley Elementary","DG","Dario Gutierrez: 619-725-7785",null,null,"GS","Gustav Swanson: 619-725-7616"]
[76,"0076","Magnolia Science Academy",0,"",null,null,0,""]
[77,"0077","Curie Elementary","DG","Dario Gutierrez: 619-725-7785",null,null,"HS","Harry Sullivan: 619-725-7624"]
[78,"0078","Dailard Elementary","MJ","Mary Johnson: 619-725-5611",null,null,"TJ","Tammy Jackson: 619-725-7640"]
[79,"0079","Darnall E-Charter",0,"",null,null,0,""]
[80,"0080","Dana","DG","Dario Gutierrez: 619-725-7785",null,null,"JM3","Joy Milus: 619-725-7787"]
[82,"0082","King-Chavez Preparatory",0,"",null,null,0,""]
[83,"0083","Decatur Elementary",0,"",null,null,0,""]
[85,"0085","Dewey Elementary","DG","Dario Gutierrez: 619-725-7785",null,null,"JM3","Joy Milus: 619-725-7787"]
[86,"0086","Dingeman Elementary","MJ","Mary Johnson: 619-725-5611",null,null,"HS","Harry Sullivan: 619-725-7624"]
[87,"0087","Doyle Elementary","DG","Dario Gutierrez: 619-725-7785",null,null,"HS","Harry Sullivan: 619-725-7624"]
[89,"0089","Edison Elementary","MJ","Mary Johnson: 619-725-5611",null,null,"BG","Bich Ha Groll: 619-725-7788"]
[90,"0090","Scripps Elementary","MJ","Mary Johnson: 619-725-5611",null,null,"HS","Harry Sullivan: 619-725-7624"]
[91,"0091","Emerson/Bandini Elementary","MJ","Mary Johnson: 619-725-5611",null,null,"GY","Gordon Yorke: 619-725-7643"]
[92,"0092","Einstein Academy",0,"",null,null,0,""]
[93,"0093","Encanto Elementary","DG","Dario Gutierrez: 619-725-7785",null,null,"JC","Jeffrey Clemons: 619-725-7783"]
[95,"0095","Euclid Elementary","MJ","Mary Johnson: 619-725-5611",null,null,"LP","Lilibeth Puentespina: 619-725-7660"]
[99,"0099","Farnum Center-Site Demolished",0,"",null,null,0,""]
[103,"0103","Field Elementary","MJ","Mary Johnson: 619-725-5611",null,null,"MS","Michelle Speegle: 619-725-7634"]
[105,"0105","Fletcher Elementary","DG","Dario Gutierrez: 619-725-7785",null,null,"GS","Gustav Swanson: 619-725-7616"]
[107,"0107","Florence Elementary","MJ","Mary Johnson: 619-725-5611",null,null,"GY","Gordon Yorke: 619-725-7643"]
[109,"0109","Forward Elementary",0,"",null,null,0,""]
[111,"0111","Foster Elementary","MJ","Mary Johnson: 619-725-5611",null,null,"TJ","Tammy Jackson: 619-725-7640"]
[113,"0113","Franklin Elementary","MJ","Mary Johnson: 619-725-5611",null,null,"BG","Bich Ha Groll: 619-725-7788"]
[115,"0115","Freese Elementary","DG","Dario Gutierrez: 619-725-7785",null,null,"RC","Rita Clegg: 619-725-7644"]
[117,"0117","Fremont Elementary",0,"",null,null,0,""]
[118,"0118","So.Ca. Connections Acad Chrtr",0,"",null,null,0,""]
[119,"0119","Fulton K-8","DG","Dario Gutierrez: 619-725-7785",null,null,"RC","Rita Clegg: 619-725-7644"]
[121,"0121","Gage Elementary","MJ","Mary Johnson: 619-725-5611",null,null,"TJ","Tammy Jackson: 619-725-7640"]
[122,"0122","Gage/Adams Annex",0,"",null,null,0,""]
[123,"0123","Bethune K-8","DG","Dario Gutierrez: 619-725-7785",null,null,"RC","Rita Clegg: 619-725-7644"]
[124,"0124","Garfield Elementary","MJ","Mary Johnson: 619-725-5611",null,null,"PH","Paula Hall: 619-725-7639"]
[125,"0125","Zamorano Elementary","DG","Dario Gutierrez: 619-725-7785",null,null,"RC","Rita Clegg: 619-725-7644"]
[126,"0126","City Arts Academy Charter Sch",0,"",null,null,0,""]
[127,"0127","Grant K-8","MJ","Mary Johnson: 619-725-5611",null,null,"GY","Gordon Yorke: 619-725-7643"]
[128,"0128","Golden Hill K-8","MJ","Mary Johnson: 619-725-5611",null,null,"GY","Gordon Yorke: 619-725-7643"]
[129,"0129","Grantville Elementary",0,"",null,null,0,""]
[130,"0130","Joyner Elementary","MJ","Mary Johnson: 619-725-5611",null,null,"BG","Bich Ha Groll: 619-725-7788"]
[131,"0131","Green Elementary","MJ","Mary Johnson: 619-725-5611",null,null,"TJ","Tammy Jackson: 619-725-7640"]
[132,"0132","Fay",0,"",null,null,0,""]
[133,"0133","Salk Elementary",0,"",null,null,0,""]
[134,"0134","Hage Elementary","DG","Dario Gutierrez: 619-725-7785",null,null,"DA","Dawn Ahlers: 619-725-7621"]
[135,"0135","Hamilton Elementary","MJ","Mary Johnson: 619-725-5611",null,null,"BG","Bich Ha Groll: 619-725-7788"]
[136,"0136","Hancock Elementary","DG","Dario Gutierrez: 619-725-7785",null,null,"MH","Maurice Hernandez: 619-725-7647"]
[137,"0137","Rodriguez Elementary","MJ","Mary Johnson: 619-725-5611",null,null,"GY","Gordon Yorke: 619-725-7643"]
[139,"0139","Hardy Elementary","MJ","Mary Johnson: 619-725-5611",null,null,"TJ","Tammy Jackson: 619-725-7640"]
[141,"0141","Hawthorne Elementary","MJ","Mary Johnson: 619-725-5611",null,null,"MS","Michelle Speegle: 619-725-7634"]
[143,"0143","Hearst Elementary","MJ","Mary Johnson: 619-725-5611",null,null,"TJ","Tammy Jackson: 619-725-7640"]
[144,"0144","Holly Drive Leadership Academy",0,"",null,null,0,""]
[147,"0147","Holmes Elementary","DG","Dario Gutierrez: 619-725-7785",null,null,"TJ","Tammy Jackson: 619-725-7640"]
[148,"0148","Hoover Cluster 5Th Gr",0,"",null,null,0,""]
[149,"0149","Horton Elementary","DG","Dario Gutierrez: 619-725-7785",null,null,"JC","Jeffrey Clemons: 619-725-7783"]
[150,"0150","Ibarra Elementary","MJ","Mary Johnson: 619-725-5611",null,null,"LP","Lilibeth Puentespina: 619-725-7660"]
[153,"0153","Fay Elementary","MJ","Mary Johnson: 619-725-5611",null,null,"LP","Lilibeth Puentespina: 619-725-7660"]
[155,"0155","Jefferson Elementary","MJ","Mary Johnson: 619-725-5611",null,null,"GY","Gordon Yorke: 619-725-7643"]
[156,"0156","Jerabek Elementary","MJ","Mary Johnson: 619-725-5611",null,null,"HS","Harry Sullivan: 619-725-7624"]
[157,"0157","Johnson Elementary","DG","Dario Gutierrez: 619-725-7785",null,null,"JC","Jeffrey Clemons: 619-725-7783"]
[159,"0159","Jones Elementary","DG","Dario Gutierrez: 619-725-7785",null,null,"GS","Gustav Swanson: 619-725-7616"]
[160,"0160","King-Chavez Acad of Excellence",0,"",null,null,0,""]
[161,"0161","Juarez Elementary","DG","Dario Gutierrez: 619-725-7785",null,null,"GS","Gustav Swanson: 619-725-7616"]
[162,"0162","Kimbrough Elementary","MJ","Mary Johnson: 619-725-5611",null,null,"PH","Paula Hall: 619-725-7639"]
[163,"0163","Keiller Elementary",0,"",null,null,0,""]
[164,"0164","Kennedy Elementary",0,"",null,null,0,""]
[165,"0165","Knox Elementary",0,"",null,null,0,""]
[166,"0166","Kumeyaay Elementary","DG","Dario Gutierrez: 619-725-7785",null,null,"MH","Maurice Hernandez: 619-725-7647"]
[167,"0167","Lafayette Elementary","MJ","Mary Johnson: 619-725-5611",null,null,"MS","Michelle Speegle: 619-725-7634"]
[169,"0169","La Jolla Elementary","MJ","Mary Johnson: 619-725-5611",null,null,"RC","Rita Clegg: 619-725-7644"]
[170,"0170","Language Academy","MJ","Mary Johnson: 619-725-5611",null,null,"TJ","Tammy Jackson: 619-725-7640"]
[171,"0171","Pacific View Leadership Elementary","DG","Dario Gutierrez: 619-725-7785",null,null,"RC","Rita Clegg: 619-725-7644"]
[172,"0172","America's Finest",0,"",null,null,0,""]
[173,"0173","Linda Vista Elementary","DG","Dario Gutierrez: 619-725-7785",null,null,"GS","Gustav Swanson: 619-725-7616"]
[175,"0175","Lindbergh/Schweitzer Elem","MJ","Mary Johnson: 619-725-5611",null,null,"MS","Michelle Speegle: 619-725-7634"]
[176,"0176","Fanno Academy",0,"",null,null,0,""]
[177,"0177","Logan K-8","MJ","Mary Johnson: 619-725-5611",null,null,"PH","Paula Hall: 619-725-7639"]
[179,"0179","Loma Portal Elementary","DG","Dario Gutierrez: 619-725-7785",null,null,"JM3","Joy Milus: 619-725-7787"]
[181,"0181","Longfellow K-8","MJ","Mary Johnson: 619-725-5611",null,null,"TJ","Tammy Jackson: 619-725-7640"]
[184,"0184","Low Elementary Site",0,"",null,null,0,""]
[185,"0185","Perkins K-8","MJ","Mary Johnson: 619-725-5611",null,null,"GY","Gordon Yorke: 619-725-7643"]
[186,"0186","Department 0186 (086 error)",0,"",null,null,0,""]
[187,"0187","Macdowell",0,"",null,null,0,""]
[188,"0188","Macdowell Elementary",0,"",null,null,0,""]
[193,"0193","Marcy Elementary",0,"",null,null,0,""]
[195,"0195","Marshall Elementary","MJ","Mary Johnson: 619-725-5611",null,null,"LP","Lilibeth Puentespina: 619-725-7660"]
[197,"0197","Marvin Elementary","MJ","Mary Johnson: 619-725-5611",null,null,"TJ","Tammy Jackson: 619-725-7640"]
[199,"0199","Mason Elementary","DG","Dario Gutierrez: 619-725-7785",null,null,"DA","Dawn Ahlers: 619-725-7621"]
[200,"0200","Jonas Salk Elementary","DG","Dario Gutierrez: 619-725-7785",null,null,"DA","Dawn Ahlers: 619-725-7621"]
[201,"0201","Hickman Elementary","DG","Dario Gutierrez: 619-725-7785",null,null,"DA","Dawn Ahlers: 619-725-7621"]
[203,"0203","McKinley Elementary","MJ","Mary Johnson: 619-725-5611",null,null,"PH","Paula Hall: 619-725-7639"]
[205,"0205","Mead Elementary",0,"",null,null,0,""]
[206,"0206","Miller Elementary","DG","Dario Gutierrez: 619-725-7785",null,null,"MH","Maurice Hernandez: 619-725-7647"]
[208,"0208","North Park Elementary",0,"",null,null,0,""]
[210,"0210","Miramar Ranch Elementary","MJ","Mary Johnson: 619-725-5611",null,null,"HS","Harry Sullivan: 619-725-7624"]
[211,"0211","Mission Bch Admin Ctr-see 5211",0,"",null,null,0,""]
[212,"0212","Nubia Leadership Academy",0,"",null,null,0,""]
[213,"0213","Available Department",0,"",null,null,0,""]
[214,"0214","Tubman Village",0,"",null,null,0,""]
[215,"0215","Normal Heights Elementary","MJ","Mary Johnson: 619-725-5611",null,null,"BG","Bich Ha Groll: 619-725-7788"]
[216,"0216","New School 2",0,"",null,null,0,""]
[217,"0217","Ericson Elementary","DG","Dario Gutierrez: 619-725-7785",null,null,"DA","Dawn Ahlers: 619-725-7621"]
[218,"0218","Nye Elementary","DG","Dario Gutierrez: 619-725-7785",null,null,"JC","Jeffrey Clemons: 619-725-7783"]
[219,"0219","Sandburg Elementary","DG","Dario Gutierrez: 619-725-7785",null,null,"DA","Dawn Ahlers: 619-725-7621"]
[220,"0220","Museum School",0,"",null,null,0,""]
[221,"0221","Health Sciences High",0,"",null,null,0,""]
[222,"0222","Arroyo Paseo High",0,"",null,null,0,""]
[223,"0223","Oak Park Elementary","MJ","Mary Johnson: 619-725-5611",null,null,"LP","Lilibeth Puentespina: 619-725-7660"]
[225,"0225","Ocean Beach Elementary","DG","Dario Gutierrez: 619-725-7785",null,null,"JM3","Joy Milus: 619-725-7787"]
[227,"0227","Pacific Beach Elementary","DG","Dario Gutierrez: 619-725-7785",null,null,"JM3","Joy Milus: 619-725-7787"]
[229,"0229","Paradise Hills Elementary","DG","Dario Gutierrez: 619-725-7785",null,null,"TR","Tenya Rushing: 619-725-7637"]
[230,"0230","Rosa Parks Elementary","MJ","Mary Johnson: 619-725-5611",null,null,"BG","Bich Ha Groll: 619-725-7788"]
[231,"0231","Rosa Parks Annex 338",0,"",null,null,0,""]
[232,"0232","Department 0232 (235 error)",0,"",null,null,0,""]
[235,"0235","Penn Elementary","DG","Dario Gutierrez: 619-725-7785",null,null,"TR","Tenya Rushing: 619-725-7637"]
[236,"0236","Porter Elementary","DG","Dario Gutierrez: 619-725-7785",null,null,"JC","Jeffrey Clemons: 619-725-7783"]
[237,"0237","Perry Elementary","DG","Dario Gutierrez: 619-725-7785",null,null,"RC","Rita Clegg: 619-725-7644"]
[238,"0238","Promise Elementary",0,"",null,null,0,""]
[239,"0239","Porter Elementary School",0,"",null,null,0,""]
[243,"0243","Rolando Park Elementary","MJ","Mary Johnson: 619-725-5611",null,null,"LP","Lilibeth Puentespina: 619-725-7660"]
[247,"0247","Ross Elementary","DG","Dario Gutierrez: 619-725-7785",null,null,"GS","Gustav Swanson: 619-725-7616"]
[249,"0249","Rowan Elementary","MJ","Mary Johnson: 619-725-5611",null,null,"BG","Bich Ha Groll: 619-725-7788"]
[250,"0250","Garfield Elementary 99/2000",0,"",null,null,0,""]
[251,"0251","Scripps Elementary",0,"",null,null,0,""]
[252,"0252","Garfield Annex 99/2000",0,"",null,null,0,""]
[253,"0253","Sequoia Elementary","MJ","Mary Johnson: 619-725-5611",null,null,"MS","Michelle Speegle: 619-725-7634"]
[254,"0254","McGill School of Success",0,"",null,null,0,""]
[255,"0255","Sessions Elementary","DG","Dario Gutierrez: 619-725-7785",null,null,"JM3","Joy Milus: 619-725-7787"]
[256,"0256","San Diego Cooperative",0,"",null,null,0,""]
[259,"0259","Sherman Elementary","MJ","Mary Johnson: 619-725-5611",null,null,"PH","Paula Hall: 619-725-7639"]
[260,"0260","Old Town Historical/Cult Pgm",0,"",null,null,0,""]
[261,"0261","Silver Gate Elementary","DG","Dario Gutierrez: 619-725-7785",null,null,"JM3","Joy Milus: 619-725-7787"]
[262,"0262","Palomar/Outdoor R/H Rel Educ",0,"",null,null,0,""]
[263,"0263","Spreckels Elementary","DG","Dario Gutierrez: 619-725-7785",null,null,"HS","Harry Sullivan: 619-725-7624"]
[267,"0267","King Elementary",0,"",null,null,0,""]
[269,"0269","Sunset View Elementary","DG","Dario Gutierrez: 619-725-7785",null,null,"JM3","Joy Milus: 619-725-7787"]
[271,"0271","Schweitzer Elementary",0,"",null,null,0,""]
[274,"0274","Tierrasanta Elementary","DG","Dario Gutierrez: 619-725-7785",null,null,"MH","Maurice Hernandez: 619-725-7647"]
[275,"0275","Archive",0,"",null,null,0,""]
[277,"0277","Toler Elementary","DG","Dario Gutierrez: 619-725-7785",null,null,"TJ","Tammy Jackson: 619-725-7640"]
[279,"0279","Torrey Pines Elementary","MJ","Mary Johnson: 619-725-5611",null,null,"RC","Rita Clegg: 619-725-7644"]
[280,"0280","KIPP Adelante",0,"",null,null,0,""]
[283,"0283","Valencia Park Elementary","DG","Dario Gutierrez: 619-725-7785",null,null,"JC","Jeffrey Clemons: 619-725-7783"]
[284,"0284","Vista Grande Elementary","DG","Dario Gutierrez: 619-725-7785",null,null,"MH","Maurice Hernandez: 619-725-7647"]
[285,"0285","Walker Elementary","DG","Dario Gutierrez: 619-725-7785",null,null,"DA","Dawn Ahlers: 619-725-7621"]
[287,"0287","Washington Elementary","MJ","Mary Johnson: 619-725-5611",null,null,"PH","Paula Hall: 619-725-7639"]
[289,"0289","Webster Elementary","DG","Dario Gutierrez: 619-725-7785",null,null,"JC","Jeffrey Clemons: 619-725-7783"]
[291,"0291","Wegeforth Elementary","DG","Dario Gutierrez: 619-725-7785",null,null,"GS","Gustav Swanson: 619-725-7616"]
[293,"0293","Benchley/Weinberger Elementary","MJ","Mary Johnson: 619-725-5611",null,null,"TJ","Tammy Jackson: 619-725-7640"]
[295,"0295","Whitman Elementary","MJ","Mary Johnson: 619-725-5611",null,null,"MS","Michelle Speegle: 619-725-7634"]
[296,"0296","Knox Middle","DG","Dario Gutierrez: 619-725-7785",null,null,"JC","Jeffrey Clemons: 619-725-7783"]
[297,"0297","Whittier K-12","MJ","Mary Johnson: 619-725-5611",null,null,"TV","Tania Valero: 619-725-7638"]
[299,"0299","Wiggin School",0,"",null,null,0,""]
[301,"0301","Secondary/Personnel",0,"",null,null,0,""]
[302,"0302","Bell Middle","DG","Dario Gutierrez: 619-725-7785",null,null,"TR","Tenya Rushing: 619-725-7637"]
[303,"0303","Challenger Middle","DG","Dario Gutierrez: 619-725-7785",null,null,"DA","Dawn Ahlers: 619-725-7621"]
[304,"0304","Correia Middle","DG","Dario Gutierrez: 619-725-7785",null,null,"JM3","Joy Milus: 619-725-7787"]
[305,"0305","Einstein Academy Middle",0,"",null,null,0,""]
[306,"0306","High Tech Middle",0,"",null,null,0]
[307,"0307","Kroc Middle",0,"",null,null,0,""]
[308,"0308","Marshall Middle","MJ","Mary Johnson: 619-725-5611",null,null,"HS","Harry Sullivan: 619-725-7624"]
[309,"0309","Hale (closed)",0,"",null,null,0,""]
[310,"0310","Creative Performing & Med Arts","MJ","Mary Johnson: 619-725-5611",null,null,"MS","Michelle Speegle: 619-725-7634"]
[311,"0311","Lewis Middle","MJ","Mary Johnson: 619-725-5611",null,null,"TJ","Tammy Jackson: 619-725-7640"]
[312,"0312","Mann Middle School","MJ","Mary Johnson: 619-725-5611",null,null,"LP","Lilibeth Puentespina: 619-725-7660"]
[313,"0313","Marston Middle","DG","Dario Gutierrez: 619-725-7785",null,null,"TJ","Tammy Jackson: 619-725-7640"]
[314,"0314","Bandini Youth Services Center",0,"",null,null,0,""]
[315,"0315","Memorial Academy",0,"",null,null,0,""]
[316,"0316","Montgomery Middle","DG","Dario Gutierrez: 619-725-7785",null,null,"GS","Gustav Swanson: 619-725-7616"]
[317,"0317","Muirlands Middle","MJ","Mary Johnson: 619-725-5611",null,null,"RC","Rita Clegg: 619-725-7644"]
[318,"0318","SD Global Vision Middle Acad",0,"",null,null,0,""]
[319,"0319","O'Farrell Community",0,"",null,null,0,""]
[320,"0320","Pacific Beach Middle","DG","Dario Gutierrez: 619-725-7785",null,null,"JM3","Joy Milus: 619-725-7787"]
[321,"0321","Pershing Middle","MJ","Mary Johnson: 619-725-5611",null,null,"TJ","Tammy Jackson: 619-725-7640"]
[322,"0322","Clark Middle","MJ","Mary Johnson: 619-725-5611",null,null,"BG","Bich Ha Groll: 619-725-7788"]
[323,"0323","Cortez Hill Academy",0,"",null,null,0,""]
[324,"0324","Roosevelt International Middle","MJ","Mary Johnson: 619-725-5611",null,null,"GY","Gordon Yorke: 619-725-7643"]
[325,"0325","Standley Middle","DG","Dario Gutierrez: 619-725-7785",null,null,"HS","Harry Sullivan: 619-725-7624"]
[326,"0326","Taft Middle","DG","Dario Gutierrez: 619-725-7785",null,null,"GS","Gustav Swanson: 619-725-7616"]
[327,"0327","De Portola Middle","DG","Dario Gutierrez: 619-725-7785",null,null,"MH","Maurice Hernandez: 619-725-7647"]
[328,"0328","Wangenheim Middle","DG","Dario Gutierrez: 619-725-7785",null,null,"DA","Dawn Ahlers: 619-725-7621"]
[329,"0329","Wilson Middle","MJ","Mary Johnson: 619-725-5611",null,null,"BG","Bich Ha Groll: 619-725-7788"]
[330,"0330","Memorial Scholars & Athletes","MJ","Mary Johnson: 619-725-5611",null,null,"GY","Gordon Yorke: 619-725-7643"]
[331,"0331","ALBA","DG","Dario Gutierrez: 619-725-7785",null,null,"BG","Bich Ha Groll: 619-725-7788"]
[332,"0332","Clairemont High","DG","Dario Gutierrez: 619-725-7785",null,null,"TR","Tenya Rushing: 619-725-7637"]
[333,"0333","Connections",0,"",null,null,0,""]
[334,"0334","Crawford High","MJ","Mary Johnson: 619-725-5611",null,null,"TR","Tenya Rushing: 619-725-7637"]
[335,"0335","Gompers High",0,"",null,null,0,""]
[336,"0336","Henry High","MJ","Mary Johnson: 619-725-5611",null,null,"TR","Tenya Rushing: 619-725-7637"]
[337,"0337","Wings/You Als Sec",0,"",null,null,0,""]
[338,"0338","Hoover High","MJ","Mary Johnson: 619-725-5611",null,null,"TR","Tenya Rushing: 619-725-7637"]
[339,"0339","High Tech High",0,"",null,null,0,""]
[340,"0340","Kearny High",0,"",null,null,0,""]
[341,"0341","Millennial Tech Middle","DG","Dario Gutierrez: 619-725-7785",null,null,"JC","Jeffrey Clemons: 619-725-7783"]
[342,"0342","La Jolla High","MJ","Mary Johnson: 619-725-5611",null,null,"TR","Tenya Rushing: 619-725-7637"]
[343,"0343","Innovation Middle","MJ","Mary Johnson: 619-725-5611",null,null,"MS","Michelle Speegle: 619-725-7634"]
[344,"0344","Lincoln High",0,"",null,null,0,""]
[345,"0345","Lincoln Youth Services Center",0,"",null,null,0,""]
[346,"0346","Madison High","MJ","Mary Johnson: 619-725-5611",null,null,"DG","Debbie Glanz: 619-725-7619"]
[347,"0347","Gompers Preparatory Academy",0,"",null,null,0,""]
[348,"0348","Preuss School UCSD",0,"",null,null,0,""]
[349,"0349","Mira Mesa High","DG","Dario Gutierrez: 619-725-7785",null,null,"DG","Debbie Glanz: 619-725-7619"]
[350,"0350","Mission Bay High","DG","Dario Gutierrez: 619-725-7785",null,null,"DG","Debbie Glanz: 619-725-7619"]
[351,"0351","Twain Satellite/Morse",0,"",null,null,0,""]
[352,"0352","Morse High","DG","Dario Gutierrez: 619-725-7785",null,null,"TR","Tenya Rushing: 619-725-7637"]
[353,"0353","High Tech Middle Media Arts",0,"",null,null,0,""]
[354,"0354","Point Loma High","DG","Dario Gutierrez: 619-725-7785",null,null,"DG","Debbie Glanz: 619-725-7619"]
[355,"0355","University City High","DG","Dario Gutierrez: 619-725-7785",null,null,"DG","Debbie Glanz: 619-725-7619"]
[356,"0356","San Diego High",0,"",null,null,0,""]
[357,"0357","Serra High","DG","Dario Gutierrez: 619-725-7785",null,null,"DG","Debbie Glanz: 619-725-7619"]
[358,"0358","Youth Master Chorale",0,"",null,null,0,""]
[359,"0359","Scripps Ranch High","MJ","Mary Johnson: 619-725-5611",null,null,"DG","Debbie Glanz: 619-725-7619"]
[360,"0360","Magnolia Science Academy 2",0,"",null,null,0,""]
[361,"0361","Garfield High","MJ","Mary Johnson: 619-725-5611",null,null,"BG","Bich Ha Groll: 619-725-7788"]
[362,"0362","Twain High","MJ","Mary Johnson: 619-725-5611",null,null,"BG","Bich Ha Groll: 619-725-7788"]
[363,"0363","TRACE West",0,"",null,null,0,""]
[364,"0364","Riley/New Dawn","MJ","Mary Johnson: 619-725-5611",null,null,"TV","Tania Valero: 619-725-7638"]
[365,"0365","Keiller Leadership Academy",0,"",null,null,0,""]
[366,"0366","Charter School of San Diego",0,"",null,null,0,""]
[367,"0367","Farb Middle","DG","Dario Gutierrez: 619-725-7785",null,null,"MH","Maurice Hernandez: 619-725-7647"]
[368,"0368","San Diego SCPA","MJ","Mary Johnson: 619-725-5611",null,null,"BG","Bich Ha Groll: 619-725-7788"]
[369,"0369","Muir","MJ","Mary Johnson: 619-725-5611",null,null,"TJ","Tammy Jackson: 619-725-7640"]
[370,"0370","San Diego Adult School",0,"",null,null,0,""]
[373,"0373","SEEC Alternative Sites",0,"",null,null,0,""]
[375,"0375","Downtown Library School",0,"",null,null,0,""]
[376,"0376","Urban Discovery Academy",0,"",null,null,0,""]
[377,"0377","Innovations Academy",0,"",null,null,0,""]
[378,"0378","Parentally Placed Private Schl",0,"",null,null,0,""]
[379,"0379","King-Chavez Community High",0,"",null,null,0,""]
[380,"0380","Preschool Language Group",0,"",null,null,0,""]
[382,"0382","Home & Hosp/Transition Support","DG","Dario Gutierrez: 619-725-7785",null,null,"MH","Maurice Hernandez: 619-725-7647"]
[385,"0385","Stars",0,"",null,null,0,""]
[386,"0386","ILS Hospital",0,"",null,null,0,""]
[388,"0388","Pacific American Academy",0,"",null,null,0,""]
[389,"0389","Nonpublic Schools Enrollment",0,"",null,null,0,""]
[390,"0390","Magnolia Science Academy 3",0,"",null,null,0,""]
[392,"0392","TRACE Center City",0,"",null,null,0,""]
[393,"0393","TRACE East",0,"",null,null,0,""]
[394,"0394","Trace - Mesa",0,"",null,null,0,""]
[395,"0395","Mt. Everest Academy","MJ","Mary Johnson: 619-725-5611",null,null,"BG","Bich Ha Groll: 619-725-7788"]
[396,"0396","Garfield High School/Ind Study",0,"",null,null,0,""]
[397,"0397","Twain Satellite/Marston",0,"",null,null,0,""]
[398,"0398","Twain Main Campus",0,"",null,null,0,""]
[399,"0399","You/C.A.S.",0,"",null,null,0,""]
[400,"0400","Ocean Discovery",0,"",null,null,0,""]
[418,"0418","Adult Learning Center",0,"",null,null,0,""]
[432,"0432","Learning Center North",0,"",null,null,0,""]
[436,"0436","Spec Ed Learning Centers",0,"",null,null,0,""]
[438,"0438","New Dawn",0,"",null,null,0,""]
[439,"0439","Del Sol Academy",0,"",null,null,0,""]
[441,"0441","TRACE Martin Luther King",0,"",null,null,0,""]
[442,"0442","TRACE Linda Vista Rec Ctr",0,"",null,null,0,""]
[443,"0443","TRACE Mira Mesa Senior Ctr",0,"",null,null,0,""]
[444,"0444","TRACE Gompers",0,"",null,null,0,""]
[445,"0445","TRACE Ray & Joan Kroc Ctr",0,"",null,null,0,""]
[448,"0448","TRACE MV (Macy's Hm Store)",0,"",null,null,0,""]
[474,"0474","TRACE Tierrasanta",0,"",null,null,0,""]
[475,"0475","TRACE Liberty Station",0,"",null,null,0,""]
[479,"0479","TRACE","MJ","Mary Johnson: 619-725-5611",null,null,"TV","Tania Valero: 619-725-7638"]
[480,"0480","Center for Positive Change",0,"",null,null,0,""]
[482,"0482","TRACE ECC",0,"",null,null,0,""]
[483,"0483","New Dawn Diploma/Mesa",0,"",null,null,0,""]
[484,"0484","TRACE Miramar",0,"",null,null,0,""]
[485,"0485","TRACE South",0,"",null,null,0,""]
[487,"0487","TRACE PB Center",0,"",null,null,0,""]
[489,"0489","TRACE Embarcadero",0,"",null,null,0,""]
[490,"0490","TRACE SDSU",0,"",null,null,0,""]
[500,"0500","San Diego Metro Career & Tech","MJ","Mary Johnson: 619-725-5611",null,null,"BG","Bich Ha Groll: 619-725-7788"]
[501,"0501","Attendance Intervention Center",0,"",null,null,0,""]
[502,"0502","Star Academy",0,"",null,null,0,""]
[503,"0503","East Village High","MJ","Mary Johnson: 619-725-5611",null,null,"BG","Bich Ha Groll: 619-725-7788"]
[504,"0504","iHigh Virtual Academy","MJ","Mary Johnson: 619-725-5611",null,null,"BG","Bich Ha Groll: 619-725-7788"]
[510,"0510","Crawford High Ed Complex",0,"",null,null,0,""]
[511,"0511","Invention & Design Edu Academy",0,"",null,null,0,""]
[512,"0512","Multimedia Visual Arts",0,"",null,null,0,""]
[513,"0513","Health,Fitness&Medical Science",0,"",null,null,0,""]
[514,"0514","School of Law & Business",0,"",null,null,0,""]
[520,"0520","Kearny High Ed Complex",0,"",null,null,0,""]
[521,"0521","Digital Media,Comm, & Design",0,"",null,null,0,""]
[522,"0522","Health,Environm Science & Tech",0,"",null,null,0,""]
[523,"0523","Global Ldrshp & Internat Busin",0,"",null,null,0,""]
[524,"0524","Stanley E. Foster Constr Tech",0,"",null,null,0,""]
[580,"0580","San Diego High Ed Complex",0,"",null,null,0,""]
[581,"0581","School of Internationa Studies",0,"",null,null,0,""]
[582,"0582","Learn,Explore,Achieve,Discover",0,"",null,null,0,""]
[583,"0583","Comm,Investigation in a Multi",0,"",null,null,0,""]
[584,"0584","School of Business",0,"",null,null,0,""]
[585,"0585","Media,Visual & Perform Arts",0,"",null,null,0,""]
[586,"0586","School of Science & Technology",0,"",null,null,0,""]
[635,"0635","Children's Day Treatment",0,"",null,null,0,""]
[636,"0636","Harborside",0,"",null,null,0,""]
[637,"0637","Marian High School",0,"",null,null,0,""]
[638,"0638","Hillcrest School",0,"",null,null,0,""]
[648,"0648","Reaching Forth Christian Acad",0,"",null,null,0,""]
[655,"0655","Cornerstone Christian",0,"",null,null,0,""]
[657,"0657","Grace Lutheran",0,"",null,null,0,""]
[659,"0659","Reformation Lutheran",0,"",null,null,0,""]
[660,"0660","Childrens Child Care Ctr",0,"",null,null,0,""]
[668,"0668","Waldorf School Of Sd",0,"",null,null,0,""]
[672,"0672","Alba Com Day Schl-Barrio Logan",0,"",null,null,0,""]
[673,"0673","Alba Com Day Schl-Chollas",0,"",null,null,0,""]
[674,"0674","Alba Com Day Schl-Lnda Vsta",0,"",null,null,0,""]
[675,"0675","TRACE University",0,"",null,null,0,""]
[676,"0676","Alba Com Day Schl-Skyline",0,"",null,null,0,""]
[677,"0677","Fairbrook Elementary",0,"",null,null,0,""]
[681,"0681","Marcy/Adolescent Day Treatment",0,"",null,null,0,""]
[683,"0683","Diagnostic Learning Center",0,"",null,null,0,""]
[687,"0687","La Jolla Learning Institute",0,"",null,null,0,""]
[705,"0705","Polinski (LCI)",0,"",null,null,0,""]
[706,"0706","Comp Adolscnt Treat Cntr",0,"",null,null,0,""]
[707,"0707","Vista SD Resdntl Treat Ctr",0,"",null,null,0,""]
[708,"0708","Randolph Leadership Academy",0,"",null,null,0,""]
[709,"0709","Cabrillo (LCI)",0,"",null,null,0,""]
[711,"0711","St. Vincent De Paul Center",0,"",null,null,0,""]
[712,"0712","High Tech Elementary Explorer",0,"",null,null,0,""]
[713,"0713","Taylor Academy",0,"",null,null,0,""]
[714,"0714","Garfield HSDP",0,"",null,null,0,""]
[715,"0715","Madison HSDP",0,"",null,null,0,""]
[716,"0716","Twain-Main/HSDP",0,"",null,null,0,""]
[719,"0719","Mira Mesa HSDP",0,"",null,null,0,""]
[721,"0721","Henry HSDP",0,"",null,null,0,""]
[722,"0722","Hoover HSDP",0,"",null,null,0,""]
[723,"0723","Kearny HSDP",0,"",null,null,0,""]
[724,"0724","Lincoln HSDP",0,"",null,null,0,""]
[725,"0725","ALBA HSDP",0,"",null,null,0,""]
[726,"0726","Mission Bay HSDP",0,"",null,null,0,""]
[727,"0727","Morse HSDP",0,"",null,null,0,""]
[728,"0728","Point Loma HSDP",0,"",null,null,0,""]
[729,"0729","San Diego HSDP",0,"",null,null,0,""]
[731,"0731","Emmanuel Arts",0,"",null,null,0,""]
[737,"0737","Christ The Cornerstone Luth",0,"",null,null,0,""]
[738,"0738","The Bridge",0,"",null,null,0,""]
[739,"0739","The Creative Learning Academy",0,"",null,null,0,""]
[740,"0740","Torah High Schools ofSan Diego",0,"",null,null,0,""]
[741,"0741","S.T.E.P.S.",0,"",null,null,0,""]
[742,"0742","Clairemont Mesa Christian",0,"",null,null,0,""]
[743,"0743","School Age Learning Adventure",0,"",null,null,0,""]
[744,"0744","Casa de San Juan",0,"",null,null,0,""]
[745,"0745","OZ South",0,"",null,null,0,""]
[746,"0746","County Island School",0,"",null,null,0,""]
[747,"0747","Gompers Middle",0,"",null,null,0,""]
[748,"0748","LCI K-12",0,"",null,null,0,""]
[750,"0750","Mercy Hospital",0,"",null,null,0,""]
[751,"0751","Mesa Vista Hospital",0,"",null,null,0,""]
[752,"0752","Door Of Hope",0,"",null,null,0,""]
[753,"0753","High Tech Media Arts",0,"",null,null,0,""]
[754,"0754","Childs Primary School",0,"",null,null,0,""]
[755,"0755","Unified Day School (LCI)",0,"",null,null,0,""]
[757,"0757","S.T.E.P.S. (Elementary)",0,"",null,null,0,""]
[758,"0758","Childrens Workshop",0,"",null,null,0,""]
[759,"0759","Urban Skills Center",0,"",null,null,0,""]
[761,"0761","Good Shepherd Catholic",0,"",null,null,0,""]
[762,"0762","Soille SD Hebrew Day School",0,"",null,null,0,""]
[763,"0763","Beth Isreal Day School",0,"",null,null,0,""]
[764,"0764","Calvary Christian",0,"",null,null,0,""]
[765,"0765","Community Prepatory",0,"",null,null,0,""]
[766,"0766","Gillispie School, The",0,"",null,null,0,""]
[767,"0767","Mt. Erie Christian Acad",0,"",null,null,0,""]
[768,"0768","Kwachiiyoa (Ixcalli) Chrtr",0,"",null,null,0,""]
[769,"0769","Stein Education Center",0,"",null,null,0,""]
[770,"0770","Springall Academy",0,"",null,null,0,""]
[771,"0771","City School",0,"",null,null,0,""]
[772,"0772","Scripps Montessori",0,"",null,null,0,""]
[773,"0773","St. Paul's Lutheran",0,"",null,null,0,""]
[774,"0774","St. Martin Academy",0,"",null,null,0,""]
[775,"0775","Winston School",0,"",null,null,0,""]
[776,"0776","Notre Dame Academy",0,"",null,null,0,""]
[777,"0777","Crawford HSDP",0,"",null,null,0,""]
[778,"0778","St John Of The Cross",0,"",null,null,0,""]
[780,"0780","Chabad Hebrew Academy",0,"",null,null,0,""]
[781,"0781","Youth Opportunity Alt Sec Sch",0,"",null,null,0,""]
[782,"0782","Clairemont Christian School",0,"",null,null,0,""]
[783,"0783","High Tech High Media Arts",0,"",null,null,0,""]
[784,"0784","Nativity Prep Academy",0,"",null,null,0,""]
[785,"0785","High Tech High International",0,"",null,null,0,""]
[786,"0786","Iftin University Prep High",0,"",null,null,0,""]
[787,"0787","Sojourner Truth Lrng Acad Chrt",0,"",null,null,0,""]
[788,"0788","Evangeline Roberts Institute",0,"",null,null,0,""]
[789,"0789","SD Global Vision Academy",0,"",null,null,0,""]
[790,"0790","Coleman Tech Charter High",0,"",null,null,0,""]
[791,"0791","LCI Instruction",0,"",null,null,0,""]
[792,"0792","City Heights Prep",0,"",null,null,0,""]
[793,"0793","TRACE Seniors",0,"",null,null,0,""]
[794,"0794","Epiphany Prep Charter School",0,"",null,null,0,""]
[795,"0795","SD Cooperative Charter 2",0,"",null,null,0,""]
[796,"0796","Kavod Elementary Charter",0,"",null,null,0,""]
[797,"0797","Health Sciences Middle School",0,"",null,null,0,""]
[798,"0798","Empower Charter School",0,"",null,null,0,""]
[799,"0799","Laurel Preparatory Academy",0,"",null,null,0,""]
[834,"0834","Bayview Childrens Center",0,"",null,null,0,""]
[835,"0835","Brooklyn Childrens Center",0,"",null,null,0,""]
[836,"0836","Dewey Childrens Center",0,"",null,null,0,""]
[837,"0837","Dewey Extended Day Center",0,"",null,null,0,""]
[838,"0838","Euclid Childrens Center",0,"",null,null,0,""]
[839,"0839","Florence Childrens Center",0,"",null,null,0,""]
[840,"0840","Garfield Childrens Center",0,"",null,null,0,""]
[841,"0841","Florence Extended Day Center",0,"",null,null,0,""]
[842,"0842","Hawthorne Childrens Center",0,"",null,null,0,""]
[844,"0844","Jefferson Childrens Center",0,"",null,null,0,""]
[846,"0846","Kennedy Childrens Center",0,"",null,null,0,""]
[848,"0848","Burbank Childrens Center",0,"",null,null,0,""]
[850,"0850","Logan Child Development Center",0,"",null,null,0,""]
[851,"0851","Miller Extended Day Center",0,"",null,null,0,""]
[852,"0852","Los Altos Childrens Center",0,"",null,null,0,""]
[854,"0854","Montezuma Childrens Center",0,"",null,null,0,""]
[855,"0855","Miller Childrens Center",0,"",null,null,0,""]
[856,"0856","Rowan Childrens Center",0,"",null,null,0,""]
[857,"0857","Sandburg Childrens Center",0,"",null,null,0,""]
[858,"0858","Colonel Salomon Child Center",0,"",null,null,0,""]
[859,"0859","Walker Childrens Center",0,"",null,null,0,""]
[860,"0860","Wegeforth Childrens Center",0,"",null,null,0,""]
[861,"0861","Wegeforth Extended Day Center",0,"",null,null,0,""]
[862,"0862","Whittier Childrens Center",0,"",null,null,0,""]
[863,"0863","Bay Point Preschool",0,"",null,null,0,""]
[865,"0865","Burbank Child Care Magnet",0,"",null,null,0,""]
[874,"0874","Bay Park Childrens Center",0,"",null,null,0,""]
[875,"0875","Mead Child Care Magnet",0,"",null,null,0,""]
[879,"0879","Carson Childrens Center",0,"",null,null,0,""]
[881,"0881","Crown Point Childrens Center",0,"",null,null,0,""]
[882,"0882","Field Childrens Center",0,"",null,null,0,""]
[883,"0883","Fletcher Childrens Center",0,"",null,null,0,""]
[884,"0884","De Anza Childrens Center",0,"",null,null,0,""]
[885,"0885","Paradise Valley",0,"",null,null,0,""]
[889,"0889","Lincoln High Infants Center",0,"",null,null,0,""]
[890,"0890","Mead Childrens Center",0,"",null,null,0,""]
[891,"0891","Ocean Beach Child Care Magnet",0,"",null,null,0,""]
[892,"0892","Oak Park Childrens Center",0,"",null,null,0,""]
[893,"0893","Garfield Infant Center",0,"",null,null,0,""]
[894,"0894","Ocean Beach Childrens Center",0,"",null,null,0,""]
[896,"0896","Ross Childrens Center",0,"",null,null,0,""]
[897,"0897","San Diego High Infants Ctr",0,"",null,null,0,""]
[898,"0898","King Childrens Center",0,"",null,null,0,""]
[901,"0901","Academy Of Our Lady Of Peace",0,"",null,null,0,""]
[902,"0902","Childrens School",0,"",null,null,0,""]
[903,"0903","Bishops School",0,"",null,null,0,""]
[904,"0904","Blessed Sacrament",0,"",null,null,0,""]
[905,"0905","City Tree Christian",0,"",null,null,0,""]
[906,"0906","Francis Parker School",0,"",null,null,0,""]
[907,"0907","Devereux-Clark Adolescent Ctr",0,"",null,null,0,""]
[908,"0908","La Jolla Country Day School",0,"",null,null,0,""]
[909,"0909","Nazareth Elementary",0,"",null,null,0,""]
[910,"0910","Our Ladys",0,"",null,null,0,""]
[911,"0911","Instr For Effective Educ",0,"",null,null,0,""]
[912,"0912","Our Lady Sacred Heart",0,"",null,null,0,""]
[913,"0913","Lutheran High School Of Sd",0,"",null,null,0,""]
[914,"0914","Sacred Heart Academy",0,"",null,null,0,""]
[915,"0915","All Hollows Academy",0,"",null,null,0,""]
[916,"0916","School Of Madeleine",0,"",null,null,0,""]
[917,"0917","St Charles Boromeo Academy",0,"",null,null,0,""]
[918,"0918","St. Didacus Parsh School",0,"",null,null,0,""]
[919,"0919","St. Columba",0,"",null,null,0,""]
[920,"0920","Marjorie Cook Ed Ctr",0,"",null,null,0,""]
[921,"0921","Pioneer Day School",0,"",null,null,0,""]
[922,"0922","St. Jude Academy",0,"",null,null,0,""]
[923,"0923","St. Michael Academy",0,"",null,null,0,""]
[924,"0924","St. Patrick's Elementary",0,"",null,null,0,""]
[925,"0925","San Diego French-Americh Schoo",0,"",null,null,0,""]
[926,"0926","Maria Montessori",0,"",null,null,0,""]
[927,"0927","Islamic School Of Sd",0,"",null,null,0,""]
[928,"0928","Childrens Convalescent Hosp",0,"",null,null,0,""]
[929,"0929","UCSD CAPS",0,"",null,null,0,""]
[930,"0930","St. Augustine School",0,"",null,null,0,""]
[931,"0931","USD High School",0,"",null,null,0,""]
[932,"0932","SD Center for Children Academy",0,"",null,null,0,""]
[933,"0933","St. Rita's School",0,"",null,null,0,""]
[934,"0934","St. Therese Academy",0,"",null,null,0,""]
[935,"0935","St. Vincent De Paul",0,"",null,null,0,""]
[936,"0936","National University Virtual HS",0,"",null,null,0,""]
[937,"0937","Stella Maris Academy",0,"",null,null,0,""]
[938,"0938","San Diego Jewish Academy K-10",0,"",null,null,0,""]
[939,"0939","Aseltine School",0,"",null,null,0,""]
[940,"0940","San Diego House Of Hope",0,"",null,null,0,""]
[941,"0941","Holy Family",0,"",null,null,0,""]
[942,"0942","San Diego Jewish Academy K-5",0,"",null,null,0,""]
[943,"0943","Excelsior Academy",0,"",null,null,0,""]
[944,"0944","All Saints Episcopal",0,"",null,null,0,""]
[945,"0945","Mira Mesa Christian School",0,"",null,null,0,""]
[946,"0946","Banyan Tree Foundations Acad",0,"",null,null,0,""]
[947,"0947","Diocese Cooperative",0,"",null,null,0,""]
[948,"0948","B.T.Chrenshaw Christian School",0,"",null,null,0,""]
[949,"0949","Delphi Academy of San Diego",0,"",null,null,0,""]
[950,"0950","Christian Acad of Chula Vista",0,"",null,null,0,""]
[951,"0951","St. Pius X",0,"",null,null,0,""]
[952,"0952","Christian Creative Learng Acad",0,"",null,null,0,""]
[953,"0953","Joan Kroc Head Start",0,"",null,null,0,""]
[954,"0954","Urban Village Headstart",0,"",null,null,0,""]
[955,"0955","Balboa Head Start",0,"",null,null,0,""]
[956,"0956","Southwestern Christian",0,"",null,null,0,""]
[957,"0957","The Learning Academy",0,"",null,null,0,""]
[958,"0958","Heartland Christian Homeschl",0,"",null,null,0,""]
[959,"0959","The Rock Academy",0,"",null,null,0,""]
[960,"0960","Calvary Chapal-La Mesa",0,"",null,null,0,""]
[961,"0961","Shepherd of the Hills Lutheran",0,"",null,null,0,""]
[962,"0962","Cathedral High School",0,"",null,null,0,""]
[963,"0963","Horizon Christian Elementary",0,"",null,null,0,""]
[964,"0964","Horizon Christian Jr/Sr",0,"",null,null,0,""]
[965,"0965","Faith Community",0,"",null,null,0,""]
[966,"0966","Christian Elementary",0,"",null,null,0,""]
[967,"0967","San Diego Academy",0,"",null,null,0,""]
[968,"0968","So Cal Yeshiva High School",0,"",null,null,0,""]
[969,"0969","Mater-Dei Catholic High School",0,"",null,null,0,""]
[970,"0970","Christ Lutheran-La Mesa",0,"",null,null,0,""]
[972,"0972","Our Lady of Grace",0,"",null,null,0,""]
[973,"0973","Ahmad Lashad",0,"",null,null,0,""]
[974,"0974","Mt Helix Academy",0,"",null,null,0,""]
[975,"0975","Arch Academy",0,"",null,null,0,""]
[976,"0976","Tabernacle Christian Academy",0,"",null,null,0,""]
[977,"0977","Emmaus Today Chrisitian Montes",0,"",null,null,0,""]
[978,"0978","Leeway Sudbury School",0,"",null,null,0,""]
[979,"0979","Berean Bible Baptist Academy",0,"",null,null,0,""]
[980,"0980","Beta-Selam Academy",0,"",null,null,0,""]
[1111,"1111","Default Department (for HCM)",0,"",null,null,0,""]
[3637,"3637","Lincoln High","DG","Dario Gutierrez: 619-725-7785",null,null,"DG","Debbie Glanz: 619-725-7619"]
[3648,"3648","Lincoln Social Justice",0,"",null,null,0,""]
[3660,"3660","Lincoln Arts",0,"",null,null,0,""]
[3674,"3674","Lincoln Science & Engineering",0,"",null,null,0,""]
[3676,"3676","Lincoln Public Safety",0,"",null,null,0,""]
[3701,"3701","Crawford High Education Comple",0,"",null,null,0,""]
[3702,"3702","Crawford IDEA",0,"",null,null,0,""]
[3703,"3703","Crawford Multimedia & Vis Arts",0,"",null,null,0,""]
[3704,"3704","Crawford CHAMPS",0,"",null,null,0,""]
[3705,"3705","Crawford Law and Business",0,"",null,null,0,""]
[3713,"3713","Mann School of Expedition",0,"",null,null,0,""]
[3717,"3717","Mann School of Exploration",0,"",null,null,0,""]
[3718,"3718","Mann School of Expression",0,"",null,null,0,""]
[3732,"3732","Kearny High Education Complex","DG","Dario Gutierrez: 619-725-7785",null,null,"TR","Tenya Rushing: 619-725-7637"]
[3733,"3733","Kearny Digital Media & Design","DG","Dario Gutierrez: 619-725-7785",null,null,"TR","Tenya Rushing: 619-725-7637"]
[3734,"3734","Kearny SCT","DG","Dario Gutierrez: 619-725-7785",null,null,"TR","Tenya Rushing: 619-725-7637"]
[3735,"3735","Kearny School of College Connections","DG","Dario Gutierrez: 619-725-7785",null,null,"TR","Tenya Rushing: 619-725-7637"]
[3736,"3736","Kearny Eng, Innov & Design","DG","Dario Gutierrez: 619-725-7785",null,null,"TR","Tenya Rushing: 619-725-7637"]
[3738,"3738","Mann Complex/Not used after al",0,"",null,null,0,""]
[3743,"3743","San Diego High Ed Complex","MJ","Mary Johnson: 619-725-5611",null,null,"DG","Debbie Glanz: 619-725-7619"]
[3744,"3744","San Diego Int'l Studies","MJ","Mary Johnson: 619-725-5611",null,null,"DG","Debbie Glanz: 619-725-7619"]
[3745,"3745","San Diego LEADS",0,"",null,null,0,""]
[3746,"3746","San Diego CIMA",0,"",null,null,0,""]
[3749,"3749","San Diego Business","MJ","Mary Johnson: 619-725-5611",null,null,"DG","Debbie Glanz: 619-725-7619"]
[3750,"3750","San Diego MVP Arts",0,"",null,null,0,""]
[3753,"3753","San Diego Science & Technology","MJ","Mary Johnson: 619-725-5611",null,null,"DG","Debbie Glanz: 619-725-7619"]
[5006,"5006","Adams Elementary Annex",0,"",null,null,0,""]
[5019,"5019","Linda Vista Annex",0,"",null,null,0,""]
[5100,"5100","Director of Special Education",0,"",null,null,0,""]
[5101,"5101","Area 1 Site SE Administrator",0,"",null,null,0,""]
[5102,"5102","Area 2 Site SE Administrator",0,"",null,null,0,""]
[5103,"5103","Area 3 Site SE Administrator",0,"",null,null,0,""]
[5104,"5104","Assistive Technology",0,"",null,null,0,""]
[5105,"5105","Area 5 Site SE Administrator",0,"",null,null,0,""]
[5106,"5106","Translations",0,"",null,null,0,""]
[5108,"5108","Specialized Settings",0,"",null,null,0,""]
[5109,"5109","Vision Therapy",0,"",null,null,0,""]
[5110,"5110","Special Ed Nursing",0,"",null,null,0,""]
[5114,"5114","Area 4 Site SE Administrator",0,"",null,null,0,""]
[5116,"5116","Area 6 Site SE Administrator",0,"",null,null,0,""]
[5193,"5193","Marcy Site",0,"",null,null,0,""]
[5204,"5204","K/6 Summer School Office/Mead",0,"",null,null,0,""]
[5211,"5211","Mission Beach Center",0,"",null,null,0,""]
[5226,"5226","Ocean Discovery",0,"",null,null,0,""]
[5239,"5239","Revere Development Center",0,"",null,null,0,""]
[5240,"5240","Budget Dev & Position Mgmt",0,"",null,null,0,""]
[5241,"5241","Financial Planning & Develop",0,"",null,null,0,""]
[5260,"5260","Treasurer",0,"",null,null,0,""]
[5262,"5262","Budget Operations-Business",0,"",null,null,0,""]
[5264,"5264","Cash Management",0,"",null,null,0,""]
[5265,"5265","Stevenson Admin Ctr",0,"",null,null,0,""]
[5299,"5299","Wiggin Center",0,"",null,null,0,""]
[5301,"5301","Personnel/Secondary",0,"",null,null,0,""]
[5305,"5305","Resv Mid School CCTR",0,"",null,null,0,""]
[5309,"5309","Hale Construction",0,"",null,null,0,""]
[5330,"5330","Secondary/Interim",0,"",null,null,0,""]
[5343,"5343","JROTC Office",0,"",null,null,0,""]
[5360,"5360","Classified - Human Resources",0,"",null,null,0,""]
[5361,"5361","TB Reimbursement Dept",0,"",null,null,0,""]
[5370,"5370","Gifted & Talented Dept Admin",0,"",null,null,0,""]
[5371,"5371","Placement & Appeals",0,"",null,null,0,""]
[5372,"5372","Counseling & Guidance",0,"",null,null,0,""]
[5373,"5373","Special Ed/ECSE",0,"",null,null,0,""]
[5374,"5374","Special Ed Business Office",0,"",null,null,0,""]
[5375,"5375","Career Development Counseling",0,"",null,null,0,""]
[5376,"5376","Guidance Svcs/Dept Admin",0,"",null,null,0,""]
[5377,"5377","Special Ed Svcs/Ot & Pt",0,"",null,null,0,""]
[5378,"5378","Psychology",0,"",null,null,0,""]
[5379,"5379","Special Ed High Incidents Prog",0,"",null,null,0,""]
[5380,"5380","Speech  & Hearing",0,"",null,null,0,""]
[5381,"5381","Adapted Physical Education",0,"",null,null,0,""]
[5383,"5383","Physically/Impaired",0,"",null,null,0,""]
[5384,"5384","Visually Impaired",0,"",null,null,0,""]
[5386,"5386","ILS-PACE-TRACE-Employability",0,"",null,null,0,""]
[5387,"5387","Low Incidence Programs",0,"",null,null,0,""]
[5388,"5388","Deaf & Hard Of Hearing",0,"",null,null,0,""]
[5389,"5389","Nonpublic Schools",0,"",null,null,0,""]
[5390,"5390","Advanced Studies",0,"",null,null,0,""]
[5391,"5391","DHH Interpreter/Translator",0,"",null,null,0,""]
[5392,"5392","SD South Medical Therapy Unit",0,"",null,null,0,""]
[5393,5393,"Restorative Practice","",{"$nulls":3},"LP","Lilibeth Puentespina: 619-725-7660"]
[5400,"5400","Nursing and Wellness",0,{"$error":"#N/A"},null,null,0,""]
[5401,"5401","Student Support Services",0,{"$error":"#N/A"},null,null,0,""]
[5402,"5402","LCI",0,{"$error":"#N/A"},null,null,0,""]
[5403,"5403","Counseling And Guidance Grants",0,{"$error":"#N/A"},null,null,0,""]
[5404,"5404","Clinic Services",0,{"$error":"#N/A"},null,null,0,""]
[5405,"5405","Medi-Cal Collaborative",0,{"$error":"#N/A"},null,null,0,""]
[5406,"5406","Special Ed Team - B Lin/Mor",0,{"$error":"#N/A"},null,null,0,""]
[5407,"5407","Substance Use Prevention",0,{"$error":"#N/A"},null,null,0,""]
[5408,"5408","Special Ed C - MRM/SCR/KEA/SER",0,{"$error":"#N/A"},null,null,0,""]
[5409,"5409","Americans W Disab Act 504",0,{"$error":"#N/A"},null,null,0,""]
[5410,"5410","Career and Transition Services",0,{"$error":"#N/A"},null,null,0,""]
[5411,"5411","Student Suppt & Spec Ed",0,{"$error":"#N/A"},null,null,0,""]
[5412,"5412","Planning Dvpmt Eval Rpt/Archiv",0,{"$error":"#N/A"},null,null,0,""]
[5413,"5413","Related & Specializd Services",0,{"$error":"#N/A"},null,null,0,""]
[5414,"5414","Materials Development",0,{"$error":"#N/A"},null,null,0,""]
[5415,"5415","Special Ed/LEP Programs",0,{"$error":"#N/A"},null,null,0,""]
[5416,"5416","Compliance & Training",0,{"$error":"#N/A"},null,null,0,""]
[5417,"5417","Due Process & Mediations",0,{"$error":"#N/A"},null,null,0,""]
[5418,"5418","Enrollment Center",0,{"$error":"#N/A"},null,null,0,""]
[5419,"5419","Mental Hlth Resource Ctr",0,{"$error":"#N/A"},null,null,0,""]
[5420,"5420","Special Ed Team D-HEN/HOO/CFD",0,{"$error":"#N/A"},null,null,0,""]
[5421,"5421","Assistive Technology",0,{"$error":"#N/A"},null,null,0,""]
[5422,"5422","English Tutoring Com Based",0,{"$error":"#N/A"},null,null,0,""]
[5423,"5423","ED - LCI",0,{"$error":"#N/A"},null,null,0,""]
[5424,"5424","SpEd Team E-CLT/LJ/MDS/MB/UCH",0,{"$error":"#N/A"},null,null,0,""]
[5425,"5425","Cty Hgts Pilot Pgm-Admin",0,{"$error":"#N/A"},null,null,0,""]
[5426,"5426","Metro Program/ED",0,{"$error":"#N/A"},null,null,0,""]
[5427,"5427","Adult Ed/High Schl Dept",0,{"$error":"#N/A"},null,null,0,""]
[5428,"5428","Adult Ed/Parent Education",0,{"$error":"#N/A"},null,null,0,""]
[5429,"5429","Adult Ed/Vocational Ed",0,{"$error":"#N/A"},null,null,0,""]
[5430,"5430","Encore & Data Reporting",0,{"$error":"#N/A"},null,null,0,""]
[5431,"5431","Behavior Support Services",0,{"$error":"#N/A"},null,null,0,""]
[5433,"5433","Spec Ed Pgms Coordination",0,{"$error":"#N/A"},null,null,0,""]
[5434,"5434","Educational Technology",0,{"$error":"#N/A"},null,null,0,""]
[5435,"5435","Spec Ed Adpt Equipment",0,{"$error":"#N/A"},null,null,0,""]
[5437,"5437","School & Parent Support Svcs",0,{"$error":"#N/A"},null,null,0,""]
[5438,"5438","Parentally Placed Pvt Sch Stud",0,{"$error":"#N/A"},null,null,0,""]
[5439,"5439","Quality Assurance",0,{"$error":"#N/A"},null,null,0,""]
[5440,"5440","Off of School Support Services",0,{"$error":"#N/A"},null,null,0,""]
[5441,"5441","Federal and Special Programs",0,{"$error":"#N/A"},null,null,0,""]
[5442,"5442","Mathematics",0,{"$error":"#N/A"},null,null,0,""]
[5443,"5443","Social Studies",0,{"$error":"#N/A"},null,null,0,""]
[5444,"5444","Language Arts",0,{"$error":"#N/A"},null,null,0,""]
[5445,"5445","Science",0,{"$error":"#N/A"},null,null,0,""]
[5446,"5446","Visual & Performing Arts",0,{"$error":"#N/A"},null,null,0,""]
[5447,"5447","Spec Ed Exec Director",0,{"$error":"#N/A"},null,null,0,""]
[5448,"5448","Student Services",0,{"$error":"#N/A"},null,null,0,""]
[5449,"5449","CCTE/Off Site",0,{"$error":"#N/A"},null,null,0,""]
[5450,"5450","Hire-A-Youth",0,{"$error":"#N/A"},null,null,0,""]
[5451,"5451","College, Career & Tech Ed",0,{"$error":"#N/A"},null,null,0,""]
[5452,"5452","Sch To Career/Indus Educ",0,{"$error":"#N/A"},null,null,0,""]
[5453,"5453","Sch To Career/Business Ed",0,{"$error":"#N/A"},null,null,0,""]
[5454,"5454","Sch To Career",0,{"$error":"#N/A"},null,null,0,""]
[5455,"5455","Sch To Career/Cnsmr/Fam Stdy",0,{"$error":"#N/A"},null,null,0,""]
[5456,"5456","Instr Media/Sim Svcs Contra",0,{"$error":"#N/A"},null,null,0,""]
[5457,"5457","P.E. and Health",0,{"$error":"#N/A"},null,null,0,""]
[5458,"5458","Instructional Rescrs & Matls",0,{"$error":"#N/A"},null,null,0,""]
[5459,"5459","Office of Teaching & Learning",0,{"$error":"#N/A"},null,null,0,""]
[5460,"5460","IMC Svcs To Schools",0,{"$error":"#N/A"},null,null,0,""]
[5461,"5461","IMC Instr Media Svcs",0,{"$error":"#N/A"},null,null,0,""]
[5462,"5462","Adult Ed/Department",0,{"$error":"#N/A"},null,null,0,""]
[5463,"5463","Block Grant/Adult Ed",0,{"$error":"#N/A"},null,null,0,""]
[5464,"5464","Ed Clinics (Delivery Only)",0,{"$error":"#N/A"},null,null,0,""]
[5465,"5465","Instr Media/Mp/Contra",0,{"$error":"#N/A"},null,null,0,""]
[5466,"5466","IMC Cen Cataloging",0,{"$error":"#N/A"},null,null,0,""]
[5467,"5467","Textbook Long Range",0,{"$error":"#N/A"},null,null,0,""]
[5468,"5468","Instr Mat Eval Ctr",0,{"$error":"#N/A"},null,null,0,""]
[5469,"5469","Second Language/ Staff Dev",0,{"$error":"#N/A"},null,null,0,""]
[5470,"5470","Office of Language Acquisition",0,{"$error":"#N/A"},null,null,0,""]
[5471,"5471","Home Avenue Headstart",0,{"$error":"#N/A"},null,null,0,""]
[5472,"5472","Assmnt/Research/Rprtng Admin",0,{"$error":"#N/A"},null,null,0,""]
[5473,"5473","Assessment Services Dept",0,{"$error":"#N/A"},null,null,0,""]
[5474,"5474","Monitoring and Accountability",0,{"$error":"#N/A"},null,null,0,""]
[5475,"5475","Testng, Eval Rsrch & Comp Dept",0,{"$error":"#N/A"},null,null,0,""]
[5476,"5476","Data Analysis & Reporting",0,{"$error":"#N/A"},null,null,0,""]
[5477,"5477","Clark Foundation Mgmt",0,{"$error":"#N/A"},null,null,0,""]
[5478,"5478","High School Reform",0,{"$error":"#N/A"},null,null,0,""]
[5479,"5479","District Relations",0,{"$error":"#N/A"},null,null,0,""]
[5480,"5480","Chief of Information Technolgy",0,{"$error":"#N/A"},null,null,0,""]
[5481,"5481","Facilities Planning & Const.",0,{"$error":"#N/A"},null,null,0,""]
[5482,"5482","PPO FPC Transfer",0,{"$error":"#N/A"},null,null,0,""]
[5483,"5483","Youth Advocacy",0,{"$error":"#N/A"},null,null,0,""]
[5484,"5484","Research & Development",0,{"$error":"#N/A"},null,null,0,""]
[5486,"5486","Management Info Systems",0,{"$error":"#N/A"},null,null,0,""]
[5487,"5487","Spec Ed State Monitor/Archive",0,{"$error":"#N/A"},null,null,0,""]
[5488,"5488","Audiology/Speech Lang Ctr",0,{"$error":"#N/A"},null,null,0,""]
[5489,"5489","Facilities Community Support",0,{"$error":"#N/A"},null,null,0,""]
[5490,"5490","Accountability Office",0,{"$error":"#N/A"},null,null,0,""]
[5491,"5491","Monitoring&AccountabilityRptg",0,{"$error":"#N/A"},null,null,0,""]
[5492,"5492","Program Monitoring",0,{"$error":"#N/A"},null,null,0,""]
[5493,"5493","Ballard Parent Center",0,{"$error":"#N/A"},null,null,0,""]
[5494,"5494","Instructional Facilities Plan",0,{"$error":"#N/A"},null,null,0,""]
[5495,"5495","Private School Services",0,{"$error":"#N/A"},null,null,0,""]
[5496,"5496","Research and Evaluation Div",0,{"$error":"#N/A"},null,null,0,""]
[5497,"5497","Accountability Department",0,{"$error":"#N/A"},null,null,0,""]
[5498,"5498","Real Estate Department",0,{"$error":"#N/A"},null,null,0,""]
[5499,"5499","Reserve Cost Center",0,{"$error":"#N/A"},null,null,0,""]
[5500,"5500","Instructional Data Support",0,{"$error":"#N/A"},null,null,0,""]
[5501,"5501","Wilson Family Resource Center",0,{"$error":"#N/A"},null,null,0,""]
[5502,"5502","Leadership Meeting",0,{"$error":"#N/A"},null,null,0,""]
[5503,"5503","Elem Bilingual Ed Cred Alt",0,{"$error":"#N/A"},null,null,0,""]
[5504,"5504","Center For Collaborative Act",0,{"$error":"#N/A"},null,null,0,""]
[5505,"5505","Inventory Adjustment",0,{"$error":"#N/A"},null,null,0,""]
[5506,"5506","Human Resource Svcs Division",0,{"$error":"#N/A"},null,null,0,""]
[5507,"5507","Employee Services",0,{"$error":"#N/A"},null,null,0,""]
[5508,"5508","Human Resources",0,{"$error":"#N/A"},null,null,0,""]
[5509,"5509","Classif/Comp Dept",0,{"$error":"#N/A"},null,null,0,""]
[5510,"5510","Board Of Education",0,{"$error":"#N/A"},null,null,0,""]
[5511,"5511","Superintendents Ofcs",0,{"$error":"#N/A"},null,null,0,""]
[5512,"5512","Parent & Community Involvement",0,{"$error":"#N/A"},null,null,0,""]
[5513,"5513","Internal Audit",0,{"$error":"#N/A"},null,null,0,""]
[5514,"5514","Leadership",0,{"$error":"#N/A"},null,null,0,""]
[5515,"5515","Legal Services",0,{"$error":"#N/A"},null,null,0,""]
[5516,"5516","Beginning Teacher Support",0,{"$error":"#N/A"},null,null,0,""]
[5517,"5517","Restructuring",0,{"$error":"#N/A"},null,null,0,""]
[5518,"5518","Legislative Programs Dept",0,{"$error":"#N/A"},null,null,0,""]
[5519,"5519","New Beginnings Abatements",0,{"$error":"#N/A"},null,null,0,""]
[5520,"5520","Labor Relations",0,{"$error":"#N/A"},null,null,0,""]
[5521,"5521","Risk Mgmt-Return to Work Prog",0,{"$error":"#N/A"},null,null,0,""]
[5522,"5522","Ofc of Chief Business Officer",0,{"$error":"#N/A"},null,null,0,""]
[5523,"5523","HR-Tran Assign: Non-Indust Inj",0,{"$error":"#N/A"},null,null,0,""]
[5524,"5524","Office of Resource Development",0,{"$error":"#N/A"},null,null,0,""]
[5525,"5525","Controller's Office",0,{"$error":"#N/A"},null,null,0,""]
[5526,"5526","Fin Plan Monitor & Account",0,{"$error":"#N/A"},null,null,0,""]
[5527,"5527","Fiscal Control",0,{"$error":"#N/A"},null,null,0,""]
[5528,"5528","Financial Accounting",0,{"$error":"#N/A"},null,null,0,""]
[5529,"5529","Accounts Payable",0,{"$error":"#N/A"},null,null,0,""]
[5530,"5530","Applications",0,{"$error":"#N/A"},null,null,0,""]
[5531,"5531","Attendance",0,{"$error":"#N/A"},null,null,0,""]
[5532,"5532","Magnet Program Office",0,{"$error":"#N/A"},null,null,0,""]
[5533,"5533","Neighborhd Schls & Enrlmnt Ops",0,{"$error":"#N/A"},null,null,0,""]
[5534,"5534","Race/Human Relations& Advocacy",0,{"$error":"#N/A"},null,null,0,""]
[5535,"5535","Latinos Latinas Ach More Acad",0,{"$error":"#N/A"},null,null,0,""]
[5536,"5536","Prof Dev Unit",0,{"$error":"#N/A"},null,null,0,""]
[5537,"5537","Utilities Management",0,{"$error":"#N/A"},null,null,0,""]
[5538,"5538","Info & Technology Support Svcs",0,{"$error":"#N/A"},null,null,0,""]
[5539,"5539","Extended Lrng Oppr Dept",0,{"$error":"#N/A"},null,null,0,""]
[5540,"5540","Ofcs Of Technology & Spec Proj",0,{"$error":"#N/A"},null,null,0,""]
[5541,"5541","Communications",0,{"$error":"#N/A"},null,null,0,""]
[5542,"5542","Community Relations",0,{"$error":"#N/A"},null,null,0,""]
[5543,"5543","Parent Svcs & Charter Schools",0,{"$error":"#N/A"},null,null,0,""]
[5544,"5544","Payroll",0,{"$error":"#N/A"},null,null,0,""]
[5545,"5545","School Of Choice Program",0,{"$error":"#N/A"},null,null,0,""]
[5546,"5546","Facilities Administrations",0,{"$error":"#N/A"},null,null,0,""]
[5547,"5547","Teacher Prep & Induction Dept",0,{"$error":"#N/A"},null,null,0,""]
[5548,"5548","Auxiliary Services",0,{"$error":"#N/A"},null,null,0,""]
[5549,"5549","Chief of Staff",0,{"$error":"#N/A"},null,null,0,""]
[5550,"5550","Facilities Asset Management",0,{"$error":"#N/A"},null,null,0,""]
[5551,"5551","Real Property Development",0,{"$error":"#N/A"},null,null,0,""]
[5552,"5552","Strategic Sourcing Department",0,{"$error":"#N/A"},null,null,0,""]
[5553,"5553","Risk Management",0,{"$error":"#N/A"},null,null,0,""]
[5554,"5554","Materiel Control",0,{"$error":"#N/A"},null,null,0,""]
[5555,"5555","Printing Shop Transfer",0,{"$error":"#N/A"},null,null,0,""]
[5556,"5556","Printing Services",0,{"$error":"#N/A"},null,null,0,""]
[5557,"5557","Mail Services",0,{"$error":"#N/A"},null,null,0,""]
[5558,"5558","Safety & Environmental",0,{"$error":"#N/A"},null,null,0,""]
[5559,"5559","Camp Elliott",0,{"$error":"#N/A"},null,null,0,""]
[5560,"5560","Facilities Planning",0,{"$error":"#N/A"},null,null,0,""]
[5561,"5561","Ofc of Chief Adminstr Officer",0,{"$error":"#N/A"},null,null,0,""]
[5562,"5562","Office Assist Superintendent",0,{"$error":"#N/A"},null,null,0,""]
[5563,"5563","Leadership & Learning",0,{"$error":"#N/A"},null,null,0,""]
[5564,"5564","San Diego Reads",0,{"$error":"#N/A"},null,null,0,""]
[5565,"5565","Charter Schools",0,{"$error":"#N/A"},null,null,0,""]
[5566,"5566","Off of School Innovtn & Choice",0,{"$error":"#N/A"},null,null,0,""]
[5567,"5567","Counselors / Formula",0,{"$error":"#N/A"},null,null,0,""]
[5568,"5568","Wellness - Nurses",0,{"$error":"#N/A"},null,null,0,""]
[5569,"5569","Research Policy",0,{"$error":"#N/A"},null,null,0,""]
[5570,"5570","School Services-Unrestricted",0,{"$error":"#N/A"},null,null,0,""]
[5571,"5571","Area 1 Superintendent",0,{"$error":"#N/A"},null,null,0,""]
[5572,"5572","Area 2 Superintendent",0,{"$error":"#N/A"},null,null,0,""]
[5573,"5573","Area 3 Superintendent",0,{"$error":"#N/A"},null,null,0,""]
[5574,"5574","Area 4 Superintendent",0,{"$error":"#N/A"},null,null,0,""]
[5575,"5575","Area 5 Superintendent",0,{"$error":"#N/A"},null,null,0,""]
[5576,"5576","Area 6 Superintendent",0,{"$error":"#N/A"},null,null,0,""]
[5577,"5577","Area 7 Superintendent",0,{"$error":"#N/A"},null,null,0,""]
[5578,"5578","Area 8 Superintendent",0,{"$error":"#N/A"},null,null,0,""]
[5579,"5579","Area9 Superintendent",0,{"$error":"#N/A"},null,null,0,""]
[5580,"5580","Title I SES",0,{"$error":"#N/A"},null,null,0,""]
[5581,"5581","Communic & Comm Rel Div",0,{"$error":"#N/A"},null,null,0,""]
[5582,"5582","Translation Department",0,{"$error":"#N/A"},null,null,0,""]
[5583,"5583","Sch Svs Area 3 Technology Team",0,{"$error":"#N/A"},null,null,0,""]
[5584,"5584","HIV and AID's Education",0,{"$error":"#N/A"},null,null,0,""]
[5585,"5585","Video Svcs Dept",0,{"$error":"#N/A"},null,null,0,""]
[5586,"5586","Student Records Center",0,{"$error":"#N/A"},null,null,0,""]
[5587,"5587","Sandapp Office",0,{"$error":"#N/A"},null,null,0,""]
[5588,"5588","Special Ed/Ifl Programs",0,{"$error":"#N/A"},null,null,0,""]
[5589,"5589","Instructional Leader 9 & 10",0,{"$error":"#N/A"},null,null,0,""]
[5590,"5590","Athletics",0,{"$error":"#N/A"},null,null,0,""]
[5591,"5591","Certificated Employees On Loan",0,{"$error":"#N/A"},null,null,0,""]
[5592,"5592","Classified Employees On Loan",0,{"$error":"#N/A"},null,null,0,""]
[5593,"5593","Office of Secondary Schools",0,{"$error":"#N/A"},null,null,0,""]
[5594,"5594","School Services Unit IV",0,{"$error":"#N/A"},null,null,0,""]
[5595,"5595","Districtwide - Restricted",0,{"$error":"#N/A"},null,null,0,""]
[5596,"5596","Special Projects",0,{"$error":"#N/A"},null,null,0,""]
[5597,"5597","Board Services",0,{"$error":"#N/A"},null,null,0,""]
[5598,"5598","Government Relations",0,{"$error":"#N/A"},null,null,0,""]
[5599,"5599","Indirect Cost Billed Services",0,{"$error":"#N/A"},null,null,0,""]
[5600,"5600","Custodial Services",0,{"$error":"#N/A"},null,null,0,""]
[5601,"5601","Burbank Area",0,{"$error":"#N/A"},null,null,0,""]
[5602,"5602","Student Services Department",0,{"$error":"#N/A"},null,null,0,""]
[5603,"5603","Charter School Office",0,{"$error":"#N/A"},null,null,0,""]
[5604,"5604","Schl Attendance Review Bd SARB",0,{"$error":"#N/A"},null,null,0,""]
[5605,"5605","School Police Services",0,{"$error":"#N/A"},null,null,0,""]
[5606,"5606","Office of Sec Schl Innovation",0,{"$error":"#N/A"},null,null,0,""]
[5607,"5607","Livescan",0,{"$error":"#N/A"},null,null,0,""]
[5608,"5608","Ethics Program",0,{"$error":"#N/A"},null,null,0,""]
[5609,"5609","PPO Transfer",0,{"$error":"#N/A"},null,null,0,""]
[5610,"5610","Maintenance Unit",0,{"$error":"#N/A"},null,null,0,""]
[5611,"5611","Expansion Of Linc HS/Prop I",0,{"$error":"#N/A"},null,null,0,""]
[5612,"5612","Deferred Maintenance",0,{"$error":"#N/A"},null,null,0,""]
[5613,"5613","Hwy 52 Property",0,{"$error":"#N/A"},null,null,0,""]
[5614,"5614","Office Depot",0,{"$error":"#N/A"},null,null,0,""]
[5615,"5615","Dana Admin Offices",0,{"$error":"#N/A"},null,null,0,""]
[5616,"5616","Pacific Beach Admin Offices",0,{"$error":"#N/A"},null,null,0,""]
[5617,"5617","IMC Admin Offices",0,{"$error":"#N/A"},null,null,0,""]
[5618,"5618","Mission Beach Admin Ofcs",0,{"$error":"#N/A"},null,null,0,""]
[5619,"5619","Irving Ave Admin Offices",0,{"$error":"#N/A"},null,null,0,""]
[5620,"5620","Distribution Svcs Section",0,{"$error":"#N/A"},null,null,0,""]
[5621,"5621","IMC Distribution",0,{"$error":"#N/A"},null,null,0,""]
[5622,"5622","Warehousing Unit",0,{"$error":"#N/A"},null,null,0,""]
[5623,"5623","Warehousing Unit/IMC",0,{"$error":"#N/A"},null,null,0,""]
[5624,"5624","Undesignated Area Elem Schl B",0,{"$error":"#N/A"},null,null,0,""]
[5625,"5625","Mira Mesa Whse/Prop Y",0,{"$error":"#N/A"},null,null,0,""]
[5626,"5626","Brooklyn/Kimbrough/Prop MM",0,{"$error":"#N/A"},null,null,0,""]
[5627,"5627","King/Logan/Perkins/Prop MM",0,{"$error":"#N/A"},null,null,0,""]
[5628,"5628","Sherman/Prop MM",0,{"$error":"#N/A"},null,null,0,""]
[5629,"5629","Kennedy/Knox/Prop MM",0,{"$error":"#N/A"},null,null,0,""]
[5630,"5630","Employee Benefits",0,{"$error":"#N/A"},null,null,0,""]
[5631,"5631","Mason Hage Area",0,{"$error":"#N/A"},null,null,0,""]
[5632,"5632","Fringe Benefits/Retirees",0,{"$error":"#N/A"},null,null,0,""]
[5633,"5633","Off of Business Supp Srvcs",0,{"$error":"#N/A"},null,null,0,""]
[5634,"5634","Employee Paid Benefits",0,{"$error":"#N/A"},null,null,0,""]
[5635,"5635","Quality Neighborhood Schools",0,{"$error":"#N/A"},null,null,0,""]
[5636,"5636","Strategic Sourcing Office",0,{"$error":"#N/A"},null,null,0,""]
[5637,"5637","PPO Stockroom",0,{"$error":"#N/A"},null,null,0,""]
[5638,"5638","Drop Out Prevention",0,{"$error":"#N/A"},null,null,0,""]
[5639,"5639","San Diego Cold Storage",0,{"$error":"#N/A"},null,null,0,""]
[5640,"5640","Glenn R. Brodrick Field",0,{"$error":"#N/A"},null,null,0,""]
[5641,"5641","Clearing Account",0,{"$error":"#N/A"},null,null,0,""]
[5650,"5650","Pupil Transportation Dept",0,{"$error":"#N/A"},null,null,0,""]
[5651,"5651","Fleet Maintenance",0,{"$error":"#N/A"},null,null,0,""]
[5652,"5652","Pupil Transportation Training",0,{"$error":"#N/A"},null,null,0,""]
[5653,"5653","Rebudgets/Regular H-To-S Trans",0,{"$error":"#N/A"},null,null,0,""]
[5654,"5654","Transportation Highland BaseII",0,{"$error":"#N/A"},null,null,0,""]
[5655,"5655","New Bridge School",0,{"$error":"#N/A"},null,null,0,""]
[5656,"5656","Master Plan/Home-To-Schl Trans",0,{"$error":"#N/A"},null,null,0,""]
[5657,"5657","ARCH Academy",0,{"$error":"#N/A"},null,null,0,""]
[5658,"5658","Bus Replacement",0,{"$error":"#N/A"},null,null,0,""]
[5659,"5659","Foundations Academy",0,{"$error":"#N/A"},null,null,0,""]
[5660,"5660","Children & Youth in Transition",0,{"$error":"#N/A"},null,null,0,""]
[5661,"5661","Balboa Elementary/Expansion",0,{"$error":"#N/A"},null,null,0,""]
[5662,"5662","Hoover/Crawford Elem",0,{"$error":"#N/A"},null,null,0,""]
[5663,"5663","San Diego Area/Kimbrough",0,{"$error":"#N/A"},null,null,0,""]
[5664,"5664","Hoover/Crawford Middle",0,{"$error":"#N/A"},null,null,0,""]
[5665,"5665","Balboa Area/Chavez",0,{"$error":"#N/A"},null,null,0,""]
[5666,"5666","Scripps Ranch Area",0,{"$error":"#N/A"},null,null,0,""]
[5667,"5667","Out of Selpa",0,{"$error":"#N/A"},null,null,0,""]
[5668,"5668","Special Ed Ombudsperson",0,{"$error":"#N/A"},null,null,0,""]
[5678,"5678","Garfield/Remodel",0,{"$error":"#N/A"},null,null,0,""]
[5679,"5679","Garfield High Move/Startup",0,{"$error":"#N/A"},null,null,0,""]
[5680,"5680","Capital Outlay",0,{"$error":"#N/A"},null,null,0,""]
[5681,"5681","Cap Outlay/Reserves For Legal",0,{"$error":"#N/A"},null,null,0,""]
[5682,"5682","ICOC/Citizens Oversite Comm",0,{"$error":"#N/A"},null,null,0,""]
[5684,"5684","Capital Outlay/Districtwide",0,{"$error":"#N/A"},null,null,0,""]
[5685,"5685","Landscaping Services",0,{"$error":"#N/A"},null,null,0,""]
[5686,"5686","PPO Support Services",0,{"$error":"#N/A"},null,null,0,""]
[5687,"5687","PPO Project Transfers",0,{"$error":"#N/A"},null,null,0,""]
[5688,"5688","Education Center",0,{"$error":"#N/A"},null,null,0,""]
[5689,"5689","Board Of Ed Redistricting",0,{"$error":"#N/A"},null,null,0,""]
[5690,"5690","02-03 Reductions",0,{"$error":"#N/A"},null,null,0,""]
[5691,"5691","Master Plan/Spec Ed Pgms",0,{"$error":"#N/A"},null,null,0,""]
[5692,"5692","Integration Pgms/ZZ Only",0,{"$error":"#N/A"},null,null,0,""]
[5693,"5693","Community Svcs Pgm/ZZ Only",0,{"$error":"#N/A"},null,null,0,""]
[5694,"5694","Adams/Franklin Elem/Prop MM",0,{"$error":"#N/A"},null,null,0,""]
[5695,"5695","Central Elem/Prop MM",0,{"$error":"#N/A"},null,null,0,""]
[5696,"5696","Parks/Edison/Ham Elem/Prop MM",0,{"$error":"#N/A"},null,null,0,""]
[5697,"5697","Euclid Elem/Prop MM",0,{"$error":"#N/A"},null,null,0,""]
[5698,"5698","Jackson/Marshall Elem/Prop MM",0,{"$error":"#N/A"},null,null,0,""]
[5699,"5699","Adult Ed/SDCCD",0,{"$error":"#N/A"},null,null,0,""]
[5700,"5700","Debt Services",0,{"$error":"#N/A"},null,null,0,""]
[5701,"5701","Printing Svcs/N Annex",0,{"$error":"#N/A"},null,null,0,""]
[5702,"5702","Early Ret Retirement Annuity",0,{"$error":"#N/A"},null,null,0,""]
[5703,"5703","Educational Clinic/Centre Cit",0,{"$error":"#N/A"},null,null,0,""]
[5704,"5704","Educational Clinic Office",0,{"$error":"#N/A"},null,null,0,""]
[5705,"5705","Childrens Ctr/Local Resources",0,{"$error":"#N/A"},null,null,0,""]
[5706,"5706","On-Line Learning",0,{"$error":"#N/A"},null,null,0,""]
[5707,"5707","Chief Public Info Officer",0,{"$error":"#N/A"},null,null,0,""]
[5709,"5709","Medicare Selection Dist",0,{"$error":"#N/A"},null,null,0,""]
[5710,"5710","Outgoing Transfers",0,{"$error":"#N/A"},null,null,0,""]
[5717,"5717","Reserve For Sal Negotiation",0,{"$error":"#N/A"},null,null,0,""]
[5718,"5718","Dup Site-Inactivated",0,{"$error":"#N/A"},null,null,0,""]
[5720,"5720","Reserves",0,{"$error":"#N/A"},null,null,0,""]
[5725,"5725","SD County Dept Of Ed",0,{"$error":"#N/A"},null,null,0,""]
[5730,"5730","Ending Balance",0,{"$error":"#N/A"},null,null,0,""]
[5732,"5732","Madison/District 85/86",0,{"$error":"#N/A"},null,null,0,""]
[5733,"5733","Kumeyaay Elem/Prop Y",0,{"$error":"#N/A"},null,null,0,""]
[5734,"5734","Hage Elementary Site",0,{"$error":"#N/A"},null,null,0,""]
[5735,"5735","Nye Elementary Site",0,{"$error":"#N/A"},null,null,0,""]
[5736,"5736","Scripps Ranch 2 Hi Schl Site",0,{"$error":"#N/A"},null,null,0,""]
[5738,"5738","Dup Site-Inactivated",0,{"$error":"#N/A"},null,null,0,""]
[5739,"5739","Calif Lit Project",0,{"$error":"#N/A"},null,null,0,""]
[5744,"5744","Miramar Ranch North/Prop MM",0,{"$error":"#N/A"},null,null,0,""]
[5745,"5745","Scripps Ranch #4 Elementary",0,{"$error":"#N/A"},null,null,0,""]
[5747,"5747","Bay Terrace Scpa",0,{"$error":"#N/A"},null,null,0,""]
[5748,"5748","Scripps Ranch #3 Middle",0,{"$error":"#N/A"},null,null,0,""]
[5749,"5749","Bandini Elementary/Prop Y",0,{"$error":"#N/A"},null,null,0,""]
[5756,"5756","Balboa Stadium",0,{"$error":"#N/A"},null,null,0,""]
[5760,"5760","Estimated Carryover",0,{"$error":"#N/A"},null,null,0,""]
[5766,"5766","Parent University",0,{"$error":"#N/A"},null,null,0,""]
[5767,"5767","Parent Academic Liaison",0,{"$error":"#N/A"},null,null,0,""]
[5779,"5779","Litigation/Settlement Costs",0,{"$error":"#N/A"},null,null,0,""]
[5786,"5786","Revere Administration",0,{"$error":"#N/A"},null,null,0,""]
[5788,"5788","San Diego Reading Clinic",0,{"$error":"#N/A"},null,null,0,""]
[5789,"5789","Instr Media Cntr Lib Cat",0,{"$error":"#N/A"},null,null,0,""]
[5790,"5790","Central Reorg Reserves",0,{"$error":"#N/A"},null,null,0,""]
[5792,"5792","Utilities & Communications Pmt",0,{"$error":"#N/A"},null,null,0,""]
[5794,"5794","Ninth District PTA/Budget Ofcs",0,{"$error":"#N/A"},null,null,0,""]
[5795,"5795","Districtwide-Budget Office Use",0,{"$error":"#N/A"},null,null,0,""]
[5796,"5796","Schedule 2",0,{"$error":"#N/A"},null,null,0,""]
[5797,"5797","Schedule 3",0,{"$error":"#N/A"},null,null,0,""]
[5798,"5798","Projected Deficit",0,{"$error":"#N/A"},null,null,0,""]
[5799,"5799","Budget  Dev Office Only",0,{"$error":"#N/A"},null,null,0,""]
[5800,"5800","Bond Interest & Redemption",0,{"$error":"#N/A"},null,null,0,""]
[5801,"5801","Elem Bldg/Emergency Repairs",0,{"$error":"#N/A"},null,null,0,""]
[5802,"5802","Budget Office Only (524)",0,{"$error":"#N/A"},null,null,0,""]
[5805,"5805","SSP/Loma Portal",0,{"$error":"#N/A"},null,null,0,""]
[5806,"5806","State School Building Fund",0,{"$error":"#N/A"},null,null,0,""]
[5809,"5809","Corporate Operation Fund",0,{"$error":"#N/A"},null,null,0,""]
[5810,"5810","Retirement Office",0,{"$error":"#N/A"},null,null,0,""]
[5812,"5812","Achieve/Acctblty Support Ctr",0,{"$error":"#N/A"},null,null,0,""]
[5814,"5814","Stores Revolving Fund",0,{"$error":"#N/A"},null,null,0,""]
[5815,"5815","SSP/Mid City 1",0,{"$error":"#N/A"},null,null,0,""]
[5816,"5816","SSP/Empl Dev Dept",0,{"$error":"#N/A"},null,null,0,""]
[5817,"5817","SSP/Mira Mesa Harmonium",0,{"$error":"#N/A"},null,null,0,""]
[5818,"5818","SSP/UTC",0,{"$error":"#N/A"},null,null,0,""]
[5819,"5819","SSP/Head Start Prnt/Chld 1",0,{"$error":"#N/A"},null,null,0,""]
[5820,"5820","Development Center",0,{"$error":"#N/A"},null,null,0,""]
[5830,"5830","CDC Program Substitutes",0,{"$error":"#N/A"},null,null,0,""]
[5831,"5831","Child Development Pgm Ofcs",0,{"$error":"#N/A"},null,null,0,""]
[5832,"5832","Child Dev Resource Ctr./Hawtho",0,{"$error":"#N/A"},null,null,0,""]
[5833,"5833","SSP/North Park 3",0,{"$error":"#N/A"},null,null,0,""]
[5843,"5843","SSP/Mid City 2",0,{"$error":"#N/A"},null,null,0,""]
[5845,"5845","SSP/Magna Carta 2",0,{"$error":"#N/A"},null,null,0,""]
[5847,"5847","SSP/Head Start Prnt/Chld 2",0,{"$error":"#N/A"},null,null,0,""]
[5849,"5849","SSP/Magna Carta 3",0,{"$error":"#N/A"},null,null,0,""]
[5850,"5850","SSP/Hold 18",0,{"$error":"#N/A"},null,null,0,""]
[5853,"5853","SSP/Hold 19",0,{"$error":"#N/A"},null,null,0,""]
[5863,"5863","SSP/Hold-4/CW",0,{"$error":"#N/A"},null,null,0,""]
[5864,"5864","SSP/Hold-5/CW",0,{"$error":"#N/A"},null,null,0,""]
[5866,"5866","SSP/Ed Cult Complex",0,{"$error":"#N/A"},null,null,0,""]
[5867,"5867","SSP/Encanto B&G Club",0,{"$error":"#N/A"},null,null,0,""]
[5868,"5868","SSP/Clairement B&G Club",0,{"$error":"#N/A"},null,null,0,""]
[5869,"5869","SSP/Horton Plaza",0,{"$error":"#N/A"},null,null,0,""]
[5872,"5872","SSP/North Park #1",0,{"$error":"#N/A"},null,null,0,""]
[5873,"5873","SSP/North Park #2",0,{"$error":"#N/A"},null,null,0,""]
[5876,"5876","SSP/Access #2",0,{"$error":"#N/A"},null,null,0,""]
[5877,"5877","SSP/Centro De Exito #2",0,{"$error":"#N/A"},null,null,0,""]
[5878,"5878","SSP/Hold-1/CW",0,{"$error":"#N/A"},null,null,0,""]
[5880,"5880","SSP/Hold-6/CW",0,{"$error":"#N/A"},null,null,0,""]
[5886,"5886","SSP/Access #1",0,{"$error":"#N/A"},null,null,0,""]
[5887,"5887","SSP/City Beach",0,{"$error":"#N/A"},null,null,0,""]
[5888,"5888","SSP/Magna Carta #1",0,{"$error":"#N/A"},null,null,0,""]
[5895,"5895","SSP/Hold-9/CW",0,{"$error":"#N/A"},null,null,0,""]
[5899,"5899","SSP/Hold-7/CW",0,{"$error":"#N/A"},null,null,0,""]
[5900,"5900","NCLB Private School Svcs",0,{"$error":"#N/A"},null,null,0,""]
[5921,"5921","Prior Year Rebudgets",0,{"$error":"#N/A"},null,null,0,""]
[5925,"5925","Special Ed Intern Programs",0,{"$error":"#N/A"},null,null,0,""]
[5927,"5927","District Intern Support Prog",0,{"$error":"#N/A"},null,null,0,""]
[5936,"5936","Boys & Girls Aid Society",0,{"$error":"#N/A"},null,null,0,""]
[5946,"5946","SDUSD Council Of PTAs",0,{"$error":"#N/A"},null,null,0,""]
[5947,"5947","Schl Imprvmnt Pgm/Bandini",0,{"$error":"#N/A"},null,null,0,""]
[5948,"5948","Gompers East",0,{"$error":"#N/A"},null,null,0,""]
[5949,"5949","CETA Youth Employment",0,{"$error":"#N/A"},null,null,0,""]
[5950,"5950","Probation Dept",0,{"$error":"#N/A"},null,null,0,""]
[5951,"5951","A/V Cat Svcs",0,{"$error":"#N/A"},null,null,0,""]
[5952,"5952","Integration Service Center",0,{"$error":"#N/A"},null,null,0,""]
[5953,"5953","Teacher Corps/Bandini Ctr",0,{"$error":"#N/A"},null,null,0,""]
[5955,"5955","Follow Thru/Juan Bandini Ctr",0,{"$error":"#N/A"},null,null,0,""]
[5956,"5956","Guidance Clinic/Bandini Ctr",0,{"$error":"#N/A"},null,null,0,""]
[5957,"5957","Prog Plng/Dev-Annex 4",0,{"$error":"#N/A"},null,null,0,""]
[5958,"5958","Prog Plng/Dev-Annex 3",0,{"$error":"#N/A"},null,null,0,""]
[5959,"5959","Professional Library",0,{"$error":"#N/A"},null,null,0,""]
[5960,"5960","IMC Equipment Pool",0,{"$error":"#N/A"},null,null,0,""]
[5961,"5961","Elem Reinforcement Reading",0,{"$error":"#N/A"},null,null,0,""]
[5962,"5962","Carpenter Shop",0,{"$error":"#N/A"},null,null,0,""]
[5963,"5963","Electrical Shop",0,{"$error":"#N/A"},null,null,0,""]
[5964,"5964","Garage/Kearny",0,{"$error":"#N/A"},null,null,0,""]
[5965,"5965","Grounds Dept",0,{"$error":"#N/A"},null,null,0,""]
[5966,"5966","Receiving & Dist Section",0,{"$error":"#N/A"},null,null,0,""]
[5967,"5967","Maintenance Unit-Delivery",0,{"$error":"#N/A"},null,null,0,""]
[5968,"5968","Irving Garage",0,{"$error":"#N/A"},null,null,0,""]
[5969,"5969","Plumbing & Heating Shop",0,{"$error":"#N/A"},null,null,0,""]
[5970,"5970","Maintenance & Oper Ctr",0,{"$error":"#N/A"},null,null,0,""]
[5971,"5971","Typewriter Shop",0,{"$error":"#N/A"},null,null,0,""]
[5972,"5972","Plant Operations Unit-Delivery",0,{"$error":"#N/A"},null,null,0,""]
[5973,"5973","Equip Pool In Repair",0,{"$error":"#N/A"},null,null,0,""]
[5974,"5974","Music Programs",0,{"$error":"#N/A"},null,null,0,""]
[5975,"5975","DWA Tiger Team",0,{"$error":"#N/A"},null,null,0,""]
[5976,"5976","SDUSD (Salvage)",0,{"$error":"#N/A"},null,null,0,""]
[5977,"5977","Elementary Cataloging",0,{"$error":"#N/A"},null,null,0,""]
[5978,"5978","General Cataloging",0,{"$error":"#N/A"},null,null,0,""]
[5979,"5979","Gifted (IMC)",0,{"$error":"#N/A"},null,null,0,""]
[5980,"5980","Race/Human Relations",0,{"$error":"#N/A"},null,null,0,""]
[5981,"5981","Materials Develop Prod Fac",0,{"$error":"#N/A"},null,null,0,""]
[5982,"5982","Stores/Equipment Warehouse",0,{"$error":"#N/A"},null,null,0,""]
[5983,"5983","Supply Center",0,{"$error":"#N/A"},null,null,0,""]
[5984,"5984","PH Programs/Twain",0,{"$error":"#N/A"},null,null,0,""]
[5985,"5985","Bilingual Tchr Team/Bird Rock",0,{"$error":"#N/A"},null,null,0,""]
[5986,"5986","Program Development",0,{"$error":"#N/A"},null,null,0,""]
[5987,"5987","R.O.P. Office",0,{"$error":"#N/A"},null,null,0,""]
[5988,"5988","Hrly Nclsrm College Staff",0,{"$error":"#N/A"},null,null,0,""]
[5989,"5989","Hrly Short Term Assign",0,{"$error":"#N/A"},null,null,0,""]
[5990,"5990","Receiving Annex/Equip Pool",0,{"$error":"#N/A"},null,null,0,""]
[5991,"5991","Curric Matrls Distrib Facility",0,{"$error":"#N/A"},null,null,0,""]
[5992,"5992","Education Center-Delivery",0,{"$error":"#N/A"},null,null,0,""]
[5993,"5993","Off School Site",0,{"$error":"#N/A"},null,null,0,""]
[5994,"5994","Title VII Pgm/Bandini",0,{"$error":"#N/A"},null,null,0,""]
[5995,"5995","SDUSD Rehabilitation Center",0,{"$error":"#N/A"},null,null,0,""]
[5996,"5996","Instr Media Center",0,{"$error":"#N/A"},null,null,0,""]
[5997,"5997","Integration Pgm Lrng Ctr Equip",0,{"$error":"#N/A"},null,null,0,""]
[5998,"5998","Unassigned Labor Pool",0,{"$error":"#N/A"},null,null,0,""]
[5999,"5999","Leave Of Absence",0,{"$error":"#N/A"},null,null,0,""]
[8125,"8125","Zamorano Prep Kitchen",0,{"$error":"#N/A"},null,null,0,""]
[8302,"8302","Bell Prep Kitchen",0,{"$error":"#N/A"},null,null,0,""]
[8304,"8304","Correia Prep Kitchen",0,{"$error":"#N/A"},null,null,0,""]
[8307,"8307","Kroc Prep Kitchen",0,{"$error":"#N/A"},null,null,0,""]
[8312,"8312","Mann Prep Kitchen",0,{"$error":"#N/A"},null,null,0,""]
[8313,"8313","Marston Prep Kitchen",0,{"$error":"#N/A"},null,null,0,""]
[8316,"8316","Montgomery Prep Kitchen",0,{"$error":"#N/A"},null,null,0,""]
[8319,"8319","O'Farrell Prep Kitchen",0,{"$error":"#N/A"},null,null,0,""]
[8321,"8321","Pershing Prep Kitchen",0,{"$error":"#N/A"},null,null,0,""]
[8322,"8322","Clark Prep Kitchen",0,{"$error":"#N/A"},null,null,0,""]
[8329,"8329","Wilson Prep Kitchen",0,{"$error":"#N/A"},null,null,0,""]
[8334,"8334","Crawford Prep Kitchen",0,{"$error":"#N/A"},null,null,0,""]
[8335,"8335","Gompers Prep Kitchen",0,{"$error":"#N/A"},null,null,0,""]
[8338,"8338","Hoover Prep Kitchen",0,{"$error":"#N/A"},null,null,0,""]
[8342,"8342","La Jolla Prep Kitchen",0,{"$error":"#N/A"},null,null,0,""]
[8346,"8346","Madison Prep Kitchen",0,{"$error":"#N/A"},null,null,0,""]
[8349,"8349","Mira Mesa Prep Kitchen",0,{"$error":"#N/A"},null,null,0,""]
[8350,"8350","Mission Bay Prep Kitchen",0,{"$error":"#N/A"},null,null,0,""]
[8352,"8352","Morse Prep Kitchen",0,{"$error":"#N/A"},null,null,0,""]
[8355,"8355","University City Prep Kitchen",0,{"$error":"#N/A"},null,null,0,""]
[8356,"8356","San Diego HS Cafeteria",0,{"$error":"#N/A"},null,null,0,""]
[8357,"8357","Serra Prep Kitchen",0,{"$error":"#N/A"},null,null,0,""]
[8359,"8359","Scripps Prep Kitchen",0,{"$error":"#N/A"},null,null,0,""]
[8368,"8368","SCPA Prep Kitchen",0,{"$error":"#N/A"},null,null,0,""]
[8604,"8604","Food Service - Summer School",0,{"$error":"#N/A"},null,null,0,""]
[8637,"8637","Lincoln Prep Kitchen",0,{"$error":"#N/A"},null,null,0,""]
[8641,"8641","Cajon Valley Food Svcs",0,{"$error":"#N/A"},null,null,0,""]
[8642,"8642","Grossmont Food Svcs",0,{"$error":"#N/A"},null,null,0,""]
[8643,"8643","Santee Food Svcs",0,{"$error":"#N/A"},null,null,0,""]
[8644,"8644","Birney Anex Food Svcs",0,{"$error":"#N/A"},null,null,0,""]
[8645,"8645","Poway Food Svcs",0,{"$error":"#N/A"},null,null,0,""]
[8646,"8646","Escondido Food Svcs",0,{"$error":"#N/A"},null,null,0,""]
[8647,"8647","San Marcos Food Svcs",0,{"$error":"#N/A"},null,null,0,""]
[8649,"8649","Sandco Food Svcs",0,{"$error":"#N/A"},null,null,0,""]
[8669,"8669","Food Svcs/Lewis Test Kitchen",0,{"$error":"#N/A"},null,null,0,""]
[8670,"8670","Food Services/District",0,{"$error":"#N/A"},null,null,0,""]
[8671,"8671","Food Services Supply Ctr",0,{"$error":"#N/A"},null,null,0,""]
[8701,"8701","Crawford Prep Kitchen",0,{"$error":"#N/A"},null,null,0,""]
[8803,"8803","Dist Food Prdt Dist Ctr",0,{"$error":"#N/A"},null,null,0,""]
[8804,"8804","Catering/Food Services",0,{"$error":"#N/A"},null,null,0,""]
[8807,"8807","Food Svcs Relief Workers",0,{"$error":"#N/A"},null,null,0,""]
[8808,"8808","Cafeteria Dept",0,{"$error":"#N/A"},null,null,0,""]
[8811,"8811","Cafeteria Van Drivers",0,{"$error":"#N/A"},null,null,0,""]
[8813,"8813","Cafeteria BBQ Crew",0,{"$error":"#N/A"},null,null,0,""]
[8821,"8821","San Diego HS - ASB",0,{"$error":"#N/A"},null,null,0,""]
[8822,"8822","University City Student Store",0,{"$error":"#N/A"},null,null,0,""]
[8823,"8823","Scripps Ranch Student Store",0,{"$error":"#N/A"},null,null,0,""]
[8824,"8824","Henry Student Store",0,{"$error":"#N/A"},null,null,0,""]
[8825,"8825","Pt Loma Student Store",0,{"$error":"#N/A"},null,null,0,""]
[8826,"8826","Hoover Student Store",0,{"$error":"#N/A"},null,null,0,""]
[8827,"8827","Gompers Student Store",0,{"$error":"#N/A"},null,null,0,""]
[8828,"8828","Madison Student Store",0,{"$error":"#N/A"},null,null,0,""]
[8829,"8829","Serra Student Store",0,{"$error":"#N/A"},null,null,0,""]
[9003,"9003","Adams",0,{"$error":"#N/A"},null,null,0,""]
[9004,"9004","Alcott",0,{"$error":"#N/A"},null,null,0,""]
[9005,"9005","Anderson",0,{"$error":"#N/A"},null,null,0,""]
[9007,"9007","Angier",0,{"$error":"#N/A"},null,null,0,""]
[9008,"9008","Audeo New Property",0,{"$error":"#N/A"},null,null,0,""]
[9009,"9009","Audubon",0,{"$error":"#N/A"},null,null,0,""]
[9011,"9011","Baker",0,{"$error":"#N/A"},null,null,0,""]
[9013,"9013","Balboa",0,{"$error":"#N/A"},null,null,0,""]
[9015,"9015","Bandini",0,{"$error":"#N/A"},null,null,0,""]
[9017,"9017","Barnard",0,{"$error":"#N/A"},null,null,0,""]
[9019,"9019","Linda Vista Annex",0,{"$error":"#N/A"},null,null,0,""]
[9021,"9021","Bay Park",0,{"$error":"#N/A"},null,null,0,""]
[9023,"9023","Bayview Terrace",0,{"$error":"#N/A"},null,null,0,""]
[9027,"9027","Benchley",0,{"$error":"#N/A"},null,null,0,""]
[9029,"9029","Bird Rock",0,{"$error":"#N/A"},null,null,0,""]
[9031,"9031","Birney",0,{"$error":"#N/A"},null,null,0,""]
[9033,"9033","Boone",0,{"$error":"#N/A"},null,null,0,""]
[9037,"9037","Brooklyn",0,{"$error":"#N/A"},null,null,0,""]
[9039,"9039","Burbank",0,{"$error":"#N/A"},null,null,0,""]
[9040,"9040","Miramar Area New Twin Schools",0,{"$error":"#N/A"},null,null,0,""]
[9041,"9041","Cabrillo",0,{"$error":"#N/A"},null,null,0,""]
[9043,"9043","Cadman",0,{"$error":"#N/A"},null,null,0,""]
[9055,"9055","Carson",0,{"$error":"#N/A"},null,null,0,""]
[9057,"9057","Carver",0,{"$error":"#N/A"},null,null,0,""]
[9059,"9059","Central",0,{"$error":"#N/A"},null,null,0,""]
[9060,"9060","Chavez",0,{"$error":"#N/A"},null,null,0,""]
[9061,"9061","Chesterton",0,{"$error":"#N/A"},null,null,0,""]
[9062,"9062","Cherokee Point",0,{"$error":"#N/A"},null,null,0,""]
[9063,"9063","Chollas",0,{"$error":"#N/A"},null,null,0,""]
[9064,"9064","New Mead",0,{"$error":"#N/A"},null,null,0,""]
[9065,"9065","Clay",0,{"$error":"#N/A"},null,null,0,""]
[9067,"9067","Cleveland",0,{"$error":"#N/A"},null,null,0,""]
[9073,"9073","Crown Point",0,{"$error":"#N/A"},null,null,0,""]
[9075,"9075","Cubberly",0,{"$error":"#N/A"},null,null,0,""]
[9077,"9077","Curie",0,{"$error":"#N/A"},null,null,0,""]
[9078,"9078","Dailard",0,{"$error":"#N/A"},null,null,0,""]
[9079,"9079","Darnall E-Campus",0,{"$error":"#N/A"},null,null,0,""]
[9080,"9080","Dana",0,{"$error":"#N/A"},null,null,0,""]
[9083,"9083","Decatur",0,{"$error":"#N/A"},null,null,0,""]
[9085,"9085","Dewey",0,{"$error":"#N/A"},null,null,0,""]
[9086,"9086","Dingeman",0,{"$error":"#N/A"},null,null,0,""]
[9087,"9087","Doyle",0,{"$error":"#N/A"},null,null,0,""]
[9089,"9089","Edison",0,{"$error":"#N/A"},null,null,0,""]
[9090,"9090","Spring Canyon Site",0,{"$error":"#N/A"},null,null,0,""]
[9091,"9091","Emerson",0,{"$error":"#N/A"},null,null,0,""]
[9093,"9093","Encanto",0,{"$error":"#N/A"},null,null,0,""]
[9095,"9095","Euclid",0,{"$error":"#N/A"},null,null,0,""]
[9103,"9103","Field",0,{"$error":"#N/A"},null,null,0,""]
[9105,"9105","Fletcher",0,{"$error":"#N/A"},null,null,0,""]
[9107,"9107","Florence",0,{"$error":"#N/A"},null,null,0,""]
[9109,"9109","Forward",0,{"$error":"#N/A"},null,null,0,""]
[9111,"9111","Foster",0,{"$error":"#N/A"},null,null,0,""]
[9113,"9113","Franklin",0,{"$error":"#N/A"},null,null,0,""]
[9115,"9115","Freese",0,{"$error":"#N/A"},null,null,0,""]
[9117,"9117","Fremont",0,{"$error":"#N/A"},null,null,0,""]
[9119,"9119","Fulton",0,{"$error":"#N/A"},null,null,0,""]
[9121,"9121","Gage",0,{"$error":"#N/A"},null,null,0,""]
[9123,"9123","Bethune",0,{"$error":"#N/A"},null,null,0,""]
[9124,"9124","Garfield",0,{"$error":"#N/A"},null,null,0,""]
[9125,"9125","Zamarano",0,{"$error":"#N/A"},null,null,0,""]
[9127,"9127","Grant",0,{"$error":"#N/A"},null,null,0,""]
[9128,"9128","Golden Hill",0,{"$error":"#N/A"},null,null,0,""]
[9129,"9129","Grantville",0,{"$error":"#N/A"},null,null,0,""]
[9130,"9130","Joyner",0,{"$error":"#N/A"},null,null,0,""]
[9131,"9131","Green",0,{"$error":"#N/A"},null,null,0,""]
[9132,"9132","Fay",0,{"$error":"#N/A"},null,null,0,""]
[9134,"9134","Hage",0,{"$error":"#N/A"},null,null,0,""]
[9135,"9135","Hamilton",0,{"$error":"#N/A"},null,null,0,""]
[9136,"9136","Hancock",0,{"$error":"#N/A"},null,null,0,""]
[9137,"9137","Rodriguez",0,{"$error":"#N/A"},null,null,0,""]
[9139,"9139","Hardy",0,{"$error":"#N/A"},null,null,0,""]
[9141,"9141","Hawthorne",0,{"$error":"#N/A"},null,null,0,""]
[9143,"9143","Hearst",0,{"$error":"#N/A"},null,null,0,""]
[9147,"9147","Holmes",0,{"$error":"#N/A"},null,null,0,""]
[9149,"9149","Horton",0,{"$error":"#N/A"},null,null,0,""]
[9150,"9150","Ibarra",0,{"$error":"#N/A"},null,null,0,""]
[9153,"9153","Jackson",0,{"$error":"#N/A"},null,null,0,""]
[9155,"9155","Jefferson",0,{"$error":"#N/A"},null,null,0,""]
[9156,"9156","Jerabek",0,{"$error":"#N/A"},null,null,0,""]
[9157,"9157","Johnson",0,{"$error":"#N/A"},null,null,0,""]
[9159,"9159","Jones",0,{"$error":"#N/A"},null,null,0,""]
[9161,"9161","Juarez",0,{"$error":"#N/A"},null,null,0,""]
[9162,"9162","Kimbrough",0,{"$error":"#N/A"},null,null,0,""]
[9165,"9165","Knox",0,{"$error":"#N/A"},null,null,0,""]
[9166,"9166","Kumeyaay",0,{"$error":"#N/A"},null,null,0,""]
[9167,"9167","Lafayette",0,{"$error":"#N/A"},null,null,0,""]
[9169,"9169","La Jolla",0,{"$error":"#N/A"},null,null,0,""]
[9170,"9170","Language Acad",0,{"$error":"#N/A"},null,null,0,""]
[9171,"9171","Lee",0,{"$error":"#N/A"},null,null,0,""]
[9173,"9173","Linda Vista",0,{"$error":"#N/A"},null,null,0,""]
[9175,"9175","Lindbergh/Schweitzer",0,{"$error":"#N/A"},null,null,0,""]
[9177,"9177","Logan",0,{"$error":"#N/A"},null,null,0,""]
[9179,"9179","Loma Portal",0,{"$error":"#N/A"},null,null,0,""]
[9181,"9181","Longfellow",0,{"$error":"#N/A"},null,null,0,""]
[9185,"9185","Perkins",0,{"$error":"#N/A"},null,null,0,""]
[9188,"9188","MacDowell",0,{"$error":"#N/A"},null,null,0,""]
[9193,"9193","Marcy",0,{"$error":"#N/A"},null,null,0,""]
[9195,"9195","Marshall",0,{"$error":"#N/A"},null,null,0,""]
[9197,"9197","Marvin",0,{"$error":"#N/A"},null,null,0,""]
[9199,"9199","Mason",0,{"$error":"#N/A"},null,null,0,""]
[9200,"9200","Jonas Salk Elementary",0,{"$error":"#N/A"},null,null,0,""]
[9201,"9201","Hickman",0,{"$error":"#N/A"},null,null,0,""]
[9203,"9203","McKinley",0,{"$error":"#N/A"},null,null,0,""]
[9205,"9205","Old Mead",0,{"$error":"#N/A"},null,null,0,""]
[9206,"9206","Miller",0,{"$error":"#N/A"},null,null,0,""]
[9208,"9208","North Park",0,{"$error":"#N/A"},null,null,0,""]
[9210,"9210","Miramar Ranch",0,{"$error":"#N/A"},null,null,0,""]
[9211,"9211","Mission Beach",0,{"$error":"#N/A"},null,null,0,""]
[9214,"9214","Harriet Tubman Village",0,{"$error":"#N/A"},null,null,0,""]
[9215,"9215","Normal Heights",0,{"$error":"#N/A"},null,null,0,""]
[9217,"9217","Ericson",0,{"$error":"#N/A"},null,null,0,""]
[9218,"9218","Nye",0,{"$error":"#N/A"},null,null,0,""]
[9219,"9219","Sandburg",0,{"$error":"#N/A"},null,null,0,""]
[9223,"9223","Oak Park",0,{"$error":"#N/A"},null,null,0,""]
[9225,"9225","Ocean Beach",0,{"$error":"#N/A"},null,null,0,""]
[9226,"9226","Ocean Discovery",0,{"$error":"#N/A"},null,null,0,""]
[9227,"9227","Pacific Beach",0,{"$error":"#N/A"},null,null,0,""]
[9229,"9229","Paradise Hills",0,{"$error":"#N/A"},null,null,0,""]
[9230,"9230","Rosa Parks",0,{"$error":"#N/A"},null,null,0,""]
[9235,"9235","Penn",0,{"$error":"#N/A"},null,null,0,""]
[9236,"9236","Porter",0,{"$error":"#N/A"},null,null,0,""]
[9237,"9237","Perry",0,{"$error":"#N/A"},null,null,0,""]
[9239,"9239","Revere Center",0,{"$error":"#N/A"},null,null,0,""]
[9243,"9243","Rolando Park",0,{"$error":"#N/A"},null,null,0,""]
[9247,"9247","Ross",0,{"$error":"#N/A"},null,null,0,""]
[9249,"9249","Rowan",0,{"$error":"#N/A"},null,null,0,""]
[9251,"9251","Scripps",0,{"$error":"#N/A"},null,null,0,""]
[9253,"9253","Sequoia",0,{"$error":"#N/A"},null,null,0,""]
[9255,"9255","Sessions",0,{"$error":"#N/A"},null,null,0,""]
[9259,"9259","Sherman",0,{"$error":"#N/A"},null,null,0,""]
[9261,"9261","Silver Gate",0,{"$error":"#N/A"},null,null,0,""]
[9263,"9263","Spreckels",0,{"$error":"#N/A"},null,null,0,""]
[9265,"9265","Stevenson",0,{"$error":"#N/A"},null,null,0,""]
[9267,"9267","King",0,{"$error":"#N/A"},null,null,0,""]
[9269,"9269","Sunset View",0,{"$error":"#N/A"},null,null,0,""]
[9274,"9274","Tierransanta",0,{"$error":"#N/A"},null,null,0,""]
[9277,"9277","Toler",0,{"$error":"#N/A"},null,null,0,""]
[9279,"9279","Torrey Pines",0,{"$error":"#N/A"},null,null,0,""]
[9283,"9283","Valencia Park",0,{"$error":"#N/A"},null,null,0,""]
[9284,"9284","Vista Grande",0,{"$error":"#N/A"},null,null,0,""]
[9285,"9285","Walker",0,{"$error":"#N/A"},null,null,0,""]
[9287,"9287","Washington",0,{"$error":"#N/A"},null,null,0,""]
[9289,"9289","Webster",0,{"$error":"#N/A"},null,null,0,""]
[9291,"9291","Wegeforth",0,{"$error":"#N/A"},null,null,0,""]
[9293,"9293","Benchley/Weinberger",0,{"$error":"#N/A"},null,null,0,""]
[9295,"9295","Whitman",0,{"$error":"#N/A"},null,null,0,""]
[9297,"9297","Whittier",0,{"$error":"#N/A"},null,null,0,""]
[9299,"9299","Wiggins",0,{"$error":"#N/A"},null,null,0,""]
[9302,"9302","Bell",0,{"$error":"#N/A"},null,null,0,""]
[9303,"9303","Challenger",0,{"$error":"#N/A"},null,null,0,""]
[9304,"9304","Correia",0,{"$error":"#N/A"},null,null,0,""]
[9307,"9307","Kroc",0,{"$error":"#N/A"},null,null,0,""]
[9308,"9308","E.B. Scripps",0,{"$error":"#N/A"},null,null,0,""]
[9309,"9309","Hale",0,{"$error":"#N/A"},null,null,0,""]
[9311,"9311","Lewis",0,{"$error":"#N/A"},null,null,0,""]
[9312,"9312","Mann",0,{"$error":"#N/A"},null,null,0,""]
[9313,"9313","Marston",0,{"$error":"#N/A"},null,null,0,""]
[9315,"9315","Memorial",0,{"$error":"#N/A"},null,null,0,""]
[9316,"9316","Montgomery",0,{"$error":"#N/A"},null,null,0,""]
[9317,"9317","Muirlands",0,{"$error":"#N/A"},null,null,0,""]
[9319,"9319","O'Farrell Community",0,{"$error":"#N/A"},null,null,0,""]
[9320,"9320","Pacific Beach MS",0,{"$error":"#N/A"},null,null,0,""]
[9321,"9321","Pershing",0,{"$error":"#N/A"},null,null,0,""]
[9322,"9322","Clark",0,{"$error":"#N/A"},null,null,0,""]
[9324,"9324","Roosevelt",0,{"$error":"#N/A"},null,null,0,""]
[9325,"9325","Standley",0,{"$error":"#N/A"},null,null,0,""]
[9326,"9326","Taft",0,{"$error":"#N/A"},null,null,0,""]
[9327,"9327","De Portola",0,{"$error":"#N/A"},null,null,0,""]
[9328,"9328","Wangenheim",0,{"$error":"#N/A"},null,null,0,""]
[9329,"9329","Wilson",0,{"$error":"#N/A"},null,null,0,""]
[9331,"9331","ALBA High",0,{"$error":"#N/A"},null,null,0,""]
[9332,"9332","Clairemont",0,{"$error":"#N/A"},null,null,0,""]
[9334,"9334","Crawford",0,{"$error":"#N/A"},null,null,0,""]
[9335,"9335","Gompers West",0,{"$error":"#N/A"},null,null,0,""]
[9336,"9336","Henry",0,{"$error":"#N/A"},null,null,0,""]
[9338,"9338","Hoover",0,{"$error":"#N/A"},null,null,0,""]
[9340,"9340","Kearny",0,{"$error":"#N/A"},null,null,0,""]
[9341,"9341","Gompers East",0,{"$error":"#N/A"},null,null,0,""]
[9342,"9342","La Jolla HS",0,{"$error":"#N/A"},null,null,0,""]
[9344,"9344","Lincoln",0,{"$error":"#N/A"},null,null,0,""]
[9346,"9346","Madison",0,{"$error":"#N/A"},null,null,0,""]
[9349,"9349","Mira Mesa",0,{"$error":"#N/A"},null,null,0,""]
[9350,"9350","Mission Bay",0,{"$error":"#N/A"},null,null,0,""]
[9351,"9351","Twain at Morse HS",0,{"$error":"#N/A"},null,null,0,""]
[9352,"9352","Morse",0,{"$error":"#N/A"},null,null,0,""]
[9354,"9354","Point Loma",0,{"$error":"#N/A"},null,null,0,""]
[9355,"9355","University City",0,{"$error":"#N/A"},null,null,0,""]
[9356,"9356","San Diego",0,{"$error":"#N/A"},null,null,0,""]
[9357,"9357","Serra",0,{"$error":"#N/A"},null,null,0,""]
[9359,"9359","Scripps Ranch",0,{"$error":"#N/A"},null,null,0,""]
[9361,"9361","Garfield HS",0,{"$error":"#N/A"},null,null,0,""]
[9362,"9362","Twain Main Jr/Sr High",0,{"$error":"#N/A"},null,null,0,""]
[9364,"9364","Riley",0,{"$error":"#N/A"},null,null,0,""]
[9365,"9365","Keiller",0,{"$error":"#N/A"},null,null,0,""]
[9367,"9367","Farb",0,{"$error":"#N/A"},null,null,0,""]
[9368,"9368","SCPA",0,{"$error":"#N/A"},null,null,0,""]
[9369,"9369","John Muir School",0,{"$error":"#N/A"},null,null,0,""]
[9370,"9370","Marshall MS",0,{"$error":"#N/A"},null,null,0,""]
[9375,"9375","Downtown Library School",0,{"$error":"#N/A"},null,null,0,""]
[9380,"9380","Scripps (E.B.)",0,{"$error":"#N/A"},null,null,0,""]
[9402,"9402","Marcy Ave Complex",0,{"$error":"#N/A"},null,null,0,""]
[9481,"9481","Facilities Construction",0,{"$error":"#N/A"},null,null,0,""]
[9552,"9552","Supply Center",0,{"$error":"#N/A"},null,null,0,""]
[9609,"9609","Physical Plant Ops Transfer",0,{"$error":"#N/A"},null,null,0,""]
[9610,"9610","Physical Plant Operations",0,{"$error":"#N/A"},null,null,0,""]
[9650,"9650","Transportation Center",0,{"$error":"#N/A"},null,null,0,""]
[9677,"9677","Fairbrook Site",0,{"$error":"#N/A"},null,null,0,""]
[9834,"9834","Bayview CDC",0,{"$error":"#N/A"},null,null,0,""]
[9835,"9835","Brooklyn CDC",0,{"$error":"#N/A"},null,null,0,""]
[9846,"9846","Kennedy CDC",0,{"$error":"#N/A"},null,null,0,""]
[9863,"9863","Bay Point Preschool",0,{"$error":"#N/A"},null,null,0,""]
[9905,"9905","OCILE - Camp Palomar",0,{"$error":"#N/A"},null,null,0,""]
[9907,"9907","Bay Terraces #11",0,{"$error":"#N/A"},null,null,0,""]
[9908,"9908","Camp Elliot Elementary #3",0,{"$error":"#N/A"},null,null,0,""]
[9909,"9909","Camp Elliott Jr HS #2",0,{"$error":"#N/A"},null,null,0,""]
[9910,"9910","Irving Site",0,{"$error":"#N/A"},null,null,0,""]
[9912,"9912","Serra Elementary",0,{"$error":"#N/A"},null,null,0,""]
[9992,"9992","Education Center",0,{"$error":"#N/A"},null,null,0,""]
[9996,"9996","Instructional Media Center",0,{"$error":"#N/A"},null,null,0,""]

{"sheet":"AC","index":5,"n_rows":1140,"n_cols":3,"rows_kept":1140,"hidden":true}
["Account","Account","Long Descr"]
["0000",{"$f":"VALUE(A2)","v":0},"All Accounts"]
["0341",{"$f":"VALUE(A3)","v":341},"SD Millennial Tech Magnet"]
["1000",1000,"Certificated Salaries"]
["1100",1100,"Teachers'  Salaries"]
["1101",1101,"Teacher/Childrens Center"]
["1103",1103,"Teacher/Clsrm/Preschool"]
["1107",1107,"Classroom Teacher"]
["1109",1109,"Pull/Out Push In"]
["1113",1113,"Teacher/Clsrm/GATE"]
["1114",1114,"Enrollment Reserve"]
["1118",1118,"Prep Time Teacher Allocation"]
["1128",1128,"Resource Specialist"]
["1132",1132,"Master/Lead Teacher"]
["1136",1136,"Lv of Absence NonPay Status"]
["1147",1147,"Clsrm Cert Salry Undist Contra"]
["1150",1150,"Teacher Asst/Clsrm/Hrly"]
["1151",1151,"Teacher/Childrens Ctr/Hrly"]
["1152",1152,"Extended Day Pay Per Unit"]
["1153",1153,"Tchr/Clsrm/Preschool/Hrly"]
["1154",1154,"Enrollment Reserve"]
["1157",1157,"Classroom Teacher Hrly"]
["1158",1158,"Techer/Clsrm/Ext Day/ROTC"]
["1159",1159,"PullOut/Push in Hrly"]
["1160",1160,"Student Teacher Supv"]
["1161",1161,"Sub In Lieu of Overformula"]
["1162",1162,"Short Term Leave Visiting Tchr"]
["1163",1163,"Long Term Leave Visiting Tchr"]
["1164",1164,"Teacher/ClsrmSuper/Hrly"]
["1165",1165,"Jury & Berevmnt Visiting Tchr"]
["1168",1168,"Tchr/Elem/PrepTime/Hrly"]
["1170",1170,"Prof&Curriclm DevHrlyClsrmTchr"]
["1171",1171,"Hourly Tutorial Assignment"]
["1178",1178,"Resource Specialist Hrly"]
["1182",1182,"Master Lead Tchr/Hrly"]
["1186",1186,"Other Cert/Ret/Consultant/Cl"]
["1187",1187,"Adult Ed/Hrly"]
["1189",1189,"Retired Clsrm Teacher Hrly"]
["1192",1192,"Prof&Curriclm Dev Vist Tchr"]
["1197",1197,"Clsrm Cert Hrly Undist/Contra"]
["1200",1200,"Certificated Pupil Support Sal"]
["1201",1201,"Librarian"]
["1202",1202,"Principal/Special Assign/Cert"]
["1203",1203,"Vice-Principal/School Site"]
["1204",1204,"Vice Principal/Spec Assign/Cer"]
["1206",1206,"OCILE Administrator"]
["1208",1208,"Charter School Admin/Cert"]
["1210",1210,"Counselor"]
["1220",1220,"Psychologist"]
["1230",1230,"Audiologist/Audiometrist"]
["1240",1240,"Nurse"]
["1251",1251,"Librarian Hrly"]
["1253",1253,"Vice-Principal/Sch. Site/Hrly"]
["1258",1258,"Charter School/Admin/Hrly"]
["1260",1260,"Counselor Hrly"]
["1262",1262,"Nurse/Counslr/Psychologist Sub"]
["1270",1270,"Psychologist Hrly"]
["1280",1280,"Audiologist/Audiometrist Hrly"]
["1290",1290,"Nurse Hrly"]
["1300",1300,"Cert Super and Admin Sal"]
["1301",1301,"Superintendent"]
["1302",1302,"Chief SIO/Depty Superintdnt"]
["1303",1303,"Coordinator/Cert"]
["1305",1305,"Chief/Exec/Dir/Admin (Rep)"]
["1306",1306,"Chief/Exec/Dir/Admin(Non-Rep)"]
["1307",1307,"Assistant Director/Cert"]
["1308",{"$f":"VALUE(A67)","v":1308},"School Principal"]
["1309",1309,"Vice-Principal"]
["1311",1311,"Manager"]
["1313",1313,"Other Admin Cert"]
["1315",1315,"Admin On Special Assignment"]
["1321",1321,"Director"]
["1358",1358,"Principal Hrly"]
["1359",1359,"Vice-Principal Hrly"]
["1361",1361,"Manager/Admin Hrly"]
["1363",1363,"Administrator/Cert/Hrl"]
["1365",1365,"Admin/Spec Assign/Hrly"]
["1386",1386,"Retired Admin Hrly"]
["1401",1401,"Librarian/Cert"]
["1451",1451,"Librarian/Cert/Hrly"]
["1462",1462,"Librarian/Temp Subst"]
["1501",1501,"Counselor/Cert"]
["1502",1502,"Dist Counselor/Elem/Cert"]
["1503",1503,"Head Counselor/Cert"]
["1507",1507,"Psychologist/Cert"]
["1509",1509,"Psychologist Intern"]
["1551",1551,"Counselor/Cert/Hrly"]
["1553",1553,"Head Counselor/Cert/Hourly"]
["1557",1557,"Psychologist/Cert/Hourly"]
["1559",1559,"Psychologist Intern/Hourly"]
["1562",1562,"Counselor/Psychologist Subst"]
["1579",1579,"Diagnostic Resource Tchr/Hrly"]
["1603",1603,"Audiologist/Cert"]
["1605",1605,"Audiometrist/Cert"]
["1609",1609,"Nurse/Cert"]
["1653",1653,"Audiologist/Cert/Hrly"]
["1655",1655,"Audiometrist/Cert/Hourly"]
["1659",1659,"Nurse/Cert/Hrly"]
["1660",1660,"Nurse/Subst/Cert/Temp."]
["1801",1801,"Executive Director"]
["1806",1806,"Human Resrc Admin Cert"]
["1808",1808,"Chancellor Of Instruction"]
["1809",1809,"Deputy Superintendent"]
["1812",1812,"Assistant Superintendents"]
["1862",1862,"Instruc Ldrs/Hrly"]
["1900",1900,"Other Certificated Salaries"]
["1901",1901,"Principal/Special Asssign/Cert"]
["1904",1904,"Site Staff Developers"]
["1906",1906,"Certified Transition Worker"]
["1907",1907,"Non Clsrm Teacher"]
["1908",1908,"Intern Support Provider"]
["1910",1910,"Program Specialist"]
["1911",1911,"Vice Principal/Spec Assign/Cer"]
["1915",1915,"Admin On Special Assignment"]
["1916",1916,"District Employee On Loan"]
["1929",1929,"Diagnostic Resource Teacher"]
["1955",1955,"Teacher/Non-Clsrm/Hrly"]
["1957",1957,"Non Clsrm Tchr Hrly"]
["1958",1958,"Other Cert Pers/Hrly"]
["1960",1960,"Pgm Specialist/Hrly"]
["1964",1964,"Site Staff Developer/N-C/Cert/"]
["1965",1965,"Admin/Spec Assign/Hrly"]
["1971",1971,"NonClsrm Prof&Curriclm DevHrly"]
["1973",1973,"NonClsrm Cert Prof Dev/Hrly"]
["1975",1975,"Inservice Trainer Hrly"]
["1979",1979,"Diagnostic Resource Tchr Hrly"]
["1986",1986,"Retired NonClsrm Tchr Hrly"]
["1992",1992,"Certificated Stipend"]
["1997",1997,"No Clsrm/Cert  Salaries Contra"]
["1998",1998,"Undistr Cert Salary"]
["2000",{"$f":"VALUE(A131)","v":2000},"Classified Salaries"]
["2100",2100,"Instructional Aide Salaries"]
["2101",2101,"Classroom PARAS"]
["2104",2104,"Special Ed Technician Clsrm"]
["2109",2109,"Instructn Asst Individual Inst"]
["2112",2112,"Special Ed Instr Behavior Tech"]
["2115",2115,"Behavior Support Specialist"]
["2116",2116,"Rehabilitation Specialist"]
["2117",2117,"Locker Rm Attend/Clsrm"]
["2118",2118,"Behavior Support Assistant"]
["2121",2121,"Interpreter Deaf Classroom"]
["2122",2122,"Health Svcs Outreach Asst."]
["2123",2123,"Community Asst/Classroom"]
["2125",2125,"Braille Comp Skls Asst"]
["2126",2126,"Classroom OTBS"]
["2127",2127,"Childcare Activity Leader"]
["2128",2128,"Childcare Activity Asst"]
["2129",2129,"Braille Transcriber"]
["2132",2132,"Educational Transcriber"]
["2134",2134,"Spec Ed Tech Individualized In"]
["2147",2147,"Sch To Work Trans Asst"]
["2151",2151,"Classroom PARAS Hrly"]
["2152",2152,"Instr Asst/Bus/Hrly"]
["2154",2154,"Special Ed Tech Clsrm Hrly"]
["2156",2156,"Student Helper/Classroom/Hrly"]
["2158",2158,"Work Incentive Trainee"]
["2159",2159,"Instructn Assist Individual In"]
["2162",2162,"Sp Ed Instr Behavior Tech Hrly"]
["2165",2165,"Behavior Support Hrly"]
["2167",2167,"Locker Rm Attend/Clsrm/Hrly"]
["2168",2168,"Paraeducator / Substitutes"]
["2169",2169,"Classroom Assistant/Hrly/Chart"]
["2170",2170,"Behavior Support Spec/Hrly"]
["2171",2171,"Interpreter Deaf Clsrm Hrly"]
["2172",2172,"Health Svcs Outreach Asst./Hrl"]
["2173",2173,"Community Asst/Clsrm/Hrly"]
["2175",2175,"Braille Co Sk Asst/Hrly"]
["2176",2176,"Classroom OTBS Hrly"]
["2178",2178,"Child Care Act Asst/Hrly/Clsrm"]
["2179",2179,"Braille Transcriber / Hrly"]
["2182",2182,"Educational Transcriber Hourly"]
["2183",2183,"Classroom NonUnion Hrly"]
["2189",2189,"Behavior Support Asst/Hrly"]
["2192",2192,"College Student Worker/Clsrm"]
["2194",2194,"Student Intern/Hrly"]
["2196",2196,"Ret/Clsfd/Hr/Exempt/Ret Calc"]
["2197",2197,"Sch To Work Trans Asst/Hrly"]
["2200",2200,"Classified Support Salary"]
["2201",2201,"Custodian"]
["2202",2202,"Landscaper  Pesticide Tech"]
["2205",2205,"Maintenance OSS"]
["2206",2206,"Maintenance OTBS"]
["2207",2207,"Mechanic  Technician"]
["2208",2208,"Chief Of Staff"]
["2209",2209,"Deputy Chief of Staff"]
["2210",2210,"Operations Driver"]
["2211",2211,"Bus Driver"]
["2212",2212,"Bus Monitor"]
["2213",2213,"Other Pupil Transprt Prsnl OSS"]
["2215",2215,"School Police Sworn"]
["2216",2216,"School Police NonSworn"]
["2217",2217,"Campus Security Assistant"]
["2218",2218,"Controller"]
["2219",2219,"Coordinator/Clsfd"]
["2220",{"$f":"VALUE(A195)","v":2220},"Food Service Workers"]
["2222",2222,"Assist General Counsel"]
["2223",2223,"Director/Clsfd"]
["2226",2226,"Employer Outreach Specialist"]
["2228",2228,"Schools Architect/Clsfd"]
["2229",2229,"General Counsel"]
["2230",2230,"Libry  Media & Tech OTBS"]
["2231",2231,"Other Support Prsnl PARAS"]
["2232",2232,"Other Support Prsnl OTBS"]
["2233",2233,"Other Support Prsnl OSS"]
["2235",2235,"Health Prsnl OTBS"]
["2236",2236,"Health Prsnl PARAS"]
["2237",2237,"School Police Chief"]
["2239",2239,"Chief Business Officer"]
["2240",2240,"Charter School Adm/Clsfd"]
["2241",2241,"Classified Supervisor"]
["2242",2242,"Action Officer"]
["2243",2243,"Independent Policy Analyst"]
["2246",2246,"Deputy Chief of Staff"]
["2247",2247,"Deputy Superintendent"]
["2248",2248,"Operations Specialist"]
["2249",2249,"Staff Action Officer"]
["2251",2251,"Custodian Hrly"]
["2252",2252,"Landscape / Pesticide Hrly"]
["2253",2253,"Operations Substitute OSS"]
["2255",2255,"Maintenance OSS Hrly"]
["2256",2256,"Maintenance OTBS Hrly"]
["2257",2257,"Mechanic  Technician Hrly"]
["2260",2260,"Operations Driver Hrly"]
["2261",2261,"Bus Driver Hrly"]
["2262",2262,"Bus Monitor Hrly"]
["2263",2263,"Other Pupil Transpt OSS Hrly"]
["2264",2264,"Other Transpt NonUnion Hrly"]
["2265",2265,"School Police Sworn Hrly"]
["2266",2266,"School Police NonSworn Hrly"]
["2267",2267,"Campus Security Asst Hrly"]
["2269",2269,"Coordinator/Clfsd/Hrly"]
["2270",2270,"Food Service Workers Hrly"]
["2276",2276,"Employer Outreach Hrly"]
["2280",2280,"Libry  Media  Tech OTBS Hly"]
["2281",2281,"Other Support Prsnl PARAS Hrly"]
["2282",2282,"Other Support Prsnl OTBS Hrly"]
["2285",2285,"Health Prsnl OTBS Hrly"]
["2286",2286,"Health Prsnl PARAS Hrly"]
["2291",2291,"Clsfd Supervisor/Hrly"]
["2298",2298,"Operations Specialist/Hrly"]
["2300",2300,"Class Super and Admin Sal"]
["2301",2301,"Board Members"]
["2302",2302,"Deputy Sup, Business"]
["2303",2303,"Community Asst/N-C"]
["2304",2304,"Braille Typist-Classified"]
["2305",2305,"Chief/Exec/Dir/Admin (Non-Rep)"]
["2306",2306,"Police Management Sworn"]
["2307",2307,"Police Mgmt  Sworn (Non-Rep)"]
["2309",2309,"Chief/Exec/Dir/Admin (Rep)"]
["2310",2310,"Deputy/Admin/Asst Director"]
["2312",2312,"Paraeducator / Nonclassroom"]
["2314",2314,"Manager (Non-Rep)"]
["2315",2315,"Manager(Rep)"]
["2318",2318,"Health Asst"]
["2319",2319,"Supervisor/Technical Pers"]
["2320",2320,"Supervisor (Rep)"]
["2321",2321,"Operations Supervisor"]
["2322",2322,"Supervisor Represented SWORN"]
["2323",{"$f":"VALUE(A259)","v":2323},"Supervisor (Non-Rep)"]
["2325",2325,"Admin Aide"]
["2328",2328,"Supt'S Staff Asst"]
["2339",2339,"Safety Coordinator"]
["2343",2343,"ROTC Assistant"]
["2345",2345,"Pupil Advocate/Central Office"]
["2349",2349,"Translator/Interpreter"]
["2351",2351,"Construction Mgmt  Suprv Hrly"]
["2352",2352,"Mgmt/Suprv Hrly"]
["2353",2353,"Community Asst/N-C/Hrly"]
["2354",2354,"Braille Typist-Class-Hrly"]
["2355",2355,"Chief/Exe/Director/Fin Hrly"]
["2356",2356,"Police Management Sworn Hrly"]
["2357",2357,"Clerical Pers/Clsfd/Hourly"]
["2358",2358,"Clerical Substitute/Clsfd/Hrly"]
["2362",2362,"Paraeducator Non Clsrm Hrly"]
["2364",2364,"Guidance Asst/Hrly"]
["2365",2365,"Technical Pers/Clsfd/Hourly"]
["2366",2366,"IA/Hrly/Extratime/Overtime"]
["2368",2368,"Health Asst/Hrly"]
["2371",2371,"Deaf Interp / Non-Clsrm Hrly"]
["2375",2375,"Admin Aide/Hrly"]
["2376",2376,"Confidential Personnel/Hrly"]
["2383",2383,"Prof Expert N-C Hrly"]
["2393",2393,"ROTC Asist/Hrly"]
["2395",2395,"Pupil Advocate/Central Off/Hrl"]
["2399",2399,"Translator/Interpreter/Hourly"]
["2400",2400,"Cleric, Tech, and  Staff Sal"]
["2401",2401,"Clerical OTBS"]
["2402",2402,"Clerical Confidential"]
["2403",2403,"Clerical OSS"]
["2404",2404,"Guidance/Attendance Asst"]
["2405",2405,"Technical Professional OTBS"]
["2406",2406,"Technical Confidential"]
["2407",2407,"Clerical/Tech Operations"]
["2408",2408,"Dispatcher"]
["2409",2409,"Landscaper/Clsfd"]
["2410",2410,"Technical Personnel OSS"]
["2411",2411,"Truck Driver/Clsfd"]
["2415",2415,"Children Ctrs Attendant"]
["2416",2416,"Pesticide Technician"]
["2417",2417,"Light Equip Oper"]
["2418",2418,"Ld Landscape Tech"]
["2419",2419,"Mail Driver/Clsfd"]
["2421",2421,"Maintenance Pers/Clsfd"]
["2423",2423,"Computer Repair Technician"]
["2432",2432,"School Police Assistant Chief"]
["2434",2434,"Schl Police Office Tech"]
["2435",2435,"School Police Lieutenant"]
["2436",2436,"School Police Officer"]
["2439",2439,"School Comm Svcs Officer"]
["2451",2451,"Clerical OTBS Hrly"]
["2452",2452,"Clerical Confidentl Hrly"]
["2453",2453,"Clerical OSS Hrly"]
["2454",2454,"Guidance/Attend Asst Hrly"]
["2455",2455,"Tech Professional OTBS Hrly"]
["2456",2456,"Clerical Substitute Hrly"]
["2457",2457,"Clerical/Tech Operations/Hrly"]
["2458",2458,"Schl Pol Dispatcher/Clsfd/Hrly"]
["2459",2459,"Landscape/Clsfd/Hourly"]
["2460",2460,"Technical Pers OSS Hrly"]
["2461",2461,"Truck Driver/Clsfd/Hourly"]
["2465",2465,"Children Ctrs Attendant/Hrly"]
["2466",2466,"Pesticide Technician/Hrly"]
["2467",{"$f":"VALUE(A323)","v":2467},"Locker Rm Attend/Nclsrm/Hrly"]
["2469",2469,"Mail Driver/Clsfd/Hourly"]
["2471",2471,"Maintenance Pers/Clsfd/Hourly"]
["2473",2473,"Computer Rep Tech/Hrly"]
["2482",2482,"School Police Asst Chief/Hrly"]
["2483",2483,"Sch Pol/Athletics & Spec Event"]
["2484",2484,"Schl Comm Svcs Officer/Hrly"]
["2485",2485,"School Police Lieutenant/Hrly"]
["2486",2486,"School Police Officer / Hrly"]
["2503",2503,"Food Service Clerical/Tech"]
["2505",2505,"Food Service Operations"]
["2511",2511,"Food Svcs Truck Driver/Clsfd"]
["2553",2553,"Food Svcs Mgr/Hourly"]
["2555",2555,"Food Svcs Pers/Clsfd/Hourly"]
["2601",2601,"School Bus Driver"]
["2602",2602,"Extraboard Bus Driver"]
["2605",2605,"School Bus Instructor"]
["2606",2606,"Bus Monitor"]
["2607",2607,"Transportation Supervisor"]
["2612",2612,"Transportation Dispatcher"]
["2614",2614,"Bus Monitor/SET"]
["2616",2616,"Bus Monitor/IBT"]
["2623",2623,"Transp Systems Analyst"]
["2624",2624,"Transportation Scheduler"]
["2625",2625,"Fleet Maintenance Supervisor"]
["2627",2627,"Fleet Maintenance Mechanic"]
["2631",2631,"Fleet Maintenance Shop"]
["2632",2632,"Bus Driver/Fixed Benefits"]
["2633",2633,"Bus Driver/Contra"]
["2651",2651,"Bus Driver / ET-OT"]
["2652",2652,"Bus Driver/Student/Hrly"]
["2654",2654,"Extraboard Driver/Hrly"]
["2655",2655,"Bus Drvr Instr Hrly"]
["2656",2656,"Bus Monitor/Hrly"]
["2657",2657,"Transportation Super/Hrly"]
["2662",2662,"Transportation Dispatcher/Hrly"]
["2664",2664,"Bus Monitor/SET-Hourly"]
["2671",2671,"Trans Planner/Hrly"]
["2673",2673,"Transp Systems Analyst/Hrly"]
["2674",2674,"Scheduler/Hrly"]
["2675",2675,"Transp Site Liaison/Hrly"]
["2676",2676,"Camp Truck Asst/Hrly"]
["2677",2677,"Fleet Maintnce Mechanic/Hrly"]
["2681",2681,"Bus Driver Trainee/Hrly"]
["2683",2683,"Fleet Mntnce Shop Pers/Hrly"]
["2701",2701,"Paraeducator / Nonclassroom"]
["2702",2702,"Mental Health Clinician Clsfd"]
["2703",2703,"Physical Therapist"]
["2704",2704,"Occupational Therapist"]
["2708",2708,"Other Classified Support"]
["2709",2709,"Occupational Therapy Asst"]
["2710",2710,"Adaptive Equipment Specialist"]
["2711",2711,"Speech Lang Path Asst."]
["2712",2712,"Braille Transcriber"]
["2714",2714,"Guidance/Attendance Assistant"]
["2716",2716,"Rehabilitation Specialist"]
["2718",2718,"Health Assistant"]
["2720",2720,"Health Technician"]
["2722",2722,"Career Technician"]
["2726",2726,"Case Worker"]
["2745",2745,"Pupil Advocate/Site"]
["2747",2747,"Schl To Work Transition Asst/N"]
["2748",2748,"Employer Outreach Specialist"]
["2751",2751,"Paraeducator Non Clsrm Hrly"]
["2752",{"$f":"VALUE(A387)","v":2752},"Mntl Hlth Clinician Clsfd Hrly"]
["2753",2753,"Physical Therapist/Hrly"]
["2754",2754,"Occupational Therapist/Hrly"]
["2758",2758,"Other Classified Support/Hrly"]
["2759",2759,"Occupational Therapy Asst/Hrly"]
["2760",2760,"Adaptive Equipment Specialist/"]
["2762",2762,"Braille Transcriber-Hrly"]
["2764",2764,"Guidance Assistant/Hrly"]
["2766",2766,"Rehabilitation Specialist Hrly"]
["2768",2768,"Health Assistant/Hrly"]
["2770",2770,"Health Technician/Hrly"]
["2772",2772,"Career Technician/Hrly"]
["2776",2776,"Case Worker/Hrly"]
["2795",2795,"Pupil Advocate/Site/Hrly"]
["2797",2797,"Schl To Work Transition Asst/N"]
["2798",2798,"Employer Outreach Spec/Hrly"]
["2900",2900,"Other Classified Salaries"]
["2901",2901,"Classified-Long Term Leave"]
["2905",2905,"Other Nonclsrm PARAS"]
["2906",2906,"Other Nonclsrm OTBS"]
["2907",2907,"Other Nonclsrm OSS"]
["2910",2910,"Inspectors"]
["2911",2911,"Building Inspector/Clsfd"]
["2912",2912,"Landscape Inspector"]
["2913",2913,"Campus Security Assistant"]
["2915",2915,"Campus Security Assistant"]
["2951",2951,"Noon Supervision"]
["2952",2952,"Child Care Act Asst/Hrly/Noncl"]
["2953",2953,"Other Clsf Support Hrly OTBS"]
["2954",2954,"Other Clsf Support Hrly SDEA"]
["2955",2955,"Other Nonclsrm PARAS Hrly"]
["2956",2956,"Other NonClsrm OTBS Hrly"]
["2957",2957,"Other Nonclsrm OSS Hrly"]
["2960",2960,"Inspector Hrly"]
["2961",2961,"Bldg Inspector /Clsfd/ Hourly"]
["2962",2962,"Landscape Inspector/Hourly"]
["2963",2963,"Campus Security Assist Hrly"]
["2965",2965,"Campus Security Asst Hrly"]
["2969",2969,"Project Workability Trainee"]
["2972",2972,"Workshop Participt OSS Hrly"]
["2973",2973,"Workshop Participt OTBS Hrly"]
["2974",2974,"Workshop Participt PARA Hrly"]
["2975",2975,"Workshop Participt POA Hrly"]
["2986",2986,"Other Clsfd NonUnion Hrly"]
["2997",2997,"Classified Salaries Contra"]
["2998",2998,"Undistr Clsfd Salary"]
["3000",3000,"Employee Benefits"]
["3101",3101,"STRS, Certificated Positions"]
["3102",3102,"STRS, Classified Positions"]
["3111",3111,"Retirement Strs Cert Contra"]
["3112",3112,"Strs Payment"]
["3201",3201,"PERS, Certificated Positions"]
["3202",3202,"PERS, Classified Positions"]
["3211",3211,"Retirement Pers Cert Contra"]
["3222",3222,"Pers Payment"]
["3225",3225,"Retire/PERS/Sworn Officer/Cont"]
["3301",3301,"OASDI, Certificated"]
["3302",3302,"OASDI, Classified"]
["3401",3401,"Health & Welfare, Certificated"]
["3402",3402,"Health & Welfare, Classified"]
["3421",3421,"Vision Service Plan/Cert"]
["3431",3431,"Vision Service Plan/Clsfd"]
["3441",3441,"Dental Ins/Cert"]
["3451",3451,"Dental Ins/Clsfd"]
["3461",{"$f":"VALUE(A451)","v":3461},"Medical Ins/Cert"]
["3471",3471,"Medical Ins/Clsfd"]
["3501",3501,"Unemployment Insurance, Certif"]
["3502",3502,"Unemployment Insurance, Clsfd"]
["3601",3601,"Workers Compensation, Certif"]
["3602",3602,"Worker Compensation Classified"]
["3701",3701,"OPEB Allocated Cert"]
["3702",3702,"OPEB Allocated Class"]
["3751",3751,"OPEB Active Emps Cert"]
["3752",3752,"OPEB Active Emps Class"]
["3801",3801,"PERS Reduction, Certificated"]
["3802",3802,"PERS Reduction, Classified"]
["3825",3825,"Retire/PERS/SwornOfficer/RECAP"]
["3901",3901,"SERP Cert"]
["3902",3902,"SERP Class"]
["3921",3921,"Long Term Disability -POA only"]
["3922",3922,"POA  Retirement Medical Trust"]
["3923",3923,"AASD Retirement Medical Trust"]
["3951",3951,"Retiree Medical Benefit Cert"]
["3952",3952,"Retiree Medical Benefit Class"]
["3985",3985,"Life Insurance/Cert"]
["3995",3995,"Life Insurance/Clsfd"]
["3996",3996,"Beneftis/Contra/Classified"]
["3997",3997,"Benefits Salaries Contra"]
["3998",3998,"Undistr Employee Benefits"]
["4000",4000,"Book & Supplies"]
["4100",4100,"Textbooks and Core Curr Mtls"]
["4101",4101,"Adopted Textbks & Adopted Matl"]
["4200",4200,"Books and Other Reference Mtls"]
["4201",4201,"Library Books"]
["4203",4203,"Reference Books"]
["4211",4211,"SD Reads/Non RIF"]
["4300",4300,"Materials and Supplies"]
["4301",4301,"Supplies"]
["4302",4302,"Custodial Supplies"]
["4303",4303,"Furniture <$500"]
["4304",4304,"Inservice supplies"]
["4305",4305,"Tests In Classroom"]
["4306",4306,"Start-Up Supplies Noncapital"]
["4307",4307,"Outside Printing/Pmt Supplies"]
["4308",4308,"Paper - Supplies"]
["4310",4310,"Software Purchase"]
["4313",4313,"Student Info Systems/Supplies"]
["4315",4315,"Bldg Maintenance Supplies"]
["4316",4316,"Other Repair Supplies"]
["4320",4320,"Gasoline & Oil"]
["4321",4321,"AV  Materials"]
["4322",4322,"Math/Science Lab Materials"]
["4325",4325,"Library/Media Center Supplies"]
["4330",4330,"Inventory Adjustment"]
["4342",4342,"P/Y Carryover Unallocated"]
["4360",4360,"Instructional/Notes"]
["4370",4370,"Athletics Supplies"]
["4372",4372,"Furniture/Clsrm/<$500"]
["4374",4374,"Math/Science Lab Materials"]
["4375",4375,"SIM/New Clsrm Allocation"]
["4380",4380,"Office Depot/Contra"]
["4381",4381,"OfficeMax"]
["4390",4390,"Food Noninstructional Classroo"]
["4400",4400,"Equip Non Cap Non Assest Mod"]
["4491",4491,"Equipment Non Capitalized"]
["4501",4501,"Custodial Supplies"]
["4503",4503,"Data Processing Supplies"]
["4505",4505,"Printing Supplies Non-Clsrm"]
["4506",{"$f":"VALUE(A515)","v":4506},"Career Dev Program Supplies"]
["4507",4507,"Food Svcs. Supplies (Exc. Food"]
["4509",4509,"Landscape Supplies"]
["4511",4511,"Gasoline & Oil"]
["4513",4513,"Inventory Adjustment"]
["4514",4514,"Inservice Materials & Supplies"]
["4515",4515,"Bldg Maintenance Supplies"]
["4516",4516,"Test Supplies NonInstructional"]
["4517",4517,"Medical Supplies"]
["4519",4519,"Office Supplies"]
["4521",4521,"Recreation Supplies"]
["4523",4523,"School Police Supplies"]
["4526",4526,"Software Non-Educational"]
["4527",4527,"Safety Program Supplies"]
["4528",4528,"Reception Supplies"]
["4531",4531,"Educational Testing Matls"]
["4533",4533,"Obsolete Inventory (SIM Only)"]
["4534",4534,"Inventory Adjustment (SIM Only"]
["4539",4539,"Shipping"]
["4546",4546,"Health Education Materials"]
["4561",4561,"Start-Up Supplies/Noncapital"]
["4570",4570,"Food Noninstructional Nonclass"]
["4572",4572,"Furniture/Nonclsrm/<$500"]
["4574",4574,"Math/Science Lab Materials"]
["4590",4590,"Svcs To Sdccd/Supplies"]
["4596",4596,"Vehicle Parts Supplies"]
["4598",4598,"Undistr Materials & Supplies"]
["4601",4601,"Pupil Transportation Supplies"]
["4603",4603,"Equipment Repair/Pupil Bus"]
["4604",4604,"Fleet Consummable Liquids"]
["4605",4605,"Gasoline & Oil/Pupil Transprtn"]
["4606",4606,"Garage Supplies"]
["4607",4607,"Fleet Mtnce Tools Replacement"]
["4627",4627,"Bus Wash Supplies"]
["4700",4700,"Food Service"]
["4711",4711,"Food services"]
["4791",4791,"Food Svcs Supplies/Cafe Acct"]
["4795",4795,"Cost of Sales-Cafeteria Fund"]
["4997",4997,"Supplies Contra"]
["5000",5000,"Services & Other Operating"]
["5100",5100,"Contracted Svcs > $25K"]
["5101",5101,"Contract Accreditation Expense"]
["5102",5102,"Contract Ambulance"]
["5104",5104,"MentalHeath/AB3632>25k"]
["5105",5105,"Contracted Health Svcs"]
["5107",5107,"Consultant/Professional Dev"]
["5108",5108,"MH/Residential Treatment>25K"]
["5109",5109,"Contract Evaluation Svcs"]
["5110",5110,"SpecEd Tuition NonPubSchl>$25K"]
["5114",5114,"Cont Svc/Outdoor Ed/Student Fe"]
["5115",5115,"Contracted Trans NonPublicSchl"]
["5118",5118,"Contract Official Fees"]
["5122",5122,"Contract Tree Trimming"]
["5123",5123,"Employee Assistance Program"]
["5125",5125,"Academic League"]
["5131",5131,"Contract Services Physician"]
["5137",5137,"Contracted Student Services"]
["5140",5140,"Interest Anticipation Notes"]
["5150",5150,"Consultant >$25K"]
["5151",5151,"Contract Speech - Langu"]
["5153",5153,"Contract Occup Therapy"]
["5154",5154,"Contract Phys Therapy"]
["5156",5156,"Contract Vision Therapy"]
["5158",5158,"MH/Residential Treatment>25K"]
["5160",{"$f":"VALUE(A579)","v":5160},"Contracted Speech Lang>$25K"]
["5161",5161,"Contracted Physcl Therapy>$25K"]
["5162",5162,"Contracted Vision Therapy>$25K"]
["5163",5163,"Contracted Student Service>25K"]
["5165",5165,"Contracted Occup Therapy>$25K"]
["5166",5166,"Contracted Health Svcs>$25K"]
["5167",5167,"Contracted Psychologist>$25K"]
["5170",5170,"Contract Trans SchToSch>$25K"]
["5171",5171,"Contract FieldTrip NonDist>25K"]
["5172",5172,"Contract Trans HomeToSch>$25K"]
["5174",5174,"Contract Trans NonPubSchl>$25K"]
["5175",5175,"Contract Svcs City Transp>$25K"]
["5177",5177,"Contracted Transp Taxi>$25K"]
["5181",5181,"Litigation/Settlement>$25K"]
["5198",5198,"Other Instr Consultant/Contrac"]
["5200",5200,"Travel Conferences"]
["5202",5202,"TB Test Reimbursement"]
["5203",5203,"Auto Expense Personal Car"]
["5207",5207,"Travel Conference"]
["5208",5208,"National Bd Cert Applic Fees"]
["5209",5209,"Conference Local"]
["5300",5300,"Dues and Memberships"]
["5301",5301,"District Membership E.C. 35172"]
["5302",5302,"Dues - Other"]
["5303",5303,"Calif Interscholastic Fed Dues"]
["5304",5304,"CIF Entry Fees"]
["5305",5305,"City Athletic Conf Fees"]
["5306",5306,"Tournament Entry Fees"]
["5400",5400,"Insurance"]
["5401",5401,"Insurance Other"]
["5405",5405,"Self Insured H&W Paid Claims"]
["5406",5406,"Self Insured H&W plan Proc Fee"]
["5407",5407,"Workers' Comp Claims"]
["5408",5408,"Contract Workers Comp Ser"]
["5453",5453,"Boiler & Machinery Premium"]
["5454",5454,"Calif. Assessment (Tax)"]
["5455",5455,"Excess Insurance"]
["5456",5456,"Liability Ins Excess"]
["5457",5457,"Fire Insurance Premium"]
["5458",5458,"Mexico Insurance/Student"]
["5461",5461,"Liability/Per Prop (Self-Insur"]
["5462",5462,"Umbrella Cover/Athletics"]
["5463",5463,"General Liability Ins"]
["5464",5464,"Claims Settlement Payments"]
["5465",5465,"Self Ins Reimbursement Site"]
["5468",5468,"Professional Insurance"]
["5469",5469,"Self Ins Equip Replace Theft"]
["5470",5470,"Self Ins Fire Loss Deductible"]
["5471",5471,"Special Policy/Student/Field T"]
["5473",5473,"Intrusion Replacement"]
["5479",5479,"OS Claim Liability"]
["5500",5500,"Utilities & Housedeeping Svcs"]
["5501",5501,"Electric Service"]
["5502",5502,"Gas & Electric Service"]
["5505",5505,"Gas Service"]
["5517",5517,"Water Service"]
["5518",5518,"Sewer Service"]
["5521",5521,"Water & Sewer Service"]
["5525",5525,"Lamp Upkeep/Service"]
["5526",5526,"Laundry/Dry Cleaning"]
["5527",5527,"Pest Control"]
["5528",5528,"Fire Extinguisher Service"]
["5530",5530,"Rubbish Disposal"]
["5532",5532,"Disposal Of Hazardous Waste"]
["5535",{"$f":"VALUE(A643)","v":5535},"E-Rate Reimbursement"]
["5600",5600,"Rental Lease & Noncap Improvem"]
["5602",5602,"Student Transport/Personal Car"]
["5604",5604,"Contract Trans/ School To Schl"]
["5605",5605,"Contract Field Trip/N-Dist Bus"]
["5607",5607,"Contract Patrol Services"]
["5609",5609,"Contract Trans/Home To School"]
["5610",5610,"Charter/Home-to-School"]
["5611",5611,"Charter/Fleet Maint."]
["5612",5612,"Charter/Field Trips"]
["5613",5613,"Lease of Equipment"]
["5614",5614,"Lease of Printer/Duplicator"]
["5615",5615,"Fueling Services"]
["5616",5616,"Contract Media Services"]
["5617",5617,"Rental Of Educ Facilities"]
["5619",5619,"Rental Of Equipment"]
["5620",5620,"Computer Software Exp/Contract"]
["5621",5621,"Rental of Facilities"]
["5623",5623,"Rental Of Vehicles"]
["5624",5624,"Other Education Services"]
["5625",5625,"Transit Bus Tokens"]
["5626",5626,"Lease/Sites"]
["5627",5627,"Bus Passes"]
["5628",5628,"Rubbish Disposal Svcs/Contract"]
["5629",5629,"Rubbish Disposal Svcs/District"]
["5630",5630,"Contract Transp/Taxi"]
["5631",5631,"Contract Food Services"]
["5640",5640,"Contract Moving Expense"]
["5642",5642,"Telephone Repair"]
["5643",5643,"Contract Vehicle Repair"]
["5648",5648,"Contract Landscape"]
["5649",5649,"Contract Custodial Services"]
["5651",5651,"Contract Facilities Maint"]
["5652",5652,"Off Inventory Port./Oper Costs"]
["5710",5710,"Direct Costs for Xfr of Svcs"]
["5711",5711,"Interprogram Svcs/Job Cost"]
["5712",5712,"Interprogram Svs/Restricted"]
["5713",5713,"Interprogram Svcs/Video Svcs"]
["5714",5714,"Interprogram Svcs/Evaluation"]
["5715",5715,"Interprogram Svcs/Data Process"]
["5716",5716,"Interprogram Svcs/Cafeteria"]
["5717",5717,"Interprogram Svcs/Custodial"]
["5718",5718,"Interprogram Svcs/Assessment"]
["5719",5719,"Interprogram Svcs/TMC Services"]
["5720",5720,"Interprogram Svcs/Art Dept."]
["5721",5721,"Interprogram Svcs/Duplicating"]
["5722",5722,"Interprogram Svcs/S.I.P."]
["5723",5723,"Interprogram Svcs/Health Svcs"]
["5724",5724,"Interprogram Svcs/Discover Cla"]
["5725",5725,"Interprogram Svcs/Fleet Mainte"]
["5726",5726,"Interprogram Svcs/Postage"]
["5727",5727,"Interprogram-Esea Priv Sch-Ins"]
["5728",5728,"Interprogram/Private Schools"]
["5729",5729,"Interprogram Svcs/Eval/Achieve"]
["5730",5730,"Interprogram Svcs/Transportati"]
["5731",5731,"Interprogram/Bus Monitors"]
["5732",5732,"Interprogram Svcs/SBCP Transfe"]
["5733",5733,"Interprogram Svcs/Paper"]
["5734",5734,"Interprgm Serv/Dist. Serv."]
["5735",5735,"Interprogram Svcs/Field Trip"]
["5736",5736,"Interprogram Svcs/Supper"]
["5737",5737,"Interprogram Svcs/Prep Kitchen"]
["5740",5740,"Interprogram Svcs/Insurance"]
["5742",5742,"Interprogram Svcs/SANDAPP"]
["5743",{"$f":"VALUE(A707)","v":5743},"Interprogram Svcs/Bldg Inspect"]
["5744",5744,"Interprogram Svcs.Prop MM Dist"]
["5750",5750,"Direct Costs for Interfund Svc"]
["5751",5751,"Interfund Svcs/Job Cost"]
["5762",5762,"Interfund Svcs/Restricted"]
["5763",5763,"Interfund Svcs/Video Svcs"]
["5764",5764,"Interfund Svcs/Evaluation"]
["5765",5765,"Interfund Svcs/Data Processing"]
["5766",5766,"Interfund Svcs/Cafeteria"]
["5767",5767,"Interfund/Custodial"]
["5768",5768,"Interfund Svcs/Assessment"]
["5769",5769,"Interfund Svs/TMC Services"]
["5770",5770,"Interfund Svcs/Art Dept."]
["5771",5771,"Interfund Svcs/Duplicating"]
["5772",5772,"Interfund Svcs/S.I.P."]
["5773",5773,"Interfund Svcs/Health Svcs"]
["5774",5774,"Interfund Svcs/Discover Classe"]
["5775",5775,"Interfund Svcs/Fleet Maintenan"]
["5776",5776,"Interfund Svcs/Postage"]
["5779",5779,"Interfund Svcs/Eval/Achieve/Ac"]
["5780",5780,"Interfund Svcs/Transportation"]
["5781",5781,"Interfund Svcs/Bus Monitors"]
["5782",5782,"Interfund Svcs/SBCP Transfer"]
["5783",5783,"Interfund - Paper"]
["5785",5785,"Interfund Svcs/Field Trip"]
["5790",5790,"Interfund Svcs/Insurance"]
["5791",5791,"Interfund Svcs/Prop MM Distrib"]
["5792",5792,"Interfund Svcs/Charter School"]
["5793",5793,"Interfund Vscs/Bldg Inspector"]
["5794",5794,"Interfund Svcs/Prop MM Distrib"]
["5799",5799,"Interfund/Charter School"]
["5800",5800,"Consult & contract Svcs <$25K"]
["5801",5801,"Consultants <=$25K"]
["5802",5802,"Teacher Credentials"]
["5803",5803,"Employment Advertising"]
["5804",5804,"MentalHealth/AB3632<25K"]
["5805",5805,"Fingerprint Processing"]
["5806",5806,"Special Tax Assessment"]
["5808",5808,"MH/Residential Treatment<25K"]
["5809",5809,"Tuition for students"]
["5810",5810,"SpecEd Tuition NonPubSch<=$25K"]
["5811",5811,"Physical & Psychological Exami"]
["5812",5812,"Contract Computer Services"]
["5813",5813,"Printing - Outside Vendor"]
["5815",5815,"Advertising"]
["5817",5817,"Professional Publications"]
["5818",5818,"Plaques/Retirees"]
["5821",5821,"Tuition/Classified"]
["5822",5822,"Legal Advert (Exc Capital Outl"]
["5823",5823,"Litigation/Settlement Expense"]
["5824",5824,"Payment/Non-Use Of Sites"]
["5826",5826,"Audit Expense"]
["5828",5828,"Election Expense"]
["5830",5830,"Law Books & Periodicals"]
["5831",5831,"Early Retirement"]
["5832",5832,"State/Federal Relations Consul"]
["5833",5833,"Contract Clerical"]
["5835",5835,"Other Operating Expenses"]
["5838",5838,"Judgements"]
["5840",5840,"Interest Expense"]
["5841",5841,"Software License"]
["5842",5842,"License And Fees"]
["5845",5845,"Bad Dept Expense"]
["5846",5846,"Contract Vehicle Washing"]
["5847",{"$f":"VALUE(A771)","v":5847},"Contract Financial Consult"]
["5851",5851,"Spec Ed Tuition/Non-Public Sch"]
["5852",5852,"Spec Ed Transp/Non-Public Schl"]
["5853",5853,"Contracted Svcs Less Than $25K"]
["5854",5854,"Contracted Vehicle Repair"]
["5855",5855,"Fingerprint Processing"]
["5856",5856,"Workers' Comp Claims"]
["5857",5857,"Advertising"]
["5858",5858,"Contracted Services Election"]
["5859",5859,"Admission/Entry Tickets"]
["5860",5860,"Contracted Speech Lang<$25K"]
["5861",5861,"Contracted Physcl Therapy<$25K"]
["5862",5862,"Contracted Vision Therapy<$25K"]
["5863",5863,"Contracted Student Srvice<=25K"]
["5864",5864,"Physical & Psychological Exami"]
["5865",5865,"Contracted Occup Therapy<$25K"]
["5866",5866,"Contracted Health Svcs<$25K"]
["5867",5867,"Contracted Psychologist<$25K"]
["5870",5870,"Contracted Trans SchToSch<=25K"]
["5871",5871,"Contract FieldTripNonDist<=25K"]
["5872",5872,"Contracted Trans HmToSch<=$25K"]
["5873",5873,"Contracted Trans Charter"]
["5874",5874,"Contract Trans NonPubSch<=$25K"]
["5875",5875,"Transit Bus Tokens & Passes"]
["5876",5876,"Student Transport Personal Car"]
["5877",5877,"Contracted Transp Taxi<=$25K"]
["5878",5878,"Contracted Trans NonPublicSchl"]
["5879",5879,"Med & Dent Fund Reserve"]
["5880",5880,"Contracted Svcs Legal"]
["5881",5881,"Litigation/Settlement<$25K"]
["5892",5892,"Tution Cert"]
["5898",5898,"Offset For Budget Changes"]
["5899",5899,"Reversal 6/30 Incurred But Not"]
["5900",5900,"Communications"]
["5903",5903,"Data Com-Clearing Acct"]
["5905",5905,"Tele Site Pd-Clearing Acct"]
["5907",5907,"Cellular-Clearing Acct"]
["5912",5912,"E-Rate Reimbursement"]
["5913",5913,"Telephone Data com Lines"]
["5914",5914,"Telephone Service Request"]
["5915",5915,"Telephone Svc - Additional"]
["5916",5916,"Telephone Svc - Standard Alloc"]
["5917",5917,"Telephone Service Cell Phones"]
["5918",5918,"Telephone Service/Pagers"]
["5919",5919,"Alarm & Emergency Com"]
["5920",5920,"Postage Expense"]
["5921",5921,"Other Communications"]
["5923",5923,"Internet Services"]
["5997",5997,"Services Contra"]
["5998",5998,"Contracted Svcs - Unallocated"]
["5999",5999,"Garnishment Expense"]
["6000",6000,"Capital Outlay"]
["6100",6100,"Sites and Improvement of Sites"]
["6103",6103,"Site Acquis/Other Costs"]
["6105",6105,"Site Acquis/Reloc Allow"]
["6107",6107,"Site Appraisal Fees"]
["6109",6109,"Site Dev/Utilities Svcs"]
["6110",6110,"Site/Environmentl Impact Study"]
["6113",6113,"Demolition On New Sites"]
["6115",6115,"Site Improvement"]
["6117",6117,"Site Purchase"]
["6121",6121,"Off-Site Development"]
["6123",6123,"On-Site Development/General"]
["6128",6128,"Fuel Storage Tanks"]
["6129",{"$f":"VALUE(A835)","v":6129},"Construction Testing"]
["6200",6200,"Bldgs and Improvement of Bldgs"]
["6201",6201,"Buildings/New Constr"]
["6203",6203,"Building Inspection Costs"]
["6204",6204,"Project Management Costs"]
["6205",6205,"Construction Management Costs"]
["6206",6206,"Program Management Costs"]
["6207",6207,"Buildings/Improvement To"]
["6208",6208,"Building Acquisition"]
["6209",6209,"Bldg Plans/Architect Fees"]
["6212",6212,"Capital Fees/Other"]
["6213",6213,"Bldg Plans/DSA Fees"]
["6214",6214,"Capital Contracted Svcs/Other"]
["6215",6215,"Bldg Plans/Other Costs"]
["6218",6218,"Purchase/Trailers"]
["6219",6219,"Buildings/Other Costs"]
["6221",6221,"Bldgs/Reconstruction"]
["6222",6222,"Undistributed Interest"]
["6223",6223,"Construction Legal Settlement"]
["6225",6225,"Buildings/Undistributed"]
["6230",6230,"LeaseLeaseBack"]
["6242",6242,"Lease/Portables"]
["6243",6243,"Portable Classrooms/Purchase"]
["6245",6245,"Playground Equipment"]
["6248",6248,"Prop MM Portable Repair"]
["6249",6249,"Portable Moves"]
["6250",6250,"Interim Housing"]
["6300",6300,"Books/Media for New  Libraries"]
["6321",6321,"Library Matls New Schl/Maj Exp"]
["6400",6400,"Equipment"]
["6412",6412,"SIS Hardware/Software"]
["6421",6421,"Library Equip/Furniture (Capit"]
["6431",6431,"Food Svcs Equip (Cap)"]
["6455",6455,"Permanent Equip (Lease Purchas"]
["6488",6488,"Lease/Office Equipment"]
["6489",6489,"Vehicles/Replacement"]
["6491",6491,"Permanent Equipment (Capital)"]
["6492",6492,"Equipment/Telephone System"]
["6494",6494,"Data Systems Equipment"]
["6495",6495,"Vehicles, New (Cap)"]
["6497",6497,"Capital Expenditure Contra"]
["6498",6498,"Improvement to Dist Vehicles"]
["6500",6500,"Equipment Replacement"]
["6505",6505,"Equip Replacement/Clsrm Equip"]
["6517",6517,"Equip Replacement/Pupil Bus"]
["6519",6519,"Equip Replacement"]
["6528",6528,"Equip Repl/EDP Hardware"]
["6533",6533,"Capital Equip/Replace/Theft"]
["6900",6900,"Depreciation Expense"]
["6998",6998,"Capital Outlay - Unallocated"]
["7000",7000,"Other Outgo"]
["7130",7130,"State Special Schools"]
["7140",7140,"Account 7140"]
["7141",7141,"Tuition, Exc Cost To Districts"]
["7142",7142,"Tuition, Excess Costs To COE"]
["7143",7143,"Tuition, Exc Costs to JOA"]
["7211",7211,"TOP-Through Revenues to Dist"]
["7212",7212,"TOP-Through Revenues to COE"]
["7213",7213,"TOP-Through Revenues to JPA's"]
["7221",7221,"Xfers of Appor to Districts"]
["7222",7222,"Xfers of Appor to COE"]
["7223",7223,"Xfers of Appor to JPA's"]
["7242",7242,"Account 7242"]
["7280",7280,"Xfers of Prop Tax for Charter"]
["7281",{"$f":"VALUE(A899)","v":7281},"All Other Transfers to Dist"]
["7282",7282,"All Other Transfers To County"]
["7283",7283,"All Other Transfers to JPA's"]
["7299",7299,"Other Transfers Out to Others"]
["7310",7310,"Indirect Cost / Interprogram"]
["7344",7344,"Indirect Cost Prior Year"]
["7350",7350,"Indirect Cost / Interfund"]
["7355",7355,"Indirect/Interfund - Prior Yrs"]
["7370",7370,"Transfers of Dir Support Costs"]
["7432",7432,"State School Bldg Fund Pymt"]
["7433",7433,"Bond Redemptions"]
["7434",7434,"Bond Interest Serv Chrgs"]
["7435",7435,"Repay of Proceeds from Bonds"]
["7436",7436,"Payments for Acqui of Property"]
["7438",7438,"Debt Service Interest"]
["7439",7439,"Other Debt Serv Pymts"]
["7611",7611,"General to Child Development"]
["7612",7612,"General and Special Reserve"]
["7613",7613,"State Bldg to All Other Funds"]
["7614",7614,"Bond Int and Redemp to General"]
["7615",7615,"From Gnrl, Spcl Res, and Bldg"]
["7616",7616,"General to Cafeteria"]
["7617",7617,"Para/Medical Bene Fund"]
["7619",7619,"Other Interfund Transfers Out"]
["7621",7621,"OSS/Medical Bene Fund"]
["7622",7622,"OTBS/Medical Bene Fund"]
["7623",7623,"POA/Medical Bene Fund"]
["7625",7625,"AASD Medical Benefit Fund"]
["7626",7626,"GF To Liability Ins Fund"]
["7627",7627,"GF To Property Ins Fund"]
["7632",7632,"State School Building Repay"]
["7639",7639,"Other Debt Service - Principal"]
["7641",7641,"Long Term Loan Repayment"]
["7651",7651,"Xfers from Reorganized Dist"]
["7662",7662,"Market Exchange Reserve"]
["7699",7699,"All Other Financing Uses"]
["7998",7998,"Other Outlay - Obsolete"]
["8011",8011,"Revenue Limit State Aid - Cy"]
["8012",8012,"Education Protection Account"]
["8015",8015,"Chrtr Schl Gen Pur Ent-St Aid"]
["8019",8019,"Revenue Limit State Aid - Py"]
["8021",8021,"Homeowners Exemption"]
["8022",8022,"Timber Yield Tax"]
["8029",8029,"Oth Subventions/In-Lieu Taxes"]
["8041",8041,"Secured Rolls Tax"]
["8042",8042,"Unsecured Roll Taxes"]
["8043",8043,"Prior Years Taxes"]
["8044",8044,"Supplemental Taxes"]
["8045",8045,"Ed Rev Augmentation Fund-Eraf"]
["8046",8046,"Supl Ed Rev Agmnt Fund-SERAF"]
["8047",8047,"Community Redevelopment Funds"]
["8048",8048,"Penalties/Interest-Delinq Tax"]
["8070",8070,"Receipts from County BOS"]
["8081",8081,"Royalties and Bonuses"]
["8082",8082,"Other In-Lieu Taxes"]
["8089",8089,"Less: Non-Rev Limit (50%) Adj"]
["8091",8091,"Rev Limit Transfers-Current Yr"]
["8092",8092,"PERS Reduction Transfer"]
["8096",8096,"Trsfr to Chrtr Schl Lieu of Pr"]
["8097",8097,"Property Taxes Transfers"]
["8099",8099,"Rev Limit Transfers-Prior Year"]
["8110",8110,"Maint/Oper (Public Law 81-874)"]
["8181",8181,"Special Education-Entitlement"]
["8182",8182,"Special Education-Discre Grant"]
["8220",{"$f":"VALUE(A963)","v":8220},"Child Nutrition Pgms - Federal"]
["8221",8221,"Donated Food Commodities"]
["8260",8260,"Forest Reserve Funds"]
["8270",8270,"Flood Control Funds"]
["8280",8280,"US Wildlife Reserve Funds"]
["8281",8281,"FEMA"]
["8285",8285,"Interagency Cont Between LEA'S"]
["8287",8287,"Pass-Thru Rev From Fed Sources"]
["8290",8290,"All Other Federal Revenue"]
["8311",8311,"Other State Apportionments-Cy"]
["8319",8319,"Other State Apportionments-Py"]
["8425",8425,"Year-Round School Incentive"]
["8434",8434,"Class Size Reduction, Gr K-3"]
["8435",8435,"Class Size Reduction, Gr 9-12"]
["8480",8480,"Chrtr Schl Categorical Blk Grt"]
["8520",8520,"Child Nutrition Pgms - State"]
["8530",8530,"Child Development Apports"]
["8540",8540,"Deferred Maintenance Allowance"]
["8545",8545,"School Facilities Apports"]
["8550",8550,"Mandated Cost Reimbursements"]
["8560",8560,"State Lottery Revenue"]
["8571",8571,"Voted Indebt Levies/Homeowners"]
["8572",8572,"Other Subventions/In-Lieu Tax"]
["8575",8575,"ORL, Homeowners Exemption"]
["8576",8576,"ORL, Other Subeventions"]
["8587",8587,"Pass-Thru Rev From St Sources"]
["8590",8590,"All Other State Revenues"]
["8591",8591,"Charter School Cat Block Grant"]
["8611",8611,"Voted Indebt Levies/Secured"]
["8612",8612,"Voted Indebt Levies/Unsecured"]
["8613",8613,"Voted Indebt Levies/Prior Year"]
["8614",8614,"Voted Indebt Levies/Supl Tax"]
["8615",8615,"ORL, Secured Roll"]
["8616",8616,"ORL, Unsecured Roll"]
["8617",8617,"ORL, Prior Years Taxes"]
["8618",8618,"ORL, Supplemental Taxes"]
["8621",8621,"Parcel Taxes"]
["8622",8622,"Other Non-Ad Valorem Taxes"]
["8625",8625,"Comm Rdv Funds Not Sub Rev Lim"]
["8629",8629,"Pen/Int-Delinq Non-Rev Lmt Tax"]
["8631",8631,"Sale Of Equipment And Supplies"]
["8632",8632,"Sales of Publications"]
["8634",8634,"Food Service Sales"]
["8639",8639,"All Other Sales"]
["8650",8650,"Leases And Rentals"]
["8660",8660,"Interest"]
["8662",8662,"Net Inc/(Dec) in FV Investment"]
["8671",8671,"Adult Education Fees"]
["8672",8672,"Nonresident Students Fees"]
["8673",8673,"Child Development Parent Fees"]
["8674",8674,"In-District Premiums/Contrib"]
["8675",8675,"Transportation Fees From Indiv"]
["8677",8677,"Interagency Srvcs Between LEAs"]
["8681",8681,"Mitigation/Developer Fees"]
["8689",8689,"All Other Fees And Contracts"]
["8691",8691,"Plus: Misc Non-Rev Lim(50%)Adj"]
["8697",8697,"Pass-Thru Rev From Local Sourc"]
["8699",8699,"All Other Local Revenue"]
["8710",8710,"Tuition"]
["8780",8780,"Chrtr Schl Funding In-Lieu Ptx"]
["8781",8781,"All Other Transfers From Dists"]
["8782",8782,"All Other Trans From Cty Ofces"]
["8783",8783,"All Other Transfers from JPA's"]
["8791",8791,"Transfers Of Apport From Distr"]
["8792",{"$f":"VALUE(A1027)","v":8792},"Transfer Of Apport From Cty Of"]
["8793",8793,"Xfers of Appor from JP Agree"]
["8799",8799,"Other Trnsfs In From All Other"]
["8911",8911,"General to Child Development"]
["8912",8912,"Between General and Spcl Res"]
["8913",8913,"All Funds to State Bldg"]
["8914",8914,"Bond Int and Redemp to General"]
["8915",8915,"Interfund Transfer In fr Funds"]
["8916",8916,"Cafeteria From General"]
["8919",8919,"Other Auth Interfund Trsf In"]
["8931",8931,"Emergency Apportionments"]
["8951",8951,"Proceeds from Sale of Bonds"]
["8953",8953,"Pro Frm Sale/Lse Pur Land/Bldg"]
["8961",8961,"County School Building Aid"]
["8965",8965,"Trsfr Frm Fnd Lapsed/Reorg Dis"]
["8971",8971,"Proceeds From Cert Of Particap"]
["8972",8972,"Proceeds From Capital Leases"]
["8973",8973,"Proceeds From Lease Rev Bonds"]
["8979",8979,"All Other Financing Sources"]
["8980",8980,"Contrib From Unrest Revenues"]
["8990",8990,"Contrib From Restricted Revenu"]
["8995",8995,"Categorical Block Grant Trnsfr"]
["8997",8997,"Transfer of Restricted Balance"]
["8998",8998,"Categorical Flexible Transfers"]
["9000",9000,"Reserves/Expenses"]
["9035",9035,"Reserve Account"]
["9110",9110,"Cash In County Treasury"]
["9111",9111,"Fair Value Adj/Cash In Cty Tre"]
["9115",9115,"Cash Balancing"]
["9117",9117,"Payroll Cash"]
["9120",9120,"Cash In Bank(s)"]
["9130",9130,"Revolving Cash Account"]
["9135",9135,"Cash With Fiscal Agent/Trustee"]
["9140",9140,"Cash Collect Awaiting Deposit"]
["9150",9150,"Investments"]
["9200",9200,"Accounts Receivable"]
["9210",9210,"Accts Recvble-YR End Accruals"]
["9290",9290,"Due From Grantor Governments"]
["9310",9310,"Due From Other Funds"]
["9320",9320,"Stores"]
["9321",9321,"Inventory - PPO"]
["9330",9330,"Prepaid Expenditures/Expenses"]
["9340",9340,"Other Current Assets"]
["9410",9410,"Land"]
["9420",9420,"Improvement Of Sites"]
["9425",9425,"Accum Depr-Improvement Of Site"]
["9430",9430,"Buildings"]
["9435",9435,"Accum Depr-Buildings"]
["9436",9436,"Building Improvements"]
["9437",9437,"Accumulated Depreciation"]
["9440",9440,"Equipment"]
["9445",9445,"Accum Depr-Equipment"]
["9450",9450,"Work In Progress"]
["9490",9490,"Deferred Outflows of Resources"]
["9501",9501,"Accounts Payable - Sys Gen"]
["9502",9502,"Accts Payable-Software License"]
["9503",9503,"Accts Payable-Purchase Cards"]
["9505",9505,"Accts Payable-Charter Payroll"]
["9506",9506,"Accts Pay-Charter Property Tax"]
["9507",9507,"Accts Payable-Charter Other"]
["9508",9508,"AcctsPayable-Charter Inventory"]
["9509",9509,"Accts Payable-Charter Fees&Ser"]
["9510",9510,"Accounts Payable  Year-end Acc"]
["9511",9511,"Accts Payable Claim Liability"]
["9512",{"$f":"VALUE(A1091)","v":9512},"Accounts Pay - Ind Cont St W/H"]
["9513",9513,"Accounts Payable - Use Tax"]
["9514",9514,"AP-Payroll Deduction Employer"]
["9515",9515,"AP - Payroll Deductions"]
["9516",9516,"Accounts Pay - Trust Fund"]
["9517",9517,"Payroll Liability"]
["9520",9520,"Accounts Pay - Warehouse"]
["9590",9590,"Due To Grantor Governments"]
["9610",9610,"Due To Other Funds"]
["9620",9620,"Due To Stdnt Grps/Oth Agencies"]
["9640",9640,"Current Loans"]
["9650",9650,"Unearned Revenue"]
["9661",9661,"Gen Obligation Bond Payable"]
["9662",9662,"State Schl Bldg Loan Payable"]
["9664",9664,"Other Postemployment Benefits"]
["9665",9665,"Compensated Absences Payable"]
["9666",9666,"COPs Payable"]
["9667",9667,"Capital Leases Payable"]
["9668",9668,"Lease Revenue Bonds Payable"]
["9669",9669,"Other General Long-Term Debt"]
["9690",9690,"Deferred Inflows of Resources"]
["9711",9711,"Reserve For Revolving Cash"]
["9712",9712,"Reserve For Stores"]
["9713",9713,"Reserve For Prepaid Expend."]
["9719",9719,"Reserve For All Others"]
["9720",9720,"Reserve For Encumbrances"]
["9730",9730,"General Reserve"]
["9740",9740,"Restricted Balance"]
["9770",9770,"Desig For Economic Uncert"]
["9775",9775,"Desig Unreal Gains Inv/Csh Cty"]
["9780",9780,"Other Designations"]
["9789",9789,"Reserve For Economic Uncert"]
["9790",9790,"Undesignated/Unappropriated"]
["9791",9791,"Beg Fund Balance/Revenue"]
["9792",9792,"Beg Fund Balance/Expense"]
["9793",9793,"Audit Adjustments"]
["9795",9795,"Other Restatements"]
["9796",9796,"Net Capital Asset"]
["9810",9810,"Estimated Income"]
["9820",9820,"Budget Appropriations"]
["9830",9830,"Budget Encumbrance Control"]
["9850",9850,"Budget Expenditure Control"]
["9895",9895,"Projected Actuals Control"]
["9980",9980,"Amount Available"]
["9989",9989,"Amount To Be Provided"]
["9990",9990,"Investment In Gen Fixed Assets"]
["9994",9994,"Payroll Suspense - Custom"]
["9995",9995,"Payroll Suspense"]
["9996",9996,"Offset TF, Y4, ZJ, ZO for CRC"]
["9999",9999,"Account Not In Use"]